{"text_format":"1","workbook":"xlsx","n_sheets":4,"sheets":["hodnoceni","vysledky","knt_tab","ranking"],"not_rendered":{"charts":0,"images":0,"macros":1,"external_links":0,"defined_names":3,"comments":0,"pivot_tables":14},"unopened":[],"bounds":{"document_bytes":16777216,"sheet_cells":100000,"rows_first":2000,"rows_last":500,"rows_between":2000,"halvings":0,"cell_chars":16384,"cell_head_chars":4096},"cells_cut":0,"cells_raw":0,"read":"whole","date_system":"1900"}

{"sheet":"hodnoceni","index":0,"n_rows":63,"n_cols":9,"rows_kept":63,"cut":false,"hidden":false,"merged":[]}
["1.      Kritéria pro bodování jednotlivců:"]
[]
["Každý závodník obdrží :"]
["a)","1 bod za vyhraný zápas v turnaji jednotlivců"]
["b)","2 body za vyhraný zápas v turnaji družstev"]
["c)","1 bod za remízu v turnaji družstev"]
["d)","počet bodů za umístění podle typu soutěže"]
[]
["1.1.  Mistrovské soutěže ( MK, MČR, ME, MS, soutěže družstev):"]
[]
["1.1.1        MK:",null,null,null,null,"1.1.3        ME:"]
["             ","1. místo                 7 bodů",null,null,null,"             ","1. místo                 50 bodů"]
["             ","2. místo                 5 bodů",null,null,null,"             ","2. místo                 40 bodů"]
["             ","3. místo                 4 body",null,null,null,"             ","3. místo                 35 bodů "]
[null,null,null,null,null,null,"4. místo                 30 bodů"]
[" ",null,null,null,null,"             ","5. místo                 30 bodů"]
[null,null,null,null,null,null,"6. místo                 25 bodů"]
[null,null,null,null,null,"             ","7. místo                 25 bodů"]
[null,null,null,null,null,"             ","9. místo                 20 bodů"]
["1.1.2        MČR:"]
["             ","1. místo                 20 bodů",null,null,null,"1.1.4        MS:"]
["             ","2. místo                 15 bodů",null,null,null,null,"1. místo                100 bodů"]
["             ","3. místo                 10 bodů ",null,null,null,null,"2. místo                 80 bodů"]
["             ","4. místo                   7 bodů ",null,null,null,null,"3. místo                 70 bodů "]
["             ","5. místo                   7 bodů",null,null,null,null,"5. místo                 60 bodů"]
["             ","6. místo                   5 bodů",null,null,null,null,"7. místo                 50 bodů"]
[null,"7. místo                   5 bodů",null,null,null,null,"9. místo                 40 bodů"]
[]
["1.2.    Nemistrovské soutěže ( MC, PK, VC, MVC, ČP, MT, PČR, EJU, soutěže družstev):"]
[]
["1.2.1        MC a ostatní :",null,null,null,null,"1.2.2        VC, MVC, PK a PSO:"]
["             ","1. místo                  4      body",null,null,null,null,"1.místo                  6    bodů"]
["             ","2. místo                  3      body",null,null,null,null,"2. místo                 5    bodů"]
["             ","3. místo                  2      body ",null,null,null,null,"3. místo                 3    body "]
[null,null,null,null,null," "]
["1.2.3        KT, MT a PČR:",null,null,null,null,"1.2.4        EJU:"]
["             ","1. místo               10 bodů",null,null,null,"           ","1. místo                 35 bodů"]
["             ","2. místo                 7 bodů",null,null,null,"             ","2. místo                 30 bodů"]
["             ","3. místo                 5 bodů ",null,null,null,"             ","3. místo                 25 bodů "]
["             ","4. místo                 3 body ",null,null,null,"             ","5. místo                 20 bodů "]
["             ","5. místo                 3 body ",null,null,null,"             ","7. místo                 15 bodů"]
["             ","6. místo                 2 body ",null,null,null,"             ","9. místo                 10 bodů"]
[null,"7. místo                 2 body"]
[null,null,null,null,null,"1.2.4        EYOF:"]
[null,null,null,null,null,"           ","1. místo                 50 bodů"]
[null,null,null,null,null,"             ","2. místo                 40 bodů"]
[null,null,null,null,null,"             ","3. místo                 35 bodů "]
[null,null,null,null,null,"             ","5. místo                 30 bodů "]
[null,null,null,null,null,"             ","7. místo                 25 bodů"]
[null,null,null,null,null,"             ","9. místo                 20 bodů"]
[]
["Legenda :"]
["MC","malá cena",null,null,null,null,null,"MK","mistrovství kraje"]
["VC ","ostatní turnaje zařazené do kal. ČSJu",null,null,null,null,null,"MČR","mistrovství České republiky"]
["MVC","mezinárodní velká cena",null,null,null,null,null,"ME","mistrovství Evropy"]
["PK","přebor kraje",null,null,null,null,null,"DL","dorostenecká liga"]
["PČR","přebor České republiky",null,null,null,null,null,"EXL","extraliga mužů"]
["ČP","turnaj českého poháru",null,null,null,null,null,"PSO","přebor spojených oblastí"]
["MT","turnaj za účasti více než 3 států",null,null,null,null,null,"MS","mistrovství světa"]
["EJU","turnaj zařazen do kalendáře Evropské federace juda",null,null,null,null,null,"EYOF","Evropský olympijský festival mládeže"]
[]
["V Ostravě 30.3.2019"]
["M. Pavlica"]

{"sheet":"vysledky","index":1,"n_rows":996,"n_cols":23,"rows_kept":996,"cut":false,"hidden":false,"merged":[]}
["datum","nazev","typ_souteze","jedn./dr.","Primeni","Jmeno","umisteni","kategorie","vaha","vyhr_zap","rem_zap","prohr_zap","body_um","body_zap","zavodnik","body",null,"Typ soutěže",null,"Bodování"]
["2021-05-27","MT COIMBRA","MT","j","Křížek","Šimon",3,"dorostenci","66",4,0,1,{"$f":"IF(ISNA(VLOOKUP(C2&G2,$V$3:$W$95,2,FALSE)),0,VLOOKUP(C2&G2,$V$3:$W$95,2,FALSE))","v":5},{"$f":"IF(D2=\"d\",SUM(J2*2,K2),J2)","v":4},{"$f":"E2&\" \"&F2","v":"Křížek Šimon"},{"$f":"SUM(M2,N2)","v":9},null,"MC",null,"typ_souteze","umisteni","kód","body"]
["2021-05-27","MT COIMBRA","MT","j","Motyka","Dominik",1,"dorostenci","81",4,0,0,10,{"$f":"IF(D3=\"d\",SUM(J3*2,K3),J3)","v":4},"Motyka Dominik",{"$f":"SUM(M3,N3)","v":14},null,"VC",null,"EJU",1,{"$f":"T3&U3","v":"EJU1"},35]
["2021-06-17","ECC Poreč","EJU","j","Křížek","Šimon","bez","dorostenci","66",0,0,1,0,0,"Křížek Šimon",0,null,"MVC",null,"EJU",2,"EJU2",30]
["2021-06-17","ECC Poreč","EJU","j","Lindovský","Jiří","bez","dorostenci","66",1,0,1,0,1,"Lindovský Jiří",1,null,"PK",null,"EJU",3,"EJU3",25]
["2021-06-17","ECC Poreč","EJU","j","Motyka","Dominik","bez","dorostenci","81",0,0,2,0,0,"Motyka Dominik",0,null,"PCR",null,"EJU",5,"EJU5",20]
["2021-07-03","ECC Teplice","EJU","j","Kuželová","Dominika","bez","dorostenky","57",0,0,1,0,0,"Kuželová Dominika",0,null,"PSO",null,"EJU",7,"EJU7",15]
["2021-07-03","ECC Teplice","EJU","j","Čebík","Filip","bez","dorostenci","60",0,0,1,0,0,"Čebík Filip",0,null,"CP",null,"EJU",9,"EJU9",10]
["2021-07-03","ECC Teplice","EJU","j","Křížek","Šimon",7,"dorostenci","66",4,0,2,{"$f":"IF(ISNA(VLOOKUP(C9&G9,$V$3:$W$95,2,FALSE)),0,VLOOKUP(C9&G9,$V$3:$W$95,2,FALSE))","v":15},{"$f":"IF(D9=\"d\",SUM(J9*2,K9),J9)","v":4},{"$f":"E9&\" \"&F9","v":"Křížek Šimon"},{"$f":"SUM(M9,N9)","v":19},null,"MK",null,"CP",1,"CP1",10]
["2021-07-03","ECC Teplice","EJU","j","Lindovský","Jiří","bez","dorostenci","66",1,0,1,0,1,"Lindovský Jiří",1,null,"MCR",null,"CP",2,"CP2",7]
["2021-07-03","ECC Teplice","EJU","j","Motyka","Dominik","bez","dorostenci","81",1,0,2,0,1,"Motyka Dominik",1,null,"DL",null,"CP",3,"CP3",5]
["2021-07-17","ECC Bukurešť","EJU","j","Křížek","Šimon","bez","dorostenci","66",0,0,1,0,0,"Křížek Šimon",0,null,"1.liga",null,"CP",4,"CP4",3]
["2021-07-17","ECC Bukurešť","EJU","j","Motyka","Dominik","bez","dorostenci","81",0,0,1,0,0,"Motyka Dominik",0,null,"EXL",null,"CP",5,"CP5",3]
["2021-08-07","Hranický pohár","MVC","j","Caletka","Michal","bez","dorostenci","60",0,0,1,0,0,"Caletka Michal",0,null,"EJU",null,"CP",6,"CP6",2]
["2021-08-07","Hranický pohár","MVC","j","Caletka","Petr","bez","dorostenci","60",0,0,2,0,0,"Caletka Petr",0,null,"EYOF",null,"CP",7,{"$f":"T15&U15","v":"CP7"},2]
["2021-08-07","Hranický pohár","MVC","j","Čebík","Filip","bez","dorostenci","66",0,0,1,0,0,"Čebík Filip",0,null,"ME",null,"MC",1,"MC1",4]
["2021-08-07","Hranický pohár","MVC","j","Huvar","Jakub","bez","dorostenci","73",0,0,1,0,0,"Huvar Jakub",0,null,"MT",null,"MC",2,"MC2",3]
["2021-08-07","Hranický pohár","MVC","j","Kokešová","Alexandra",3,"dorostenky","70",1,0,2,3,1,"Kokešová Alexandra",4,null,"MS",null,"MC",3,"MC3",2]
["2021-08-07","Hranický pohár","MVC","j","Kršňák","Filip","bez","dorostenci","73",1,0,2,0,1,"Kršňák Filip",1,null,null,null,"MCR",1,"MCR1",20]
["2021-08-07","Hranický pohár","MVC","j","Křížek","Šimon","bez","dorostenci","66",1,0,2,0,1,"Křížek Šimon",1,null,"Věkové kategorie",null,"MCR",2,"MCR2",15]
["2021-08-07","Hranický pohár","MVC","j","Kuželová","Dominika",7,"dorostenky","63",1,0,2,0,1,"Kuželová Dominika",1,null,"mláďata",null,"MCR",3,"MCR3",10]
["2021-08-07","Hranický pohár","MVC","j","Lavrukhin","Dobrynya","bez","dorostenci","60",0,0,1,0,0,"Lavrukhin Dobrynya",0,null,"mladší žákyně",null,"MCR",4,"MCR4",7]
["2021-08-07","Hranický pohár","MVC","j","Matýsek","Jan","bez","dorostenci","66",0,0,1,0,0,"Matýsek Jan",0,null,"mladší žáci",null,"MCR",5,"MCR5",7]
["2021-08-07","Hranický pohár","MVC","j","Rapčanová","Silvie","bez","dorostenky","48",0,0,2,0,0,"Rapčanová Silvie",0,null,"starší žákyně",null,"MCR",6,"MCR6",5]
["2021-08-07","Hranický pohár","MVC","j","Siuda","Adam","bez","dorostenci","66",0,0,1,0,0,"Siuda Adam",0,null,"starší žáci",null,"MCR",7,{"$f":"T25&U25","v":"MCR7"},5]
["2021-08-07","Hranický pohár","MVC","j","Vavřínová","Pavla",2,"dorostenky","57",1,0,2,5,1,"Vavřínová Pavla",6,null,"dorostenky",null,"EYOF",1,"EYOF1",50]
["2021-08-07","Hranický pohár","MVC","j","Vontor","Tomáš",2,"dorostenci","55",1,0,2,5,1,"Vontor Tomáš",6,null,"dorostenci",null,"EYOF",2,"EYOF2",40]
["2021-08-07","Hranický pohár","MVC","j","Vršek","Jakub","bez","dorostenci","60",0,0,2,0,0,"Vršek Jakub",0,null,"juniorky",null,"EYOF",3,"EYOF3",35]
["2021-08-07","Hranický pohár","MVC","j","Motyka","Dominik",1,"dorostenci","81",4,0,0,6,4,"Motyka Dominik",10,null,"junioři",null,"EYOF",5,"EYOF5",30]
["2021-08-07","Hranický pohár","MVC","j","Fulneček","Šimon",5,"dorostenci","81",2,0,2,0,2,"Fulneček Šimon",2,null,"ženy",null,"EYOF",7,"EYOF7",25]
["2021-09-04","Krakov Judo Open","MT","j","Baudiš","Michal","bez","starší žáci","73",1,0,2,0,1,"Baudiš Michal",1,null,"muži",null,"EYOF",9,"EYOF9",20]
["2021-09-04","Krakov Judo Open","MT","j","Pospíšil","Jan","bez","starší žáci","66",0,0,1,0,0,"Pospíšil Jan",0,null,"veteráni",null,"ME",1,{"$f":"T32&U32","v":"ME1"},50]
["2021-09-04","Krakov Judo Open","MT","j","Bukovjanová","Charlotte",7,"starší žákyně","57",2,0,2,2,2,"Bukovjanová Charlotte",4,null,"kata",null,"ME",2,"ME2",40]
["2021-09-04","Krakov Judo Open","MT","j","Huvar","Jakub","bez","dorostenci","66",0,0,1,0,0,"Huvar Jakub",0,null,null,null,"ME",3,"ME3",35]
["2021-09-04","Krakov Judo Open","MT","j","Rapčanová","Alice",5,"dorostenky","63",2,0,2,3,2,"Rapčanová Alice",5,null,null,null,"ME",4,{"$f":"T35&U35","v":"ME4"},30]
["2021-09-04","Krakov Judo Open","MT","j","Rapčanová","Silvie","bez","dorostenky","48",1,0,2,0,1,"Rapčanová Silvie",1,null,null,null,"ME",5,"ME5",30]
["2021-09-04","Krakov Judo Open","MT","j","Lavrukhin","Dobrynya","bez","dorostenci","60",2,0,2,0,2,"Lavrukhin Dobrynya",2,null,null,null,"ME",6,{"$f":"T37&U37","v":"ME6"},25]
["2021-09-04","Krakov Judo Open","MT","j","Pačuta","Ladislav",5,"dorostenci","55",3,0,2,3,3,"Pačuta Ladislav",6,null,null,null,"ME",7,"ME7",25]
["2021-09-04","Krakov Judo Open","MT","j","Vavřínová","Pavla",2,"dorostenky","57",2,0,1,7,2,"Vavřínová Pavla",9,null,null,null,"ME",9,"ME9",20]
["2021-09-04","Krakov Judo Open","MT","j","Meixner","Michal","bez","dorostenci","66",1,0,2,0,1,"Meixner Michal",1,null,null,null,"MK",1,"MK1",7]
["2021-09-04","Krakov Judo Open","MT","j","Potůček","Tomáš",5,"dorostenci","73",2,0,2,3,2,"Potůček Tomáš",5,null,null,null,"MK",2,"MK2",5]
["2021-09-04","Krakov Judo Open","MT","j","Čebík","Filip","bez","dorostenci","66",1,0,1,0,1,"Čebík Filip",1,null,null,null,"MK",3,"MK3",4]
["2021-09-04","Krakov Judo Open","MT","j","Caletka","Petr","bez","dorostenci","66",0,0,1,0,0,"Caletka Petr",0,null,null,null,"MVC",1,"MVC1",6]
["2021-09-04","Krakov Judo Open","MT","j","Lindovský","Jiří",1,"dorostenci","66",5,0,0,10,5,"Lindovský Jiří",15,null,null,null,"MVC",2,"MVC2",5]
["2021-09-04","Krakov Judo Open","MT","j","Motyka","Dominik",7,"dorostenci","81",1,0,2,2,1,"Motyka Dominik",3,null,null,null,"MVC",3,"MVC3",3]
["2021-09-04","Krakov Judo Open","MT","j","Fulneček","Šimon",2,"dorostenci","81",2,0,1,7,2,"Fulneček Šimon",9,null,null,null,"PCR",1,"PCR1",10]
["2021-09-05","Krakov Judo Open","MT","j","Huvar","Matyáš",7,"mladší žáci","50",1,0,2,2,1,"Huvar Matyáš",3,null,null,null,"PCR",2,"PCR2",7]
["2021-09-05","Krakov Judo Open","MT","j","Škoda","Melichar",3,"mladší žáci","+60",3,0,1,5,3,"Škoda Melichar",8,null,null,null,"PCR",3,"PCR3",5]
["2021-09-05","Krakov Judo Open","MT","j","Stark","Vojtěch",3,"mladší žáci","60",2,0,1,5,2,"Stark Vojtěch",7,null,null,null,"PCR",4,"PCR4",3]
["2021-09-05","Krakov Judo Open","MT","j","Ciora","Jakub",7,"mladší žáci","50",2,0,2,2,2,"Ciora Jakub",4,null,null,null,"PCR",5,"PCR5",3]
["2021-09-05","Krakov Judo Open","MT","j","Šelong","Tadeáš","bez","mladší žáci","42",0,0,1,0,0,"Šelong Tadeáš",0,null,null,null,"PCR",6,"PCR6",2]
["2021-09-05","Krakov Judo Open","MT","j","Přichystal","Leon","bez","mladší žáci","42",0,0,1,0,0,"Přichystal Leon",0,null,null,null,"PCR",7,{"$f":"T52&U52","v":"PCR7"},2]
["2021-09-05","Krakov Judo Open","MT","j","Kuluris","Manolis","bez","mladší žáci","46",0,0,1,0,0,"Kuluris Manolis",0,null,null,null,"PK",1,{"$f":"T53&U53","v":"PK1"},6]
["2021-09-05","Krakov Judo Open","MT","j","Homolová","Kristýna",3,"starší žákyně","57",2,0,1,5,2,"Homolová Kristýna",7,null,null,null,"PK",2,"PK2",5]
["2021-09-11","Mizuno Cup - Český pohár Brno","CP","j","Vontor","Tomáš",5,"dorostenci","55",3,0,2,3,3,"Vontor Tomáš",6,null,null,null,"PK",3,"PK3",3]
["2021-09-11","Mizuno Cup - Český pohár Brno","CP","j","Lavrukhin","Dobrynya","bez","dorostenci","60",0,0,2,0,0,"Lavrukhin Dobrynya",0,null,null,null,"PSO",1,{"$f":"T56&U56","v":"PSO1"},6]
["2021-09-11","Mizuno Cup - Český pohár Brno","CP","j","Pačuta","Ladislav","bez","dorostenci","60",0,0,1,0,0,"Pačuta Ladislav",0,null,null,null,"PSO",2,"PSO2",5]
["2021-09-11","Mizuno Cup - Český pohár Brno","CP","j","Caletka","Michal",9,"dorostenci","60",2,0,2,0,2,"Caletka Michal",2,null,null,null,"PSO",3,"PSO3",3]
["2021-09-11","Mizuno Cup - Český pohár Brno","CP","j","Lindovský","Jiří",5,"dorostenci","66",4,0,2,3,4,"Lindovský Jiří",7,null,null,null,"VC",1,"VC1",6]
["2021-09-11","Mizuno Cup - Český pohár Brno","CP","j","Křížek","Šimon",3,"dorostenci","66",6,0,1,5,6,"Křížek Šimon",11,null,null,null,"VC",2,"VC2",5]
["2021-09-11","Mizuno Cup - Český pohár Brno","CP","j","Caletka","Petr","bez","dorostenci","66",1,0,2,0,1,"Caletka Petr",1,null,null,null,"VC",3,"VC3",3]
["2021-09-11","Mizuno Cup - Český pohár Brno","CP","j","Matýsek","Jan","bez","dorostenci","66",0,0,2,0,0,"Matýsek Jan",0,null,null,null,"MT",1,"MT1",10]
["2021-09-11","Mizuno Cup - Český pohár Brno","CP","j","Siuda","Adam",9,"dorostenci","66",4,0,2,0,4,"Siuda Adam",4,null,null,null,"MT",2,"MT2",7]
["2021-09-11","Mizuno Cup - Český pohár Brno","CP","j","Kolář","Vojtěch","bez","dorostenci","66",0,0,1,0,0,"Kolář Vojtěch",0,null,null,null,"MT",3,"MT3",5]
["2021-09-11","Mizuno Cup - Český pohár Brno","CP","j","Kršňák","Filip",3,"dorostenci","73",6,0,1,5,6,"Kršňák Filip",11,null,null,null,"MT",4,"MT4",3]
["2021-09-11","Mizuno Cup - Český pohár Brno","CP","j","Tomek","David","bez","dorostenci","73",1,0,1,0,1,"Tomek David",1,null,null,null,"MT",5,"MT5",3]
["2021-09-11","Mizuno Cup - Český pohár Brno","CP","j","Meixner","Michal","bez","dorostenci","66",1,0,1,0,1,"Meixner Michal",1,null,null,null,"MT",6,{"$f":"T67&U67","v":"MT6"},2]
["2021-09-11","Mizuno Cup - Český pohár Brno","CP","j","Fulneček","Šimon","bez","dorostenci","81",1,0,1,0,1,"Fulneček Šimon",1,null,null,null,"MT",7,{"$f":"T68&U68","v":"MT7"},2]
["2021-09-11","Mizuno Cup - Český pohár Brno","CP","j","Potůček","Tomáš",5,"dorostenci","73",4,0,2,3,4,"Potůček Tomáš",7,null,null,null,"DL",1,"DL1",20]
["2021-09-11","Mizuno Cup - Český pohár Brno","CP","j","Kuželová","Dominika","bez","dorostenky","63",1,0,1,0,1,"Kuželová Dominika",1,null,null,null,"DL",2,"DL2",15]
["2021-09-11","Mizuno Cup - Český pohár Brno","CP","j","Vavřínová","Pavla",7,"dorostenky","57",2,0,2,2,2,"Vavřínová Pavla",4,null,null,null,"DL",3,"DL3",10]
["2021-09-11","Mizuno Cup - Český pohár Brno","CP","j","Rapčanová","Silvie",5,"dorostenky","48",2,0,2,3,2,"Rapčanová Silvie",5,null,null,null,"DL",4,"DL4",7]
["2021-09-12","Mizuno Cup - Český pohár Brno","CP","j","Pospíšil","Jan","bez","starší žáci","66",0,0,1,{"$f":"IF(ISNA(VLOOKUP(C73&G73,$V$3:$W$95,2,FALSE)),0,VLOOKUP(C73&G73,$V$3:$W$95,2,FALSE))","v":0},{"$f":"IF(D73=\"d\",SUM(J73*2,K73),J73)","v":0},{"$f":"E73&\" \"&F73","v":"Pospíšil Jan"},{"$f":"SUM(M73,N73)","v":0},null,null,null,"DL",5,"DL5",7]
["2021-09-12","Mizuno Cup - Český pohár Brno","CP","j","Baudiš","Michal",2,"starší žáci","73",4,0,1,7,4,"Baudiš Michal",11,null,null,null,"DL",6,"DL6",5]
["2021-09-12","Mizuno Cup - Český pohár Brno","CP","j","Pavlík","Lukáš","bez","starší žáci","73",0,0,2,0,0,"Pavlík Lukáš",0,null,null,null,"DL",7,{"$f":"T75&U75","v":"DL7"},5]
["2021-09-12","Mizuno Cup - Český pohár Brno","CP","j","Zwiling","Šimon",7,"starší žáci","73",3,0,2,2,3,"Zwiling Šimon",5,null,null,null,"1.liga",1,{"$f":"T76&U76","v":"1.liga1"},15]
["2021-09-12","Mizuno Cup - Český pohár Brno","CP","j","Seibert","Marian","bez","starší žáci","60",1,0,2,0,1,"Seibert Marian",1,null,null,null,"1.liga",2,"1.liga2",10]
["2021-09-12","Mizuno Cup - Český pohár Brno","CP","j","Kanclíř","Šimon","bez","starší žáci","60",0,0,1,0,0,"Kanclíř Šimon",0,null,null,null,"1.liga",3,"1.liga3",7]
["2021-09-12","Mizuno Cup - Český pohár Brno","CP","j","Kaszperová","Kristýna",2,"starší žákyně","+63",3,0,1,7,3,"Kaszperová Kristýna",10,null,null,null,"1.liga",4,"1.liga4",5]
["2021-09-18","Pohár Olympijských nadějí Dobrá","VC","j","Šindel","Jakub","bez","mláďata","46",1,0,1,0,1,"Šindel Jakub",1,null,null,null,"1.liga",5,"1.liga5",4]
["2021-09-18","Pohár Olympijských nadějí Dobrá","PK","j","Kuluris","Manolis",1,"mladší žáci","46",4,0,0,6,4,"Kuluris Manolis",10,null,null,null,"1.liga",6,"1.liga6",3]
["2021-09-18","Pohár Olympijských nadějí Dobrá","PK","j","Bystrianský","Jan",5,"mladší žáci","38",1,0,2,0,1,"Bystrianský Jan",1,null,null,null,"1.liga",7,{"$f":"T82&U82","v":"1.liga7"},2]
["2021-09-18","Pohár Olympijských nadějí Dobrá","PK","j","Zoulová","Karolína",1,"mladší žákyně","30",2,0,0,6,2,"Zoulová Karolína",8,null,null,null,"EXL",1,{"$f":"T83&U83","v":"EXL1"},20]
["2021-09-18","Pohár Olympijských nadějí Dobrá","PK","j","Zoulová","Tereza",2,"mladší žákyně","33",1,0,1,5,1,"Zoulová Tereza",6,null,null,null,"EXL",2,"EXL2",15]
["2021-09-18","Pohár Olympijských nadějí Dobrá","PK","j","Šelong","Tadeáš",3,"mladší žáci","42",1,0,2,3,1,"Šelong Tadeáš",4,null,null,null,"EXL",3,"EXL3",10]
["2021-09-18","Pohár Olympijských nadějí Dobrá","PK","j","Stark","Vojtěch",1,"mladší žáci","60",2,0,0,6,2,"Stark Vojtěch",8,null,null,null,"EXL",4,"EXL4",7]
["2021-09-18","Pohár Olympijských nadějí Dobrá","PK","j","Svoboda","Jindřich","bez","mladší žáci","34",0,0,2,0,0,"Svoboda Jindřich",0,null,null,null,"EXL",5,"EXL5",7]
["2021-09-18","Pohár Olympijských nadějí Dobrá","PK","j","Garbulinský","Ladislav","bez","mladší žáci","55",0,0,2,0,0,"Garbulinský Ladislav",0,null,null,null,"EXL",6,"EXL6",5]
["2021-09-18","Pohár Olympijských nadějí Dobrá","PK","j","Slováková","Tereza",4,"mladší žákyně","52",1,0,3,0,1,"Slováková Tereza",1,null,null,null,"EXL",7,{"$f":"T89&U89","v":"EXL7"},5]
["2021-09-18","Pohár Olympijských nadějí Dobrá","PK","j","To","Vojtěch",1,"mladší žáci","30",3,0,0,6,3,"To Vojtěch",9,null,null,null,"MS",1,{"$f":"T90&U90","v":"MS1"},100]
["2021-09-18","Pohár Olympijských nadějí Dobrá","PK","j","Hon","Sebastián","bez","mladší žáci","46",0,0,2,0,0,"Hon Sebastián",0,null,null,null,"MS",2,"MS2",80]
["2021-09-18","Pohár Olympijských nadějí Dobrá","PK","j","Stránský","David","bez","mladší žáci","38",0,0,2,0,0,"Stránský David",0,null,null,null,"MS",3,"MS3",70]
["2021-09-18","Pohár Olympijských nadějí Dobrá","PK","j","Musial","Šimon",7,"mladší žáci","46",0,0,2,0,0,"Musial Šimon",0,null,null,null,"MS",5,"MS5",60]
["2021-09-18","Pohár Olympijských nadějí Dobrá","PK","j","Ciora","Jakub",1,"mladší žáci","50",4,0,0,6,4,"Ciora Jakub",10,null,null,null,"MS",7,"MS7",50]
["2021-09-18","Pohár Olympijských nadějí Dobrá","PK","j","Škoda","Melichar",1,"mladší žáci","+66",2,0,0,6,2,"Škoda Melichar",8,null,null,null,"MS",9,"MS9",40]
["2021-09-18","Pohár Olympijských nadějí Dobrá","PK","j","Nytra","Sebastián",5,"mladší žáci","46",1,0,2,0,1,"Nytra Sebastián",1]
["2021-09-18","Pohár Olympijských nadějí Dobrá","PK","j","Kret","Matyáš",5,"mladší žáci","46",2,0,1,0,2,"Kret Matyáš",2]
["2021-09-18","Pohár Olympijských nadějí Dobrá","PK","j","Ilenčík","Miroslav","bez","mladší žáci","34",0,0,3,0,0,"Ilenčík Miroslav",0]
["2021-09-18","Pohár Olympijských nadějí Dobrá","PK","j","Přichystal","Leon",2,"mladší žáci","42",3,0,1,5,3,"Přichystal Leon",8]
["2021-09-18","Pohár Olympijských nadějí Dobrá","PK","j","Vlček","Martin",7,"mladší žáci","38",2,0,1,0,2,"Vlček Martin",2]
["2021-09-18","Pohár Olympijských nadějí Dobrá","PK","j","Zwiling","Šimon",1,"starší žáci","73",4,0,0,6,4,"Zwiling Šimon",10]
["2021-09-18","Pohár Olympijských nadějí Dobrá","PK","j","Pavlík","Lukáš",3,"starší žáci","73",2,0,2,3,2,"Pavlík Lukáš",5]
["2021-09-18","Pohár Olympijských nadějí Dobrá","PK","j","Seibert","Marian",1,"starší žáci","60",4,0,0,6,4,"Seibert Marian",10]
["2021-09-18","Pohár Olympijských nadějí Dobrá","PK","j","Selinger","David",4,"starší žáci","73",1,0,3,0,1,"Selinger David",1]
["2021-09-18","Pohár Olympijských nadějí Dobrá","PK","j","Bukovjanová","Charlotte",1,"starší žákyně","57",5,0,0,6,5,"Bukovjanová Charlotte",11]
["2021-09-18","Pohár Olympijských nadějí Dobrá","PK","j","Ožana","Maxmilián","bez","starší žáci","46",0,0,3,0,0,"Ožana Maxmilián",0]
["2021-09-18","Pohár Olympijských nadějí Dobrá","PK","j","Valošek","Jakub",3,"starší žáci","46",1,0,2,3,1,"Valošek Jakub",4]
["2021-09-18","Pohár Olympijských nadějí Dobrá","PK","j","Dryšl","Adam",5,"starší žáci","50",2,0,2,0,2,"Dryšl Adam",2]
["2021-09-18","Pohár Olympijských nadějí Dobrá","PK","j","Kanclíř","Šimon",3,"starší žáci","55",3,0,1,3,3,"Kanclíř Šimon",6]
["2021-09-18","Pohár Olympijských nadějí Dobrá","PK","j","Plaček","Viktor",3,"starší žáci","60",2,0,2,3,2,"Plaček Viktor",5]
["2021-09-18","Kaunas Judo Open","MT","j","Pačuta","Ladislav",2,"dorostenci","60",3,0,1,7,3,"Pačuta Ladislav",10]
["2021-09-18","Kaunas Judo Open","MT","j","Lavrukhin","Dobrynya",3,"dorostenci","60",4,0,1,5,4,"Lavrukhin Dobrynya",9]
["2021-09-18","Kaunas Judo Open","MT","j","Kristen","Nicolas",7,"dorostenci","60",1,0,2,2,1,"Kristen Nicolas",3]
["2021-09-18","Kaunas Judo Open","MT","j","Meixner","Michal",5,"dorostenci","66",1,0,2,3,1,"Meixner Michal",4]
["2021-09-18","Kaunas Judo Open","MT","j","Potůček","Tomáš",3,"dorostenci","73",4,0,1,5,4,"Potůček Tomáš",9]
["2021-09-25","Velká cena Ostravy","VC","j","Prudil","Adam",1,"mláďata",null,3,0,1,6,3,"Prudil Adam",9]
["2021-09-25","Velká cena Ostravy","VC","j","Nováková","Victoria",2,"mláďata",null,1,0,1,5,1,"Nováková Victoria",6]
["2021-09-25","Velká cena Ostravy","VC","j","Šelongová","Viktorie","bez","mláďata",null,0,0,2,0,0,"Šelongová Viktorie",0]
["2021-09-25","Velká cena Ostravy","VC","j","Kuluri","Theofania","bez","mláďata",null,0,0,2,0,0,"Kuluri Theofania",0]
["2021-09-25","Velká cena Ostravy","VC","j","Jahoda","Pavel",3,"mláďata",null,0,0,2,3,0,"Jahoda Pavel",3]
["2021-09-25","Velká cena Ostravy","VC","j","Kuchejdová","Veronika",3,"mláďata",null,2,0,2,3,2,"Kuchejdová Veronika",5]
["2021-09-25","Velká cena Ostravy","VC","j","Hladký","Dalimil",7,"mláďata",null,0,0,2,0,0,"Hladký Dalimil",0]
["2021-09-25","Velká cena Ostravy","VC","j","Bauko","Viktor","bez","mláďata",null,0,0,2,0,0,"Bauko Viktor",0]
["2021-09-25","Velká cena Ostravy","VC","j","Chovanec","Martin",2,"mláďata",null,2,0,1,5,2,"Chovanec Martin",7]
["2021-09-25","Velká cena Ostravy","VC","j","Maslík","Teodor",4,"mláďata",null,0,0,3,0,0,"Maslík Teodor",0]
["2021-09-25","Velká cena Ostravy","VC","j","Lechovič","Tobiáš",1,"mláďata",null,3,0,0,6,3,"Lechovič Tobiáš",9]
["2021-09-25","Velká cena Ostravy","VC","j","Vlček","Viktor",3,"mláďata",null,1,0,2,3,1,"Vlček Viktor",4]
["2021-09-25","Velká cena Ostravy","VC","j","Bokiy","Konstantin",1,"mláďata",null,3,0,0,6,3,"Bokiy Konstantin",9]
["2021-09-25","Velká cena Ostravy","VC","j","Škoda","Melichar",1,"mladší žáci","+66",2,0,0,6,2,"Škoda Melichar",8]
["2021-09-25","Velká cena Ostravy","VC","j","Kuluris","Manolis",2,"mladší žáci","46",2,0,1,5,2,"Kuluris Manolis",7]
["2021-09-25","Velká cena Ostravy","VC","j","Bystrianský","Jan",5,"mladší žáci","38",2,0,2,0,2,"Bystrianský Jan",2]
["2021-09-25","Velká cena Ostravy","VC","j","Vlček","Martin",5,"mladší žáci","38",1,0,2,0,1,"Vlček Martin",1]
["2021-09-25","Velká cena Ostravy","VC","j","Svoboda","Jindřich","bez","mladší žáci","38",0,0,2,0,0,"Svoboda Jindřich",0]
["2021-09-25","Velká cena Ostravy","VC","j","Šelong","Tadeáš",5,"mladší žáci","42",1,0,2,0,1,"Šelong Tadeáš",1]
["2021-09-25","Velká cena Ostravy","VC","j","To","Vojtěch",1,"mladší žáci","30",4,0,0,6,4,"To Vojtěch",10]
["2021-09-25","Velká cena Ostravy","VC","j","Boček","Petr",5,"mladší žáci","30",0,0,4,0,0,"Boček Petr",0]
["2021-09-25","Velká cena Ostravy","VC","j","Stránský","David","bez","mladší žáci","38",1,0,2,{"$f":"IF(ISNA(VLOOKUP(C137&G137,$V$3:$W$95,2,FALSE)),0,VLOOKUP(C137&G137,$V$3:$W$95,2,FALSE))","v":0},{"$f":"IF(D137=\"d\",SUM(J137*2,K137),J137)","v":1},{"$f":"E137&\" \"&F137","v":"Stránský David"},{"$f":"SUM(M137,N137)","v":1}]
["2021-09-25","Velká cena Ostravy","VC","j","Přichystal","Leon",3,"mladší žáci","42",3,0,1,3,3,"Přichystal Leon",6]
["2021-09-25","Velká cena Ostravy","VC","j","Berka","Daniel","bez","mladší žáci","42",0,0,1,0,0,"Berka Daniel",0]
["2021-09-25","Velká cena Ostravy","VC","j","Kret","Matyáš","bez","mladší žáci","46",0,0,2,0,0,"Kret Matyáš",0]
["2021-09-25","Velká cena Ostravy","VC","j","Ciora","Jakub",3,"mladší žáci","50",2,0,1,3,2,"Ciora Jakub",5]
["2021-09-25","Velká cena Ostravy","VC","j","Huvar","Matyáš",1,"mladší žáci","55",4,0,0,6,4,"Huvar Matyáš",10]
["2021-09-25","Velká cena Ostravy","VC","j","Stark","Vojtěch",1,"mladší žáci","60",2,0,0,6,2,"Stark Vojtěch",8]
["2021-09-25","Velká cena Ostravy","VC","j","Slováková","Tereza",3,"mladší žákyně","52",1,0,2,3,1,"Slováková Tereza",4]
["2021-09-25","Velká cena Ostravy","VC","j","Zwiling","Šimon",2,"starší žáci","73",3,0,1,5,3,"Zwiling Šimon",8]
["2021-09-25","Velká cena Ostravy","VC","j","Kaszperová","Kristýna",1,"starší žákyně","+63",3,0,0,6,3,"Kaszperová Kristýna",9]
["2021-09-25","Velká cena Ostravy","VC","j","Seibert","Marian",1,"starší žáci","60",2,0,0,6,2,"Seibert Marian",8]
["2021-09-25","Velká cena Ostravy","VC","j","Salinger","David",5,"starší žáci","73",0,0,4,0,0,"Salinger David",0]
["2021-09-25","Velká cena Ostravy","VC","j","Bukovjanová","Charlotte",2,"starší žákyně","57",1,0,1,5,1,"Bukovjanová Charlotte",6]
["2021-09-25","Velká cena Ostravy","VC","j","Murin","Jan","bez","starší žáci","55",0,0,2,0,0,"Murin Jan",0]
["2021-09-25","Velká cena Ostravy","VC","j","Valošek","Jakub","bez","starší žáci","46",1,0,2,0,1,"Valošek Jakub",1]
["2021-09-25","Velká cena Ostravy","VC","j","Dryšl","Adam","bez","starší žáci","50",1,0,2,0,1,"Dryšl Adam",1]
["2021-09-25","Velká cena Ostravy","VC","j","Kanclíř","Šimon",3,"starší žáci","55",2,0,1,3,2,"Kanclíř Šimon",5]
["2021-09-25","Velká cena Ostravy","VC","j","Kulhánek","Adam",3,"starší žáci","66",2,0,1,3,2,"Kulhánek Adam",5]
["2021-09-25","Velká cena Ostravy","VC","j","Pospíšil","Jan",3,"starší žáci","66",2,0,1,3,2,"Pospíšil Jan",5]
["2021-09-25","Velká cena Ostravy","VC","j","Baudiš","Michal",1,"starší žáci","73",4,0,0,6,4,"Baudiš Michal",10]
["2021-10-03","Dorostenecká liga - 1. kolo Olomouc","DL","d","Fulneček","Šimon",null,"dorostenci","81",4,0,1,0,8,"Fulneček Šimon",8]
["2021-10-03","Dorostenecká liga - 1. kolo Olomouc","DL","d","Vontor","Tomáš",null,"dorostenci","55",3,0,2,0,6,"Vontor Tomáš",6]
["2021-10-03","Dorostenecká liga - 1. kolo Olomouc","DL","d","Motyka","Dominik",null,"dorostenci","81",3,0,0,0,6,"Motyka Dominik",6]
["2021-10-03","Dorostenecká liga - 1. kolo Olomouc","DL","d","Křížek","Šimon",null,"dorostenci","66",3,0,0,0,6,"Křížek Šimon",6]
["2021-10-03","Dorostenecká liga - 1. kolo Olomouc","DL","d","Kršňák","Filip",null,"dorostenci","73",3,0,0,0,6,"Kršňák Filip",6]
["2021-10-03","Dorostenecká liga - 1. kolo Olomouc","DL","d","Pačuta","Ladislav",null,"dorostenci","60",2,0,0,0,4,"Pačuta Ladislav",4]
["2021-10-03","Dorostenecká liga - 1. kolo Olomouc","DL","d","Chlebovský","Daniel",null,"dorostenci","+90",2,0,0,0,4,"Chlebovský Daniel",4]
["2021-10-03","Dorostenecká liga - 1. kolo Olomouc","DL","d","Caletka","Michal",null,"dorostenci","60",1,0,0,0,2,"Caletka Michal",2]
["2021-10-03","Dorostenecká liga - 1. kolo Olomouc","DL","d","Čebík","Filip",null,"dorostenci","66",1,0,0,0,2,"Čebík Filip",2]
["2021-10-03","Dorostenecká liga - 1. kolo Olomouc","DL","d","Lindovský","Jiří",null,"dorostenci","73",1,0,0,0,2,"Lindovský Jiří",2]
["2021-10-03","Dorostenecká liga - 1. kolo Olomouc","DL","d","Čerchla","Michal",null,"dorostenci","90",1,0,0,0,2,"Čerchla Michal",2]
["2021-10-03","Dorostenecká liga - 1. kolo Olomouc","DL","d","Siuda","Adam",null,"dorostenci","66",0,0,1,0,0,"Siuda Adam",0]
["2021-10-03","Dorostenecká liga - 1. kolo Olomouc","DL","d","Caletka","Petr",null,"dorostenci","66",0,0,0,0,0,"Caletka Petr",0]
["2021-10-03","Dorostenecká liga - 1. kolo Olomouc","DL","d","Potůček","Tomáš",null,"dorostenci","73",0,0,0,0,0,"Potůček Tomáš",0]
["2021-10-03","Dorostenecká liga - 1. kolo Olomouc","DL","d","Lavrukhin","Dobrynya",null,"dorostenci","73",0,0,0,0,0,"Lavrukhin Dobrynya",0]
["2021-08-07","Hranický pohár","MVC","j","Malaczynski","Filip",3,"junioři","66",3,0,1,3,3,"Malaczynski Filip",6]
["2021-08-07","Hranický pohár","MVC","j","Václavková","Tereza",1,"juniorky","63",3,0,0,6,3,"Václavková Tereza",9]
["2021-08-07","Hranický pohár","MVC","j","Václavková","Tereza",2,"ženy","63",2,0,1,5,2,"Václavková Tereza",7]
["2021-08-07","Hranický pohár","MVC","j","Michálková","Karolína",2,"ženy","+70",1,0,1,5,1,"Michálková Karolína",6]
["2021-08-07","Hranický pohár","MVC","j","Čerchlová","Markéta","bez","ženy","+70",0,0,2,0,0,"Čerchlová Markéta",0]
["2021-08-07","Hranický pohár","MVC","j","Silvestr","Matěj",1,"muži","+90",4,0,0,6,4,"Silvestr Matěj",10]
["2021-08-07","Hranický pohár","MVC","j","Malaczynski","Filip",7,"muži","66",1,0,2,0,1,"Malaczynski Filip",1]
["2021-08-07","Hranický pohár","MVC","j","Rýpar","Radek",3,"muži","66",4,0,1,3,4,"Rýpar Radek",7]
["2021-09-04","Mezinárodní mistrovství Maďarska","MT","j","Martínek","Roman",1,"veteráni","100",3,0,0,10,3,"Martínek Roman",13]
["2021-09-25","Mistrovství ČR Praha","MCR","j","Martínek","Roman",2,"veteráni","100",2,0,1,15,2,"Martínek Roman",17]
["2021-09-25","Mistrovství ČR Praha","MCR","j","Schoffer","Radim",2,"veteráni","+100",1,0,1,15,1,"Schoffer Radim",16]
["2021-09-25","Mistrovství ČR Praha","MCR","j","Moravec","Vlastimil",2,"veteráni","73",0,0,2,15,0,"Moravec Vlastimil",15]
["2021-09-04","Akademické MČR","MCR","j","Rýpar","Radek",1,"muži","66",3,0,1,20,3,"Rýpar Radek",23]
["2021-09-04","Akademické MČR","MCR","j","Silvestr","Matěj",1,"muži","100",4,0,0,20,4,"Silvestr Matěj",24]
["2021-09-04","Akademické MČR","MCR","j","Michálková","Karolína",1,"ženy","78",2,0,0,20,2,"Michálková Karolína",22]
["2021-10-09","KP ml. a st. žáků a žaček","PK","j","Valošek","Jakub",3,"starší žáci","46",2,0,1,3,2,"Valošek Jakub",5]
["2021-10-09","KP ml. a st. žáků a žaček","PK","j","Ožana","Maxmilián",5,"starší žáci","46",0,0,2,0,0,"Ožana Maxmilián",0]
["2021-10-09","KP ml. a st. žáků a žaček","PK","j","Dryšl","Adam",5,"starší žáci","50",0,0,2,0,0,"Dryšl Adam",0]
["2021-10-09","KP ml. a st. žáků a žaček","PK","j","Plaček","Viktor",2,"starší žáci","60",1,0,1,5,1,"Plaček Viktor",6]
["2021-10-09","KP ml. a st. žáků a žaček","PK","j","Seibert","Marian",1,"starší žáci","60",2,0,0,6,2,"Seibert Marian",8]
["2021-10-09","KP ml. a st. žáků a žaček","PK","j","Pospíšil","Jan",2,"starší žáci","66",3,0,1,5,3,"Pospíšil Jan",8]
["2021-10-09","KP ml. a st. žáků a žaček","PK","j","Baudiš","Michal",1,"starší žáci","73",3,0,0,6,3,"Baudiš Michal",9]
["2021-10-09","KP ml. a st. žáků a žaček","PK","j","Salinger","David",3,"starší žáci","73",1,0,2,3,1,"Salinger David",4]
["2021-10-09","KP ml. a st. žáků a žaček","PK","j","Zwiling","Šimon",2,"starší žáci","73",2,0,1,5,2,"Zwiling Šimon",7]
["2021-10-09","KP ml. a st. žáků a žaček","PK","j","Trojek","Václav",5,"starší žáci","+73",1,0,2,0,1,"Trojek Václav",1]
["2021-10-09","KP ml. a st. žáků a žaček","PK","j","Galamboš","Kristián",5,"starší žáci","+73",0,0,2,0,0,"Galamboš Kristián",0]
["2021-10-09","KP ml. a st. žáků a žaček","PK","j","Kocmanová","Lucie",2,"starší žákyně","48",0,0,2,5,0,"Kocmanová Lucie",5]
["2021-10-09","KP ml. a st. žáků a žaček","PK","j","Bukovjanová","Charlotte",1,"starší žákyně","63",3,0,0,6,3,"Bukovjanová Charlotte",9]
["2021-10-09","KP ml. a st. žáků a žaček","PK","j","Kaszperová","Kristýna",1,"starší žákyně","+63",3,0,0,6,3,"Kaszperová Kristýna",9]
["2021-10-09","KP ml. a st. žáků a žaček","PK","j","Bokiy","Alexandra",4,"starší žákyně","+63",0,0,3,{"$f":"IF(ISNA(VLOOKUP(C201&G201,$V$3:$W$95,2,FALSE)),0,VLOOKUP(C201&G201,$V$3:$W$95,2,FALSE))","v":0},{"$f":"IF(D201=\"d\",SUM(J201*2,K201),J201)","v":0},{"$f":"E201&\" \"&F201","v":"Bokiy Alexandra"},{"$f":"SUM(M201,N201)","v":0}]
["2021-10-09","KP ml. a st. žáků a žaček","PK","j","Boček","Petr",4,"mladší žáci","30",0,0,3,0,0,"Boček Petr",0]
["2021-10-09","KP ml. a st. žáků a žaček","PK","j","To","Vojtěch",5,"mladší žáci","34",1,0,4,0,1,"To Vojtěch",1]
["2021-10-09","KP ml. a st. žáků a žaček","PK","j","Vlček","Martin",1,"mladší žáci","38",3,0,0,6,3,"Vlček Martin",9]
["2021-10-09","KP ml. a st. žáků a žaček","PK","j","Berka","Daniel",5,"mladší žáci","42",1,0,4,0,1,"Berka Daniel",1]
["2021-10-09","KP ml. a st. žáků a žaček","PK","j","Šelong","Tadeáš",3,"mladší žáci","42",3,0,2,3,3,"Šelong Tadeáš",6]
["2021-10-09","KP ml. a st. žáků a žaček","PK","j","Přichystal","Leon",2,"mladší žáci","42",4,0,1,5,4,"Přichystal Leon",9]
["2021-10-09","KP ml. a st. žáků a žaček","PK","j","Kuluris","Manolis",1,"mladší žáci","46",3,0,0,6,3,"Kuluris Manolis",9]
["2021-10-09","KP ml. a st. žáků a žaček","PK","j","Musial","Šimon",3,"mladší žáci","46",2,0,1,3,2,"Musial Šimon",5]
["2021-10-09","KP ml. a st. žáků a žaček","PK","j","Kret","Matyáš",3,"mladší žáci","46",2,0,1,3,2,"Kret Matyáš",5]
["2021-10-09","KP ml. a st. žáků a žaček","PK","j","Ciora","Jakub",2,"mladší žáci","50",2,0,1,5,2,"Ciora Jakub",7]
["2021-10-09","KP ml. a st. žáků a žaček","PK","j","Huvar","Matyáš",2,"mladší žáci","55",2,0,1,5,2,"Huvar Matyáš",7]
["2021-10-09","KP ml. a st. žáků a žaček","PK","j","Bravanský","Marek","bez","mladší žáci","55",0,0,2,0,0,"Bravanský Marek",0]
["2021-10-09","KP ml. a st. žáků a žaček","PK","j","Garbulinský","Ladislav",3,"mladší žáci","55",2,0,1,3,2,"Garbulinský Ladislav",5]
["2021-10-09","KP ml. a st. žáků a žaček","PK","j","Stark","Vojtěch",1,"mladší žáci","60",2,0,0,6,2,"Stark Vojtěch",8]
["2021-10-09","KP ml. a st. žáků a žaček","PK","j","Škoda","Melichar",1,"mladší žáci","+60",2,0,0,6,2,"Škoda Melichar",8]
["2021-10-09","KP ml. a st. žáků a žaček","PK","j","Zoulová","Tereza",2,"mladší žákyně","36",0,0,2,5,0,"Zoulová Tereza",5]
["2021-10-09","KP ml. a st. žáků a žaček","PK","j","Slováková","Tereza",3,"mladší žákyně","52",0,0,2,3,0,"Slováková Tereza",3]
["2021-10-16","MČR juniorů a juniorek","MCR","j","Václavková","Tereza",2,"juniorky","57",2,0,1,15,2,"Václavková Tereza",17]
["2021-10-16","MČR juniorů a juniorek","MCR","j","Čerchlová","Markéta",3,"juniorky","+78",1,0,1,10,1,"Čerchlová Markéta",11]
["2021-10-16","MČR juniorů a juniorek","MCR","j","Vršek","Jakub",5,"junioři","60",1,0,2,7,1,"Vršek Jakub",8]
["2021-10-16","MČR juniorů a juniorek","MCR","j","Malaczynski","Filip",9,"junioři","66",1,0,1,0,1,"Malaczynski Filip",1]
["2021-10-16","MČR juniorů a juniorek","MCR","j","Kršňák","Filip","bez","junioři","73",0,0,2,0,0,"Kršňák Filip",0]
["2021-10-16","MČR juniorů a juniorek","MCR","j","Motyka","Dominik",5,"junioři","81",3,0,2,7,3,"Motyka Dominik",10]
["2021-10-17","MČR družstev dorostenk","MCR","d","Rapčanová","Silvie",4,"dorostenky","48",3,0,2,7,6,"Rapčanová Silvie",13]
["2021-10-17","MČR družstev dorostenk","MCR","d","Kuželová","Dominika",4,"dorostenky","63",2,0,2,7,4,"Kuželová Dominika",11]
["2021-10-17","MČR družstev dorostenk","MCR","d","Vavřínová","Pavla",4,"dorostenky","57",1,0,1,7,2,"Vavřínová Pavla",9]
["2021-10-17","MČR družstev dorostenk","MCR","d","Rapčanová","Alice",4,"dorostenky","70",1,0,4,7,2,"Rapčanová Alice",9]
["2021-10-23","MT GER Brémy","MT","j","Fulneček","Šimon",7,"dorostenci","81",2,0,2,2,2,"Fulneček Šimon",4]
["2021-08-03","Koroška open - Slovinsko","MT","j","Rýpar","Radek",1,"muži","60",3,0,0,10,3,"Rýpar Radek",13]
["2021-08-03","Koroška open - Slovinsko","MT","j","Polašková","Kristýna",1,"ženy","57",4,0,0,10,4,"Polašková Kristýna",14]
["2021-08-03","Koroška open - Slovinsko","MT","j","Šimek","Daniel","bez","muži","66",0,0,2,0,0,"Šimek Daniel",0]
["2021-08-03","Koroška open - Slovinsko","MT","j","Čerchlová","Markéta",1,"ženy","+78",2,0,0,10,2,"Čerchlová Markéta",12]
["2021-08-03","Koroška open - Slovinsko","MT","j","Šimek","Daniel",2,"junioři","66",4,0,1,7,4,"Šimek Daniel",11]
["2021-08-03","Koroška open - Slovinsko","MT","j","Čerchlová","Markéta",1,"juniorky","+78",2,0,0,10,2,"Čerchlová Markéta",12]
["2021-09-11","Mizuno Cup - Český pohár Brno","CP","j","Rýpar","Radek",1,"muži","60",4,0,0,10,4,"Rýpar Radek",14]
["2021-09-11","Mizuno Cup - Český pohár Brno","CP","j","Silvestr","Matěj",1,"muži","100",2,0,0,10,2,"Silvestr Matěj",12]
["2021-09-11","Mizuno Cup - Český pohár Brno","CP","j","Čerchlová","Markéta",2,"ženy","+78",1,0,1,7,1,"Čerchlová Markéta",8]
["2021-09-11","Mizuno Cup - Český pohár Brno","CP","j","Michálková","Karolína",3,"ženy","78",2,0,2,5,2,"Michálková Karolína",7]
["2021-09-11","Mizuno Cup - Český pohár Brno","CP","j","Václavková","Tereza",3,"ženy","57",2,0,1,5,2,"Václavková Tereza",7]
["2021-09-11","Mizuno Cup - Český pohár Brno","CP","j","Svoboda","Jiří",7,"muži","73",2,0,2,2,2,"Svoboda Jiří",4]
["2021-09-11","Mizuno Cup - Český pohár Brno","CP","j","Malaczynski","Filip","bez","muži","66",0,0,2,0,0,"Malaczynski Filip",0]
["2021-09-11","Mizuno Cup - Český pohár Brno","CP","j","Šmatelka","Ondřej","bez","muži","73",0,0,1,0,0,"Šmatelka Ondřej",0]
["2021-09-11","Mizuno Cup - Český pohár Brno","CP","j","Silvestr","Matěj","bez","muži","open",1,0,1,0,1,"Silvestr Matěj",1]
["2021-10-02","MČR mužů a žen","MCR","j","Rýpar","Radek",1,"muži","60",2,0,0,20,2,"Rýpar Radek",22]
["2021-10-02","MČR mužů a žen","MCR","j","Vršek","Jakub",5,"muži","60",1,0,2,7,1,"Vršek Jakub",8]
["2021-10-02","MČR mužů a žen","MCR","j","Malaczynski","Filip",5,"muži","66",2,0,2,7,2,"Malaczynski Filip",9]
["2021-10-02","MČR mužů a žen","MCR","j","Svoboda","Jiří","bez","muži","73",0,0,1,0,0,"Svoboda Jiří",0]
["2021-10-02","MČR mužů a žen","MCR","j","Šmatelka","Ondřej","bez","muži","73",0,0,1,0,0,"Šmatelka Ondřej",0]
["2021-10-02","MČR mužů a žen","MCR","j","Silvestr","Matěj",2,"muži","100",2,0,1,15,2,"Silvestr Matěj",17]
["2021-10-02","MČR mužů a žen","MCR","j","Polašková","Kristýna",2,"ženy","57",3,0,1,15,3,"Polašková Kristýna",18]
["2021-10-02","MČR mužů a žen","MCR","j","Václavková","Tereza",3,"ženy","63",3,0,1,10,3,"Václavková Tereza",13]
["2021-10-02","MČR mužů a žen","MCR","j","Čerchlová","Markéta","bez","ženy","+78",0,0,3,0,0,"Čerchlová Markéta",0]
["2021-11-20","Velká cena Karviné","VC","j","To","Vojtěch",3,"mladší žáci","34",1,0,2,3,1,"To Vojtěch",4]
["2021-11-20","Velká cena Karviné","VC","j","Bystrianský","Jan",3,"mladší žáci","38",3,0,1,3,3,"Bystrianský Jan",6]
["2021-11-20","Velká cena Karviné","VC","j","Svoboda","Jindřich",7,"mladší žáci","38",0,0,2,0,0,"Svoboda Jindřich",0]
["2021-11-20","Velká cena Karviné","VC","j","Stránský","David",5,"mladší žáci","38",1,0,2,0,1,"Stránský David",1]
["2021-11-20","Velká cena Karviné","VC","j","Přichystal","Leon",1,"mladší žáci","42",3,0,0,6,3,"Přichystal Leon",9]
["2021-11-20","Velká cena Karviné","VC","j","Třos","Vojtěch",7,"mladší žáci","42",0,0,2,0,0,"Třos Vojtěch",0]
["2021-11-20","Velká cena Karviné","VC","j","Nytra","Sebastián",3,"mladší žáci","46",1,0,2,3,1,"Nytra Sebastián",4]
["2021-11-20","Velká cena Karviné","VC","j","Musial","Šimon",3,"mladší žáci","46",2,0,2,3,2,"Musial Šimon",5]
["2021-11-20","Velká cena Karviné","VC","j","Kret","Matyáš",5,"mladší žáci","50",2,0,2,0,2,"Kret Matyáš",2]
["2021-11-20","Velká cena Karviné","VC","j","Ciora","Jakub",3,"mladší žáci","50",2,0,1,3,2,"Ciora Jakub",5]
["2021-11-20","Velká cena Karviné","VC","j","Bravanský","Marek",7,"mladší žáci","50",0,0,2,0,0,"Bravanský Marek",0]
["2021-11-20","Velká cena Karviné","VC","j","Huvar","Matyáš",1,"mladší žáci","55",2,0,0,{"$f":"IF(ISNA(VLOOKUP(C265&G265,$V$3:$W$95,2,FALSE)),0,VLOOKUP(C265&G265,$V$3:$W$95,2,FALSE))","v":6},{"$f":"IF(D265=\"d\",SUM(J265*2,K265),J265)","v":2},{"$f":"E265&\" \"&F265","v":"Huvar Matyáš"},{"$f":"SUM(M265,N265)","v":8}]
["2021-11-20","Velká cena Karviné","VC","j","Stark","Vojtěch",1,"mladší žáci","66",3,0,0,6,3,"Stark Vojtěch",9]
["2021-11-20","Velká cena Karviné","VC","j","Kožušník","Václav",3,"mladší žáci","66",1,0,2,3,1,"Kožušník Václav",4]
["2021-11-20","Velká cena Karviné","VC","j","Valošek","Jakub",4,"starší žáci","50",0,0,3,0,0,"Valošek Jakub",0]
["2021-11-20","Velká cena Karviné","VC","j","Pavlík","Lukáš",3,"starší žáci","73",0,0,2,3,0,"Pavlík Lukáš",3]
["2021-11-20","Velká cena Karviné","VC","j","Baudiš","Michal",1,"starší žáci","73",2,0,0,6,2,"Baudiš Michal",8]
["2021-11-20","Velká cena Karviné","VC","j","Zwiling","Šimon",2,"starší žáci","73",1,0,1,5,1,"Zwiling Šimon",6]
["2021-11-20","Velká cena Karviné","VC","j","Bukovjanová","Charlotte",1,"starší žákyně","57",2,0,1,6,2,"Bukovjanová Charlotte",8]
["2021-11-20","Velká cena Karviné","VC","j","Kristen","Nikolas",2,"dorostenci","66",3,0,1,5,3,"Kristen Nikolas",8]
["2021-11-20","Velká cena Karviné","VC","j","Kolář","Vojtěch",3,"dorostenci","66",1,0,2,3,1,"Kolář Vojtěch",4]
["2021-11-20","Velká cena Karviné","VC","j","Kožušník","Vojtěch","bez","dorostenci","66",0,0,2,0,0,"Kožušník Vojtěch",0]
["2021-11-06","Krajský přebor mláďat","PK","j","Prudil","Adam",1,"mláďata","28",4,0,0,6,4,"Prudil Adam",10]
["2021-11-06","Krajský přebor mláďat","PK","j","Šelongová","Viktorie",2,"mláďata","28",3,0,1,5,3,"Šelongová Viktorie",8]
["2021-11-06","Krajský přebor mláďat","PK","j","Kuchejdová","Veronika",3,"mláďata","28",2,0,2,3,2,"Kuchejdová Veronika",5]
["2021-11-06","Krajský přebor mláďat","PK","j","Chovanec","Martin",3,"mláďata","30",2,0,2,3,2,"Chovanec Martin",5]
["2021-11-06","Krajský přebor mláďat","PK","j","Kouřil","Sebastián",2,"mláďata","32",1,0,1,5,1,"Kouřil Sebastián",6]
["2021-11-06","Krajský přebor mláďat","PK","j","Vlček","Viktor",3,"mláďata","32",0,0,2,3,0,"Vlček Viktor",3]
["2021-11-06","Krajský přebor mláďat","PK","j","Podivinský","Marek",5,"mláďata","34",2,0,2,0,2,"Podivinský Marek",2]
["2021-11-06","Krajský přebor mláďat","PK","j","Bauko","Viktor",3,"mláďata","38",3,0,3,3,3,"Bauko Viktor",6]
["2021-11-06","Krajský přebor mláďat","PK","j","Nováková","Victoria",1,"mláďata","40",4,0,0,6,4,"Nováková Victoria",10]
["2021-11-06","Krajský přebor mláďat","PK","j","Lechovič","Tobiáš",2,"mláďata","46",1,0,1,5,1,"Lechovič Tobiáš",6]
["2021-11-06","Krajský přebor mláďat","PK","j","Bokiy","Konstantin",1,"mláďata","55",2,0,0,6,2,"Bokiy Konstantin",8]
["2021-11-06","Krajský přebor mláďat","PK","j","Teodor","Maslík",3,"mláďata","55",0,0,2,3,0,"Teodor Maslík",3]
["2021-11-06","Memiriál Saši Jurečky - Havířov","VC","j","Svoboda","Jindřich",5,"mladší žáci","34",0,0,4,0,0,"Svoboda Jindřich",0]
["2021-11-06","Memiriál Saši Jurečky - Havířov","VC","j","Stránský","David","bez","mladší žáci","38",0,0,2,0,0,"Stránský David",0]
["2021-11-06","Memiriál Saši Jurečky - Havířov","VC","j","Bystrianský","Jan",1,"mladší žáci","38",5,0,0,6,5,"Bystrianský Jan",11]
["2021-11-06","Memiriál Saši Jurečky - Havířov","VC","j","Berka","Daniel",4,"mladší žáci","42",1,0,3,0,1,"Berka Daniel",1]
["2021-11-06","Memiriál Saši Jurečky - Havířov","VC","j","Kotouček","Marek",4,"mladší žáci","46",0,0,3,0,0,"Kotouček Marek",0]
["2021-11-06","Memiriál Saši Jurečky - Havířov","VC","j","Bravanský","Marek",2,"mladší žáci","50",2,0,1,5,2,"Bravanský Marek",7]
["2021-11-06","Memiriál Saši Jurečky - Havířov","VC","j","Caletka","Michal",5,"dorostenci","60",0,0,4,0,0,"Caletka Michal",0]
["2021-11-06","Memiriál Saši Jurečky - Havířov","VC","j","Vontor","Tomáš",2,"dorostenci","60",2,0,2,5,2,"Vontor Tomáš",7]
["2021-11-06","Memiriál Saši Jurečky - Havířov","VC","j","Caletka","Petr",1,"dorostenci","60",4,0,0,6,4,"Caletka Petr",10]
["2021-11-06","Memiriál Saši Jurečky - Havířov","VC","j","Kristen","Nikolas",3,"dorostenci","66",2,0,2,3,2,"Kristen Nikolas",5]
["2021-11-06","Memiriál Saši Jurečky - Havířov","VC","j","Lavrukhin","Dobrynya",2,"dorostenci","66",2,0,2,5,2,"Lavrukhin Dobrynya",7]
["2021-11-06","Memiriál Saši Jurečky - Havířov","VC","j","Kolář","Vojtěch","bez","dorostenci","73",0,0,3,0,0,"Kolář Vojtěch",0]
["2021-11-06","Přebor ČR ","PCR","j","Zoulová","Karolína",7,"mladší žákyně","33",0,0,2,2,0,"Zoulová Karolína",2]
["2021-11-06","Přebor ČR ","PCR","j","Zoulová","Tereza",7,"mladší žákyně","33",0,0,2,2,0,"Zoulová Tereza",2]
["2021-11-06","Přebor ČR ","PCR","j","To","Vojtěch","bez","mladší žáci","34",0,0,1,0,0,"To Vojtěch",0]
["2021-11-06","Přebor ČR ","PCR","j","Vlček","Martin","bez","mladší žáci","38",0,0,1,0,0,"Vlček Martin",0]
["2021-11-06","Přebor ČR ","PCR","j","Přichystal","Leon","bez","mladší žáci","42",2,0,2,0,2,"Přichystal Leon",2]
["2021-11-06","Přebor ČR ","PCR","j","Šelong","Tadeáš","bez","mladší žáci","42",0,0,2,0,0,"Šelong Tadeáš",0]
["2021-11-06","Přebor ČR ","PCR","j","Kuluris","Manolis",2,"mladší žáci","46",4,0,1,7,4,"Kuluris Manolis",11]
["2021-11-06","Přebor ČR ","PCR","j","Musial","Šimon","bez","mladší žáci","46",0,0,1,0,0,"Musial Šimon",0]
["2021-11-06","Přebor ČR ","PCR","j","Ciora","Jakub",2,"mladší žáci","50",4,0,1,7,4,"Ciora Jakub",11]
["2021-11-06","Přebor ČR ","PCR","j","Kret","Matyáš",7,"mladší žáci","50",2,0,2,2,2,"Kret Matyáš",4]
["2021-11-06","Přebor ČR ","PCR","j","Huvar","Matyáš",2,"mladší žáci","55",3,0,1,7,3,"Huvar Matyáš",10]
["2021-11-06","Přebor ČR ","PCR","j","Stark","Vojtěch",1,"mladší žáci","66",3,0,0,10,3,"Stark Vojtěch",13]
["2021-11-06","Přebor ČR ","PCR","j","Škoda","Melichar",3,"mladší žáci","+66",4,0,1,5,4,"Škoda Melichar",9]
["2021-11-21","Finále Extraligy ČR mužů","EXL","d","Rýpar","Radek",4,"muži","60",3,0,2,7,6,"Rýpar Radek",13]
["2021-11-21","Finále Extraligy ČR mužů","EXL","d","Křížek","Šimon",4,"muži","66",0,0,1,7,0,"Křížek Šimon",7]
["2021-11-21","Finále Extraligy ČR mužů","EXL","d","Lindovský","Jiří",4,"muži","73",0,0,4,7,0,"Lindovský Jiří",7]
["2021-11-21","Finále Extraligy ČR mužů","EXL","d","Silvestr","Matěj",4,"muži","+90",2,0,3,7,4,"Silvestr Matěj",11]
["2021-11-13","Mistrovství ČR dorostu","MCR","j","Vontor","Tomáš",1,"dorostenci","55",4,0,0,20,4,"Vontor Tomáš",24]
["2021-11-13","Mistrovství ČR dorostu","MCR","j","Pačuta","Ladislav",9,"dorostenci","60",2,0,2,0,2,"Pačuta Ladislav",2]
["2021-11-13","Mistrovství ČR dorostu","MCR","j","Caletka","Petr","bez","dorostenci","60",0,0,2,0,0,"Caletka Petr",0]
["2021-11-13","Mistrovství ČR dorostu","MCR","j","Křížek","Šimon",5,"dorostenci","66",3,0,2,7,3,"Křížek Šimon",10]
["2021-11-13","Mistrovství ČR dorostu","MCR","j","Huvar","Jakub","bez","dorostenci","66",1,0,1,0,1,"Huvar Jakub",1]
["2021-11-13","Mistrovství ČR dorostu","MCR","j","Čebík","Filip","bez","dorostenci","66",1,0,1,0,1,"Čebík Filip",1]
["2021-11-13","Mistrovství ČR dorostu","MCR","j","Siuda","Adam","bez","dorostenci","66",0,0,2,0,0,"Siuda Adam",0]
["2021-11-13","Mistrovství ČR dorostu","MCR","j","Kristen","Nikolas","bez","dorostenci","66",0,0,1,0,0,"Kristen Nikolas",0]
["2021-11-13","Mistrovství ČR dorostu","MCR","j","Lavrukhin","Dobrynya","bez","dorostenci","66",1,0,1,0,1,"Lavrukhin Dobrynya",1]
["2021-11-13","Mistrovství ČR dorostu","MCR","j","Tomek","David","bez","dorostenci","73",2,0,1,0,2,"Tomek David",2]
["2021-11-13","Mistrovství ČR dorostu","MCR","j","Lindovský","Jiří",1,"dorostenci","73",6,0,0,20,6,"Lindovský Jiří",26]
["2021-11-13","Mistrovství ČR dorostu","MCR","j","Kršňák","Filip",3,"dorostenci","73",4,0,1,10,4,"Kršňák Filip",14]
["2021-11-13","Mistrovství ČR dorostu","MCR","j","Potůček","Tomáš","bez","dorostenci","73",1,0,1,{"$f":"IF(ISNA(VLOOKUP(C329&G329,$V$3:$W$95,2,FALSE)),0,VLOOKUP(C329&G329,$V$3:$W$95,2,FALSE))","v":0},{"$f":"IF(D329=\"d\",SUM(J329*2,K329),J329)","v":1},{"$f":"E329&\" \"&F329","v":"Potůček Tomáš"},{"$f":"SUM(M329,N329)","v":1}]
["2021-11-13","Mistrovství ČR dorostu","MCR","j","Motyka","Dominik",1,"dorostenci","81",4,0,0,20,4,"Motyka Dominik",24]
["2021-11-13","Mistrovství ČR dorostu","MCR","j","Fulneček","Šimon",2,"dorostenci","81",3,0,1,15,3,"Fulneček Šimon",18]
["2021-11-13","Mistrovství ČR dorostu","MCR","j","Čerchla","Michal",7,"dorostenci","90",2,0,2,5,2,"Čerchla Michal",7]
["2021-11-13","Mistrovství ČR dorostu","MCR","j","Rapčanová","Silvie",3,"dorostenky","48",2,0,1,10,2,"Rapčanová Silvie",12]
["2021-11-13","Mistrovství ČR dorostu","MCR","j","Vavřínová","Pavla",3,"dorostenky","57",5,0,1,10,5,"Vavřínová Pavla",15]
["2021-11-13","Mistrovství ČR dorostu","MCR","j","Kuželová","Dominika",3,"dorostenky","63",4,0,1,10,4,"Kuželová Dominika",14]
["2021-11-13","Mistrovství ČR dorostu","MCR","j","Kokešová","Alexandra",5,"dorostenky","70",1,0,2,7,1,"Kokešová Alexandra",8]
["2021-11-21","Mistrovství ČR družtev žen","MCR","d","Václavková","Tereza",3,"ženy","63",1,0,2,10,2,"Václavková Tereza",12]
["2021-11-21","Mistrovství ČR družtev žen","MCR","d","Kokešová","Alexandra",3,"ženy","70",1,0,2,10,2,"Kokešová Alexandra",12]
["2021-11-21","Mistrovství ČR družtev žen","MCR","d","Čerchlová","Markéta",3,"ženy","+70",1,0,2,10,2,"Čerchlová Markéta",12]
["2021-11-27","Dorostenecká liga - 2. kolo Olomouc","DL","d","Fulneček","Šimon",1,"dorostenci","81",3,0,1,20,6,"Fulneček Šimon",26]
["2021-11-27","Dorostenecká liga - 2. kolo Olomouc","DL","d","Vontor","Tomáš",1,"dorostenci","55",4,0,0,20,8,"Vontor Tomáš",28]
["2021-11-27","Dorostenecká liga - 2. kolo Olomouc","DL","d","Křížek","Šimon",1,"dorostenci","66",4,0,0,20,8,"Křížek Šimon",28]
["2021-11-27","Dorostenecká liga - 2. kolo Olomouc","DL","d","Motyka","Dominik",1,"dorostenci","81",3,0,1,20,6,"Motyka Dominik",26]
["2021-11-27","Dorostenecká liga - 2. kolo Olomouc","DL","d","Lindovský","Jiří",1,"dorostenci","73",4,0,0,20,8,"Lindovský Jiří",28]
["2021-11-27","Dorostenecká liga - 2. kolo Olomouc","DL","d","Kršňák","Filip",1,"dorostenci","73",0,0,1,20,0,"Kršňák Filip",20]
["2021-11-27","Dorostenecká liga - 2. kolo Olomouc","DL","d","Chlebovský","Daniel",1,"dorostenci","+90",1,0,0,20,2,"Chlebovský Daniel",22]
["2021-11-27","Dorostenecká liga - 2. kolo Olomouc","DL","d","Caletka","Michal",1,"dorostenci","60",0,0,0,20,0,"Caletka Michal",20]
["2021-11-27","Dorostenecká liga - 2. kolo Olomouc","DL","d","Čebík","Filip",1,"dorostenci","66",0,0,0,20,0,"Čebík Filip",20]
["2021-11-27","Dorostenecká liga - 2. kolo Olomouc","DL","d","Čerchla","Michal",1,"dorostenci","90",0,0,0,20,0,"Čerchla Michal",20]
["2021-11-27","Dorostenecká liga - 2. kolo Olomouc","DL","d","Siuda","Adam",1,"dorostenci","66",0,0,1,20,0,"Siuda Adam",20]
["2021-11-27","Dorostenecká liga - 2. kolo Olomouc","DL","d","Caletka","Petr",1,"dorostenci","66",0,0,0,20,0,"Caletka Petr",20]
["2021-11-27","Dorostenecká liga - 2. kolo Olomouc","DL","d","Potůček","Tomáš",1,"dorostenci","73",0,0,0,20,0,"Potůček Tomáš",20]
["2021-11-27","Dorostenecká liga - 2. kolo Olomouc","DL","d","Lavrukhin","Dobrynya",1,"dorostenci","60",0,0,0,20,0,"Lavrukhin Dobrynya",20]
["2021-11-27","Dorostenecká liga - 2. kolo Olomouc","DL","d","Tomek","David",1,"dorostenci","73",0,0,0,20,0,"Tomek David",20]
["2021-11-27","Dorostenecká liga - 2. kolo Olomouc","DL","d","Matýsek","Jan",1,"dorostenci","66",0,0,0,20,0,"Matýsek Jan",20]
["2021-08-28","MT SNP Banská Bystrica","MT","j","Rýpar","Radek",1,"muži","60",4,0,0,10,4,"Rýpar Radek",14]
["2021-08-28","MT SNP Banská Bystrica","MT","j","Polašková","Kristýna",2,"ženy","57",3,0,1,7,3,"Polašková Kristýna",10]
["2021-08-28","MT SNP Banská Bystrica","MT","j","Silvestr","Matěj",5,"muži","100",2,0,2,3,2,"Silvestr Matěj",5]
["2021-08-28","MT SNP Banská Bystrica","MT","j","Čerchlová","Markéta",3,"ženy","+63",2,0,2,5,2,"Čerchlová Markéta",7]
["2021-08-28","MT SNP Banská Bystrica","MT","j","Kokešová","Alexandra","bez","ženy","+63",1,0,2,0,1,"Kokešová Alexandra",1]
["2021-08-28","MT SNP Banská Bystrica","MT","j","Malaczynski","Filip","bez","muži","+66",0,0,2,0,0,"Malaczynski Filip",0]
["2021-08-28","MT SNP Banská Bystrica","MT","j","Václavková","Tereza","bez","ženy","57",0,0,1,0,0,"Václavková Tereza",0]
["2021-08-28","MT SNP Banská Bystrica","MT","j","Michálková","Karolína","bez","ženy","+63",1,0,2,0,1,"Michálková Karolína",1]
["2021-10-25","MT Ruen","MT","d","Procházka","Daniel",3,"mladší žáci","30",1,1,3,5,3,"Procházka Daniel",8]
["2021-10-25","MT Ruen","MVC","d","Kouřil","Sebastián",3,"mladší žáci","34",1,1,3,3,3,"Kouřil Sebastián",6]
["2021-10-25","MT Ruen","MVC","d","Soukup","Hugo",3,"mladší žáci","38",2,1,2,{"$f":"IF(ISNA(VLOOKUP(C366&G366,$V$3:$W$95,2,FALSE)),0,VLOOKUP(C366&G366,$V$3:$W$95,2,FALSE))","v":3},5,"Soukup Hugo",8]
["2021-10-25","MT Ruen","MVC","d","Musial","Šimon",3,"mladší žáci","42",3,1,1,3,7,"Musial Šimon",10]
["2021-11-07","Přebor ČR ","PCR","j","Valošek","Jakub","bez","starší žáci","46",1,0,2,0,1,"Valošek Jakub",1]
["2021-11-07","Přebor ČR ","PCR","j","Plaček","Viktor","bez","starší žáci","60",0,0,2,0,0,"Plaček Viktor",0]
["2021-11-07","Přebor ČR ","PCR","j","Seibert","Marian","bez","starší žáci","60",1,0,2,0,1,"Seibert Marian",1]
["2021-11-07","Přebor ČR ","PCR","j","Pospíšil","Jan",2,"starší žáci","66",4,0,1,7,4,"Pospíšil Jan",11]
["2021-11-07","Přebor ČR ","PCR","j","Zwiling","Šimon","bez","starší žáci","73",1,0,2,0,1,"Zwiling Šimon",1]
["2021-11-07","Přebor ČR ","PCR","j","Baudiš","Michal","bez","starší žáci","73",1,0,1,0,1,"Baudiš Michal",1]
["2021-11-07","Přebor ČR ","PCR","j","Homolová","Kristýna",9,"starší žákyně","52",1,0,2,0,1,"Homolová Kristýna",1]
["2021-11-07","Přebor ČR ","PCR","j","Bukovjanová","Charlotte","bez","starší žákyně","57",2,0,2,0,2,"Bukovjanová Charlotte",2]
["2021-11-07","Přebor ČR ","PCR","j","Bokiy","Alexandra","bez","starší žákyně","63",0,0,1,0,0,"Bokiy Alexandra",0]
["2021-11-21","Finále Extraligy ČR mužů","EXL","d","Svoboda","Jiří",4,"muži","81",0,0,0,7,0,"Svoboda Jiří",7]
[null,null,null,null,null,null,null,null,null,null,null,null,0,0," ",0]
[null,null,null,null,null,null,null,null,null,null,null,null,0,0," ",0]
[null,null,null,null,null,null,null,null,null,null,null,null,0,0," ",0]
[null,null,null,null,null,null,null,null,null,null,null,null,0,0," ",0]
[null,null,null,null,null,null,null,null,null,null,null,null,0,0," ",0]
[null,null,null,null,null,null,null,null,null,null,null,null,0,0," ",0]
[null,null,null,null,null,null,null,null,null,null,null,null,0,0," ",0]
[null,null,null,null,null,null,null,null,null,null,null,null,0,0," ",0]
[null,null,null,null,null,null,null,null,null,null,null,null,0,0," ",0]
[null,null,null,null,null,null,null,null,null,null,null,null,0,0," ",0]
[null,null,null,null,null,null,null,null,null,null,null,null,0,0," ",0]
[null,null,null,null,null,null,null,null,null,null,null,null,0,0," ",0]
[null,null,null,null,null,null,null,null,null,null,null,null,0,0," ",0]
[null,null,null,null,null,null,null,null,null,null,null,null,0,0," ",0]
[null,null,null,null,null,null,null,null,null,null,null,null,0,0," ",0]
[null,null,null,null,null,null,null,null,null,null,null,null,{"$f":"IF(ISNA(VLOOKUP(C393&G393,$V$3:$W$95,2,FALSE)),0,VLOOKUP(C393&G393,$V$3:$W$95,2,FALSE))","v":0},{"$f":"IF(D393=\"d\",SUM(J393*2,K393),J393)","v":0},{"$f":"E393&\" \"&F393","v":" "},{"$f":"SUM(M393,N393)","v":0}]
[null,null,null,null,null,null,null,null,null,null,null,null,0,0," ",0]
[null,null,null,null,null,null,null,null,null,null,null,null,0,0," ",0]
[null,null,null,null,null,null,null,null,null,null,null,null,0,0," ",0]
[null,null,null,null,null,null,null,null,null,null,null,null,0,0," ",0]
[null,null,null,null,null,null,null,null,null,null,null,null,0,0," ",0]
[null,null,null,null,null,null,null,null,null,null,null,null,0,0," ",0]
[null,null,null,null,null,null,null,null,null,null,null,null,0,0," ",0]
[null,null,null,null,null,null,null,null,null,null,null,null,0,0," ",0]
[null,null,null,null,null,null,null,null,null,null,null,null,0,0," ",0]
[null,null,null,null,null,null,null,null,null,null,null,null,0,0," ",0]
[null,null,null,null,null,null,null,null,null,null,null,null,0,0," ",0]
[null,null,null,null,null,null,null,null,null,null,null,null,0,0," ",0]
[null,null,null,null,null,null,null,null,null,null,null,null,0,0," ",0]
[null,null,null,null,null,null,null,null,null,null,null,null,0,0," ",0]
[null,null,null,null,null,null,null,null,null,null,null,null,0,0," ",0]
[null,null,null,null,null,null,null,null,null,null,null,null,0,0," ",0]
[null,null,null,null,null,null,null,null,null,null,null,null,0,0," ",0]
[null,null,null,null,null,null,null,null,null,null,null,null,0,0," ",0]
[null,null,null,null,null,null,null,null,null,null,null,null,0,0," ",0]
[null,null,null,null,null,null,null,null,null,null,null,null,0,0," ",0]
[null,null,null,null,null,null,null,null,null,null,null,null,0,0," ",0]
[null,null,null,null,null,null,null,null,null,null,null,null,0,0," ",0]
[null,null,null,null,null,null,null,null,null,null,null,null,0,0," ",0]
[null,null,null,null,null,null,null,null,null,null,null,null,0,0," ",0]
[null,null,null,null,null,null,null,null,null,null,null,null,0,0," ",0]
[null,null,null,null,null,null,null,null,null,null,null,null,0,0," ",0]
[null,null,null,null,null,null,null,null,null,null,null,null,0,0," ",0]
[null,null,null,null,null,null,null,null,null,null,null,null,0,0," ",0]
[null,null,null,null,null,null,null,null,null,null,null,null,0,0," ",0]
[null,null,null,null,null,null,null,null,null,null,null,null,0,0," ",0]
[null,null,null,null,null,null,null,null,null,null,null,null,0,0," ",0]
[null,null,null,null,null,null,null,null,null,null,null,null,0,0," ",0]
[null,null,null,null,null,null,null,null,null,null,null,null,0,0," ",0]
[null,null,null,null,null,null,null,null,null,null,null,null,0,0," ",0]
[null,null,null,null,null,null,null,null,null,null,null,null,0,0," ",0]
[null,null,null,null,null,null,null,null,null,null,null,null,0,0," ",0]
[null,null,null,null,null,null,null,null,null,null,null,null,0,0," ",0]
[null,null,null,null,null,null,null,null,null,null,null,null,0,0," ",0]
[null,null,null,null,null,null,null,null,null,null,null,null,0,0," ",0]
[null,null,null,null,null,null,null,null,null,null,null,null,0,0," ",0]
[null,null,null,null,null,null,null,null,null,null,null,null,0,0," ",0]
[null,null,null,null,null,null,null,null,null,null,null,null,0,0," ",0]
[null,null,null,null,null,null,null,null,null,null,null,null,0,0," ",0]
[null,null,null,null,null,null,null,null,null,null,null,null,0,0," ",0]
[null,null,null,null,null,null,null,null,null,null,null,null,0,0," ",0]
[null,null,null,null,null,null,null,null,null,null,null,null,0,0," ",0]
[null,null,null,null,null,null,null,null,null,null,null,null,0,0," ",0]
[null,null,null,null,null,null,null,null,null,null,null,null,0,0," ",0]
[null,null,null,null,null,null,null,null,null,null,null,null,0,0," ",0]
[null,null,null,null,null,null,null,null,null,null,null,null,0,0," ",0]
[null,null,null,null,null,null,null,null,null,null,null,null,0,0," ",0]
[null,null,null,null,null,null,null,null,null,null,null,null,0,0," ",0]
[null,null,null,null,null,null,null,null,null,null,null,null,0,0," ",0]
[null,null,null,null,null,null,null,null,null,null,null,null,0,0," ",0]
[null,null,null,null,null,null,null,null,null,null,null,null,0,0," ",0]
[null,null,null,null,null,null,null,null,null,null,null,null,0,0," ",0]
[null,null,null,null,null,null,null,null,null,null,null,null,0,0," ",0]
[null,null,null,null,null,null,null,null,null,null,null,null,0,0," ",0]
[null,null,null,null,null,null,null,null,null,null,null,null,0,0," ",0]
[null,null,null,null,null,null,null,null,null,null,null,null,0,0," ",0]
[null,null,null,null,null,null,null,null,null,null,null,null,0,0," ",0]
[null,null,null,null,null,null,null,null,null,null,null,null,0,0," ",0]
[null,null,null,null,null,null,null,null,null,null,null,null,0,0," ",0]
[null,null,null,null,null,null,null,null,null,null,null,null,{"$f":"IF(ISNA(VLOOKUP(C457&G457,$V$3:$W$95,2,FALSE)),0,VLOOKUP(C457&G457,$V$3:$W$95,2,FALSE))","v":0},{"$f":"IF(D457=\"d\",SUM(J457*2,K457),J457)","v":0},{"$f":"E457&\" \"&F457","v":" "},{"$f":"SUM(M457,N457)","v":0}]
[null,null,null,null,null,null,null,null,null,null,null,null,0,0," ",0]
[null,null,null,null,null,null,null,null,null,null,null,null,0,0," ",0]
[null,null,null,null,null,null,null,null,null,null,null,null,0,0," ",0]
[null,null,null,null,null,null,null,null,null,null,null,null,0,0," ",0]
[null,null,null,null,null,null,null,null,null,null,null,null,0,0," ",0]
[null,null,null,null,null,null,null,null,null,null,null,null,0,0," ",0]
[null,null,null,null,null,null,null,null,null,null,null,null,0,0," ",0]
[null,null,null,null,null,null,null,null,null,null,null,null,0,0," ",0]
[null,null,null,null,null,null,null,null,null,null,null,null,0,0," ",0]
[null,null,null,null,null,null,null,null,null,null,null,null,0,0," ",0]
[null,null,null,null,null,null,null,null,null,null,null,null,0,0," ",0]
[null,null,null,null,null,null,null,null,null,null,null,null,0,0," ",0]
[null,null,null,null,null,null,null,null,null,null,null,null,0,0," ",0]
[null,null,null,null,null,null,null,null,null,null,null,null,0,0," ",0]
[null,null,null,null,null,null,null,null,null,null,null,null,0,0," ",0]
[null,null,null,null,null,null,null,null,null,null,null,null,0,0," ",0]
[null,null,null,null,null,null,null,null,null,null,null,null,0,0," ",0]
[null,null,null,null,null,null,null,null,null,null,null,null,0,0," ",0]
[null,null,null,null,null,null,null,null,null,null,null,null,0,0," ",0]
[null,null,null,null,null,null,null,null,null,null,null,null,0,0," ",0]
[null,null,null,null,null,null,null,null,null,null,null,null,0,0," ",0]
[null,null,null,null,null,null,null,null,null,null,null,null,0,0," ",0]
[null,null,null,null,null,null,null,null,null,null,null,null,0,0," ",0]
[null,null,null,null,null,null,null,null,null,null,null,null,0,0," ",0]
[null,null,null,null,null,null,null,null,null,null,null,null,0,0," ",0]
[null,null,null,null,null,null,null,null,null,null,null,null,0,0," ",0]
[null,null,null,null,null,null,null,null,null,null,null,null,0,0," ",0]
[null,null,null,null,null,null,null,null,null,null,null,null,0,0," ",0]
[null,null,null,null,null,null,null,null,null,null,null,null,0,0," ",0]
[null,null,null,null,null,null,null,null,null,null,null,null,0,0," ",0]
[null,null,null,null,null,null,null,null,null,null,null,null,0,0," ",0]
[null,null,null,null,null,null,null,null,null,null,null,null,0,0," ",0]
[null,null,null,null,null,null,null,null,null,null,null,null,0,0," ",0]
[null,null,null,null,null,null,null,null,null,null,null,null,0,0," ",0]
[null,null,null,null,null,null,null,null,null,null,null,null,0,0," ",0]
[null,null,null,null,null,null,null,null,null,null,null,null,0,0," ",0]
[null,null,null,null,null,null,null,null,null,null,null,null,0,0," ",0]
[null,null,null,null,null,null,null,null,null,null,null,null,0,0," ",0]
[null,null,null,null,null,null,null,null,null,null,null,null,0,0," ",0]
[null,null,null,null,null,null,null,null,null,null,null,null,0,0," ",0]
[null,null,null,null,null,null,null,null,null,null,null,null,0,0," ",0]
[null,null,null,null,null,null,null,null,null,null,null,null,0,0," ",0]
[null,null,null,null,null,null,null,null,null,null,null,null,0,0," ",0]
[null,null,null,null,null,null,null,null,null,null,null,null,0,0," ",0]
[null,null,null,null,null,null,null,null,null,null,null,null,0,0," ",0]
[null,null,null,null,null,null,null,null,null,null,null,null,0,0," ",0]
[null,null,null,null,null,null,null,null,null,null,null,null,0,0," ",0]
[null,null,null,null,null,null,null,null,null,null,null,null,0,0," ",0]
[null,null,null,null,null,null,null,null,null,null,null,null,0,0," ",0]
[null,null,null,null,null,null,null,null,null,null,null,null,0,0," ",0]
[null,null,null,null,null,null,null,null,null,null,null,null,0,0," ",0]
[null,null,null,null,null,null,null,null,null,null,null,null,0,0," ",0]
[null,null,null,null,null,null,null,null,null,null,null,null,0,0," ",0]
[null,null,null,null,null,null,null,null,null,null,null,null,0,0," ",0]
[null,null,null,null,null,null,null,null,null,null,null,null,0,0," ",0]
[null,null,null,null,null,null,null,null,null,null,null,null,0,0," ",0]
[null,null,null,null,null,null,null,null,null,null,null,null,0,0," ",0]
[null,null,null,null,null,null,null,null,null,null,null,null,0,0," ",0]
[null,null,null,null,null,null,null,null,null,null,null,null,0,0," ",0]
[null,null,null,null,null,null,null,null,null,null,null,null,0,0," ",0]
[null,null,null,null,null,null,null,null,null,null,null,null,0,0," ",0]
[null,null,null,null,null,null,null,null,null,null,null,null,0,0," ",0]
[null,null,null,null,null,null,null,null,null,null,null,null,0,0," ",0]
[null,null,null,null,null,null,null,null,null,null,null,null,{"$f":"IF(ISNA(VLOOKUP(C521&G521,$V$3:$W$95,2,FALSE)),0,VLOOKUP(C521&G521,$V$3:$W$95,2,FALSE))","v":0},{"$f":"IF(D521=\"d\",SUM(J521*2,K521),J521)","v":0},{"$f":"E521&\" \"&F521","v":" "},{"$f":"SUM(M521,N521)","v":0}]
[null,null,null,null,null,null,null,null,null,null,null,null,0,0," ",0]
[null,null,null,null,null,null,null,null,null,null,null,null,0,0," ",0]
[null,null,null,null,null,null,null,null,null,null,null,null,0,0," ",0]
[null,null,null,null,null,null,null,null,null,null,null,null,0,0," ",0]
[null,null,null,null,null,null,null,null,null,null,null,null,0,0," ",0]
[null,null,null,null,null,null,null,null,null,null,null,null,0,0," ",0]
[null,null,null,null,null,null,null,null,null,null,null,null,0,0," ",0]
[null,null,null,null,null,null,null,null,null,null,null,null,0,0," ",0]
[null,null,null,null,null,null,null,null,null,null,null,null,0,0," ",0]
[null,null,null,null,null,null,null,null,null,null,null,null,0,0," ",0]
[null,null,null,null,null,null,null,null,null,null,null,null,0,0," ",0]
[null,null,null,null,null,null,null,null,null,null,null,null,0,0," ",0]
[null,null,null,null,null,null,null,null,null,null,null,null,0,0," ",0]
[null,null,null,null,null,null,null,null,null,null,null,null,0,0," ",0]
[null,null,null,null,null,null,null,null,null,null,null,null,0,0," ",0]
[null,null,null,null,null,null,null,null,null,null,null,null,0,0," ",0]
[null,null,null,null,null,null,null,null,null,null,null,null,0,0," ",0]
[null,null,null,null,null,null,null,null,null,null,null,null,0,0," ",0]
[null,null,null,null,null,null,null,null,null,null,null,null,0,0," ",0]
[null,null,null,null,null,null,null,null,null,null,null,null,0,0," ",0]
[null,null,null,null,null,null,null,null,null,null,null,null,0,0," ",0]
[null,null,null,null,null,null,null,null,null,null,null,null,0,0," ",0]
[null,null,null,null,null,null,null,null,null,null,null,null,0,0," ",0]
[null,null,null,null,null,null,null,null,null,null,null,null,0,0," ",0]
[null,null,null,null,null,null,null,null,null,null,null,null,0,0," ",0]
[null,null,null,null,null,null,null,null,null,null,null,null,0,0," ",0]
[null,null,null,null,null,null,null,null,null,null,null,null,0,0," ",0]
[null,null,null,null,null,null,null,null,null,null,null,null,0,0," ",0]
[null,null,null,null,null,null,null,null,null,null,null,null,0,0," ",0]
[null,null,null,null,null,null,null,null,null,null,null,null,0,0," ",0]
[null,null,null,null,null,null,null,null,null,null,null,null,0,0," ",0]
[null,null,null,null,null,null,null,null,null,null,null,null,0,0," ",0]
[null,null,null,null,null,null,null,null,null,null,null,null,0,0," ",0]
[null,null,null,null,null,null,null,null,null,null,null,null,0,0," ",0]
[null,null,null,null,null,null,null,null,null,null,null,null,0,0," ",0]
[null,null,null,null,null,null,null,null,null,null,null,null,0,0," ",0]
[null,null,null,null,null,null,null,null,null,null,null,null,0,0," ",0]
[null,null,null,null,null,null,null,null,null,null,null,null,0,0," ",0]
[null,null,null,null,null,null,null,null,null,null,null,null,0,0," ",0]
[null,null,null,null,null,null,null,null,null,null,null,null,0,0," ",0]
[null,null,null,null,null,null,null,null,null,null,null,null,0,0," ",0]
[null,null,null,null,null,null,null,null,null,null,null,null,0,0," ",0]
[null,null,null,null,null,null,null,null,null,null,null,null,0,0," ",0]
[null,null,null,null,null,null,null,null,null,null,null,null,0,0," ",0]
[null,null,null,null,null,null,null,null,null,null,null,null,0,0," ",0]
[null,null,null,null,null,null,null,null,null,null,null,null,0,0," ",0]
[null,null,null,null,null,null,null,null,null,null,null,null,0,0," ",0]
[null,null,null,null,null,null,null,null,null,null,null,null,0,0," ",0]
[null,null,null,null,null,null,null,null,null,null,null,null,0,0," ",0]
[null,null,null,null,null,null,null,null,null,null,null,null,0,0," ",0]
[null,null,null,null,null,null,null,null,null,null,null,null,0,0," ",0]
[null,null,null,null,null,null,null,null,null,null,null,null,0,0," ",0]
[null,null,null,null,null,null,null,null,null,null,null,null,0,0," ",0]
[null,null,null,null,null,null,null,null,null,null,null,null,0,0," ",0]
[null,null,null,null,null,null,null,null,null,null,null,null,0,0," ",0]
[null,null,null,null,null,null,null,null,null,null,null,null,0,0," ",0]
[null,null,null,null,null,null,null,null,null,null,null,null,0,0," ",0]
[null,null,null,null,null,null,null,null,null,null,null,null,0,0," ",0]
[null,null,null,null,null,null,null,null,null,null,null,null,0,0," ",0]
[null,null,null,null,null,null,null,null,null,null,null,null,0,0," ",0]
[null,null,null,null,null,null,null,null,null,null,null,null,0,0," ",0]
[null,null,null,null,null,null,null,null,null,null,null,null,0,0," ",0]
[null,null,null,null,null,null,null,null,null,null,null,null,0,0," ",0]
[null,null,null,null,null,null,null,null,null,null,null,null,{"$f":"IF(ISNA(VLOOKUP(C585&G585,$V$3:$W$95,2,FALSE)),0,VLOOKUP(C585&G585,$V$3:$W$95,2,FALSE))","v":0},{"$f":"IF(D585=\"d\",SUM(J585*2,K585),J585)","v":0},{"$f":"E585&\" \"&F585","v":" "},{"$f":"SUM(M585,N585)","v":0}]
[null,null,null,null,null,null,null,null,null,null,null,null,0,0," ",0]
[null,null,null,null,null,null,null,null,null,null,null,null,0,0," ",0]
[null,null,null,null,null,null,null,null,null,null,null,null,0,0," ",0]
[null,null,null,null,null,null,null,null,null,null,null,null,0,0," ",0]
[null,null,null,null,null,null,null,null,null,null,null,null,0,0," ",0]
[null,null,null,null,null,null,null,null,null,null,null,null,0,0," ",0]
[null,null,null,null,null,null,null,null,null,null,null,null,0,0," ",0]
[null,null,null,null,null,null,null,null,null,null,null,null,0,0," ",0]
[null,null,null,null,null,null,null,null,null,null,null,null,0,0," ",0]
[null,null,null,null,null,null,null,null,null,null,null,null,0,0," ",0]
[null,null,null,null,null,null,null,null,null,null,null,null,0,0," ",0]
[null,null,null,null,null,null,null,null,null,null,null,null,0,0," ",0]
[null,null,null,null,null,null,null,null,null,null,null,null,0,0," ",0]
[null,null,null,null,null,null,null,null,null,null,null,null,0,0," ",0]
[null,null,null,null,null,null,null,null,null,null,null,null,0,0," ",0]
[null,null,null,null,null,null,null,null,null,null,null,null,0,0," ",0]
[null,null,null,null,null,null,null,null,null,null,null,null,0,0," ",0]
[null,null,null,null,null,null,null,null,null,null,null,null,0,0," ",0]
[null,null,null,null,null,null,null,null,null,null,null,null,0,0," ",0]
[null,null,null,null,null,null,null,null,null,null,null,null,0,0," ",0]
[null,null,null,null,null,null,null,null,null,null,null,null,0,0," ",0]
[null,null,null,null,null,null,null,null,null,null,null,null,0,0," ",0]
[null,null,null,null,null,null,null,null,null,null,null,null,0,0," ",0]
[null,null,null,null,null,null,null,null,null,null,null,null,0,0," ",0]
[null,null,null,null,null,null,null,null,null,null,null,null,0,0," ",0]
[null,null,null,null,null,null,null,null,null,null,null,null,0,0," ",0]
[null,null,null,null,null,null,null,null,null,null,null,null,0,0," ",0]
[null,null,null,null,null,null,null,null,null,null,null,null,0,0," ",0]
[null,null,null,null,null,null,null,null,null,null,null,null,0,0," ",0]
[null,null,null,null,null,null,null,null,null,null,null,null,0,0," ",0]
[null,null,null,null,null,null,null,null,null,null,null,null,0,0," ",0]
[null,null,null,null,null,null,null,null,null,null,null,null,0,0," ",0]
[null,null,null,null,null,null,null,null,null,null,null,null,0,0," ",0]
[null,null,null,null,null,null,null,null,null,null,null,null,0,0," ",0]
[null,null,null,null,null,null,null,null,null,null,null,null,0,0," ",0]
[null,null,null,null,null,null,null,null,null,null,null,null,0,0," ",0]
[null,null,null,null,null,null,null,null,null,null,null,null,0,0," ",0]
[null,null,null,null,null,null,null,null,null,null,null,null,0,0," ",0]
[null,null,null,null,null,null,null,null,null,null,null,null,0,0," ",0]
[null,null,null,null,null,null,null,null,null,null,null,null,0,0," ",0]
[null,null,null,null,null,null,null,null,null,null,null,null,0,0," ",0]
[null,null,null,null,null,null,null,null,null,null,null,null,0,0," ",0]
[null,null,null,null,null,null,null,null,null,null,null,null,0,0," ",0]
[null,null,null,null,null,null,null,null,null,null,null,null,0,0," ",0]
[null,null,null,null,null,null,null,null,null,null,null,null,0,0," ",0]
[null,null,null,null,null,null,null,null,null,null,null,null,0,0," ",0]
[null,null,null,null,null,null,null,null,null,null,null,null,0,0," ",0]
[null,null,null,null,null,null,null,null,null,null,null,null,0,0," ",0]
[null,null,null,null,null,null,null,null,null,null,null,null,0,0," ",0]
[null,null,null,null,null,null,null,null,null,null,null,null,0,0," ",0]
[null,null,null,null,null,null,null,null,null,null,null,null,0,0," ",0]
[null,null,null,null,null,null,null,null,null,null,null,null,0,0," ",0]
[null,null,null,null,null,null,null,null,null,null,null,null,0,0," ",0]
[null,null,null,null,null,null,null,null,null,null,null,null,0,0," ",0]
[null,null,null,null,null,null,null,null,null,null,null,null,0,0," ",0]
[null,null,null,null,null,null,null,null,null,null,null,null,0,0," ",0]
[null,null,null,null,null,null,null,null,null,null,null,null,0,0," ",0]
[null,null,null,null,null,null,null,null,null,null,null,null,0,0," ",0]
[null,null,null,null,null,null,null,null,null,null,null,null,0,0," ",0]
[null,null,null,null,null,null,null,null,null,null,null,null,0,0," ",0]
[null,null,null,null,null,null,null,null,null,null,null,null,0,0," ",0]
[null,null,null,null,null,null,null,null,null,null,null,null,0,0," ",0]
[null,null,null,null,null,null,null,null,null,null,null,null,0,0," ",0]
[null,null,null,null,null,null,null,null,null,null,null,null,{"$f":"IF(ISNA(VLOOKUP(C649&G649,$V$3:$W$95,2,FALSE)),0,VLOOKUP(C649&G649,$V$3:$W$95,2,FALSE))","v":0},{"$f":"IF(D649=\"d\",SUM(J649*2,K649),J649)","v":0},{"$f":"E649&\" \"&F649","v":" "},{"$f":"SUM(M649,N649)","v":0}]
[null,null,null,null,null,null,null,null,null,null,null,null,0,0," ",0]
[null,null,null,null,null,null,null,null,null,null,null,null,0,0," ",0]
[null,null,null,null,null,null,null,null,null,null,null,null,0,0," ",0]
[null,null,null,null,null,null,null,null,null,null,null,null,0,0," ",0]
[null,null,null,null,null,null,null,null,null,null,null,null,0,0," ",0]
[null,null,null,null,null,null,null,null,null,null,null,null,0,0," ",0]
[null,null,null,null,null,null,null,null,null,null,null,null,0,0," ",0]
[null,null,null,null,null,null,null,null,null,null,null,null,0,0," ",0]
[null,null,null,null,null,null,null,null,null,null,null,null,0,0," ",0]
[null,null,null,null,null,null,null,null,null,null,null,null,0,0," ",0]
[null,null,null,null,null,null,null,null,null,null,null,null,0,0," ",0]
[null,null,null,null,null,null,null,null,null,null,null,null,0,0," ",0]
[null,null,null,null,null,null,null,null,null,null,null,null,0,0," ",0]
[null,null,null,null,null,null,null,null,null,null,null,null,0,0," ",0]
[null,null,null,null,null,null,null,null,null,null,null,null,0,0," ",0]
[null,null,null,null,null,null,null,null,null,null,null,null,0,0," ",0]
[null,null,null,null,null,null,null,null,null,null,null,null,0,0," ",0]
[null,null,null,null,null,null,null,null,null,null,null,null,0,0," ",0]
[null,null,null,null,null,null,null,null,null,null,null,null,0,0," ",0]
[null,null,null,null,null,null,null,null,null,null,null,null,0,0," ",0]
[null,null,null,null,null,null,null,null,null,null,null,null,0,0," ",0]
[null,null,null,null,null,null,null,null,null,null,null,null,0,0," ",0]
[null,null,null,null,null,null,null,null,null,null,null,null,0,0," ",0]
[null,null,null,null,null,null,null,null,null,null,null,null,0,0," ",0]
[null,null,null,null,null,null,null,null,null,null,null,null,0,0," ",0]
[null,null,null,null,null,null,null,null,null,null,null,null,0,0," ",0]
[null,null,null,null,null,null,null,null,null,null,null,null,0,0," ",0]
[null,null,null,null,null,null,null,null,null,null,null,null,0,0," ",0]
[null,null,null,null,null,null,null,null,null,null,null,null,0,0," ",0]
[null,null,null,null,null,null,null,null,null,null,null,null,0,0," ",0]
[null,null,null,null,null,null,null,null,null,null,null,null,0,0," ",0]
[null,null,null,null,null,null,null,null,null,null,null,null,0,0," ",0]
[null,null,null,null,null,null,null,null,null,null,null,null,0,0," ",0]
[null,null,null,null,null,null,null,null,null,null,null,null,0,0," ",0]
[null,null,null,null,null,null,null,null,null,null,null,null,0,0," ",0]
[null,null,null,null,null,null,null,null,null,null,null,null,0,0," ",0]
[null,null,null,null,null,null,null,null,null,null,null,null,0,0," ",0]
[null,null,null,null,null,null,null,null,null,null,null,null,0,0," ",0]
[null,null,null,null,null,null,null,null,null,null,null,null,0,0," ",0]
[null,null,null,null,null,null,null,null,null,null,null,null,0,0," ",0]
[null,null,null,null,null,null,null,null,null,null,null,null,0,0," ",0]
[null,null,null,null,null,null,null,null,null,null,null,null,0,0," ",0]
[null,null,null,null,null,null,null,null,null,null,null,null,0,0," ",0]
[null,null,null,null,null,null,null,null,null,null,null,null,0,0," ",0]
[null,null,null,null,null,null,null,null,null,null,null,null,0,0," ",0]
[null,null,null,null,null,null,null,null,null,null,null,null,0,0," ",0]
[null,null,null,null,null,null,null,null,null,null,null,null,0,0," ",0]
[null,null,null,null,null,null,null,null,null,null,null,null,0,0," ",0]
[null,null,null,null,null,null,null,null,null,null,null,null,0,0," ",0]
[null,null,null,null,null,null,null,null,null,null,null,null,0,0," ",0]
[null,null,null,null,null,null,null,null,null,null,null,null,0,0," ",0]
[null,null,null,null,null,null,null,null,null,null,null,null,0,0," ",0]
[null,null,null,null,null,null,null,null,null,null,null,null,0,0," ",0]
[null,null,null,null,null,null,null,null,null,null,null,null,0,0," ",0]
[null,null,null,null,null,null,null,null,null,null,null,null,0,0," ",0]
[null,null,null,null,null,null,null,null,null,null,null,null,0,0," ",0]
[null,null,null,null,null,null,null,null,null,null,null,null,0,0," ",0]
[null,null,null,null,null,null,null,null,null,null,null,null,0,0," ",0]
[null,null,null,null,null,null,null,null,null,null,null,null,0,0," ",0]
[null,null,null,null,null,null,null,null,null,null,null,null,0,0," ",0]
[null,null,null,null,null,null,null,null,null,null,null,null,0,0," ",0]
[null,null,null,null,null,null,null,null,null,null,null,null,0,0," ",0]
[null,null,null,null,null,null,null,null,null,null,null,null,0,0," ",0]
[null,null,null,null,null,null,null,null,null,null,null,null,{"$f":"IF(ISNA(VLOOKUP(C713&G713,$V$3:$W$95,2,FALSE)),0,VLOOKUP(C713&G713,$V$3:$W$95,2,FALSE))","v":0},{"$f":"IF(D713=\"d\",SUM(J713*2,K713),J713)","v":0},{"$f":"E713&\" \"&F713","v":" "},{"$f":"SUM(M713,N713)","v":0}]
[null,null,null,null,null,null,null,null,null,null,null,null,0,0," ",0]
[null,null,null,null,null,null,null,null,null,null,null,null,0,0," ",0]
[null,null,null,null,null,null,null,null,null,null,null,null,0,0," ",0]
[null,null,null,null,null,null,null,null,null,null,null,null,0,0," ",0]
[null,null,null,null,null,null,null,null,null,null,null,null,0,0," ",0]
[null,null,null,null,null,null,null,null,null,null,null,null,0,0," ",0]
[null,null,null,null,null,null,null,null,null,null,null,null,0,0," ",0]
[null,null,null,null,null,null,null,null,null,null,null,null,0,0," ",0]
[null,null,null,null,null,null,null,null,null,null,null,null,0,0," ",0]
[null,null,null,null,null,null,null,null,null,null,null,null,0,0," ",0]
[null,null,null,null,null,null,null,null,null,null,null,null,0,0," ",0]
[null,null,null,null,null,null,null,null,null,null,null,null,0,0," ",0]
[null,null,null,null,null,null,null,null,null,null,null,null,0,0," ",0]
[null,null,null,null,null,null,null,null,null,null,null,null,0,0," ",0]
[null,null,null,null,null,null,null,null,null,null,null,null,0,0," ",0]
[null,null,null,null,null,null,null,null,null,null,null,null,0,0," ",0]
[null,null,null,null,null,null,null,null,null,null,null,null,0,0," ",0]
[null,null,null,null,null,null,null,null,null,null,null,null,0,0," ",0]
[null,null,null,null,null,null,null,null,null,null,null,null,0,0," ",0]
[null,null,null,null,null,null,null,null,null,null,null,null,0,0," ",0]
[null,null,null,null,null,null,null,null,null,null,null,null,0,0," ",0]
[null,null,null,null,null,null,null,null,null,null,null,null,0,0," ",0]
[null,null,null,null,null,null,null,null,null,null,null,null,0,0," ",0]
[null,null,null,null,null,null,null,null,null,null,null,null,0,0," ",0]
[null,null,null,null,null,null,null,null,null,null,null,null,0,0," ",0]
[null,null,null,null,null,null,null,null,null,null,null,null,0,0," ",0]
[null,null,null,null,null,null,null,null,null,null,null,null,0,0," ",0]
[null,null,null,null,null,null,null,null,null,null,null,null,0,0," ",0]
[null,null,null,null,null,null,null,null,null,null,null,null,0,0," ",0]
[null,null,null,null,null,null,null,null,null,null,null,null,0,0," ",0]
[null,null,null,null,null,null,null,null,null,null,null,null,0,0," ",0]
[null,null,null,null,null,null,null,null,null,null,null,null,0,0," ",0]
[null,null,null,null,null,null,null,null,null,null,null,null,0,0," ",0]
[null,null,null,null,null,null,null,null,null,null,null,null,0,0," ",0]
[null,null,null,null,null,null,null,null,null,null,null,null,0,0," ",0]
[null,null,null,null,null,null,null,null,null,null,null,null,0,0," ",0]
[null,null,null,null,null,null,null,null,null,null,null,null,0,0," ",0]
[null,null,null,null,null,null,null,null,null,null,null,null,0,0," ",0]
[null,null,null,null,null,null,null,null,null,null,null,null,0,0," ",0]
[null,null,null,null,null,null,null,null,null,null,null,null,0,0," ",0]
[null,null,null,null,null,null,null,null,null,null,null,null,0,0," ",0]
[null,null,null,null,null,null,null,null,null,null,null,null,0,0," ",0]
[null,null,null,null,null,null,null,null,null,null,null,null,0,0," ",0]
[null,null,null,null,null,null,null,null,null,null,null,null,0,0," ",0]
[null,null,null,null,null,null,null,null,null,null,null,null,0,0," ",0]
[null,null,null,null,null,null,null,null,null,null,null,null,0,0," ",0]
[null,null,null,null,null,null,null,null,null,null,null,null,0,0," ",0]
[null,null,null,null,null,null,null,null,null,null,null,null,0,0," ",0]
[null,null,null,null,null,null,null,null,null,null,null,null,0,0," ",0]
[null,null,null,null,null,null,null,null,null,null,null,null,0,0," ",0]
[null,null,null,null,null,null,null,null,null,null,null,null,0,0," ",0]
[null,null,null,null,null,null,null,null,null,null,null,null,0,0," ",0]
[null,null,null,null,null,null,null,null,null,null,null,null,0,0," ",0]
[null,null,null,null,null,null,null,null,null,null,null,null,0,0," ",0]
[null,null,null,null,null,null,null,null,null,null,null,null,0,0," ",0]
[null,null,null,null,null,null,null,null,null,null,null,null,0,0," ",0]
[null,null,null,null,null,null,null,null,null,null,null,null,0,0," ",0]
[null,null,null,null,null,null,null,null,null,null,null,null,0,0," ",0]
[null,null,null,null,null,null,null,null,null,null,null,null,0,0," ",0]
[null,null,null,null,null,null,null,null,null,null,null,null,0,0," ",0]
[null,null,null,null,null,null,null,null,null,null,null,null,0,0," ",0]
[null,null,null,null,null,null,null,null,null,null,null,null,0,0," ",0]
[null,null,null,null,null,null,null,null,null,null,null,null,0,0," ",0]
[null,null,null,null,null,null,null,null,null,null,null,null,{"$f":"IF(ISNA(VLOOKUP(C777&G777,$V$3:$W$95,2,FALSE)),0,VLOOKUP(C777&G777,$V$3:$W$95,2,FALSE))","v":0},{"$f":"IF(D777=\"d\",SUM(J777*2,K777),J777)","v":0},{"$f":"E777&\" \"&F777","v":" "},{"$f":"SUM(M777,N777)","v":0}]
[null,null,null,null,null,null,null,null,null,null,null,null,0,0," ",0]
[null,null,null,null,null,null,null,null,null,null,null,null,0,0," ",0]
[null,null,null,null,null,null,null,null,null,null,null,null,0,0," ",0]
[null,null,null,null,null,null,null,null,null,null,null,null,0,0," ",0]
[null,null,null,null,null,null,null,null,null,null,null,null,0,0," ",0]
[null,null,null,null,null,null,null,null,null,null,null,null,0,0," ",0]
[null,null,null,null,null,null,null,null,null,null,null,null,0,0," ",0]
[null,null,null,null,null,null,null,null,null,null,null,null,0,0," ",0]
[null,null,null,null,null,null,null,null,null,null,null,null,0,0," ",0]
[null,null,null,null,null,null,null,null,null,null,null,null,0,0," ",0]
[null,null,null,null,null,null,null,null,null,null,null,null,0,0," ",0]
[null,null,null,null,null,null,null,null,null,null,null,null,0,0," ",0]
[null,null,null,null,null,null,null,null,null,null,null,null,0,0," ",0]
[null,null,null,null,null,null,null,null,null,null,null,null,0,0," ",0]
[null,null,null,null,null,null,null,null,null,null,null,null,0,0," ",0]
[null,null,null,null,null,null,null,null,null,null,null,null,0,0," ",0]
[null,null,null,null,null,null,null,null,null,null,null,null,0,0," ",0]
[null,null,null,null,null,null,null,null,null,null,null,null,0,0," ",0]
[null,null,null,null,null,null,null,null,null,null,null,null,0,0," ",0]
[null,null,null,null,null,null,null,null,null,null,null,null,0,0," ",0]
[null,null,null,null,null,null,null,null,null,null,null,null,0,0," ",0]
[null,null,null,null,null,null,null,null,null,null,null,null,0,0," ",0]
[null,null,null,null,null,null,null,null,null,null,null,null,0,0," ",0]
[null,null,null,null,null,null,null,null,null,null,null,null,0,0," ",0]
[null,null,null,null,null,null,null,null,null,null,null,null,0,0," ",0]
[null,null,null,null,null,null,null,null,null,null,null,null,0,0," ",0]
[null,null,null,null,null,null,null,null,null,null,null,null,0,0," ",0]
[null,null,null,null,null,null,null,null,null,null,null,null,0,0," ",0]
[null,null,null,null,null,null,null,null,null,null,null,null,0,0," ",0]
[null,null,null,null,null,null,null,null,null,null,null,null,0,0," ",0]
[null,null,null,null,null,null,null,null,null,null,null,null,0,0," ",0]
[null,null,null,null,null,null,null,null,null,null,null,null,0,0," ",0]
[null,null,null,null,null,null,null,null,null,null,null,null,0,0," ",0]
[null,null,null,null,null,null,null,null,null,null,null,null,0,0," ",0]
[null,null,null,null,null,null,null,null,null,null,null,null,0,0," ",0]
[null,null,null,null,null,null,null,null,null,null,null,null,0,0," ",0]
[null,null,null,null,null,null,null,null,null,null,null,null,0,0," ",0]
[null,null,null,null,null,null,null,null,null,null,null,null,0,0," ",0]
[null,null,null,null,null,null,null,null,null,null,null,null,0,0," ",0]
[null,null,null,null,null,null,null,null,null,null,null,null,0,0," ",0]
[null,null,null,null,null,null,null,null,null,null,null,null,0,0," ",0]
[null,null,null,null,null,null,null,null,null,null,null,null,0,0," ",0]
[null,null,null,null,null,null,null,null,null,null,null,null,0,0," ",0]
[null,null,null,null,null,null,null,null,null,null,null,null,0,0," ",0]
[null,null,null,null,null,null,null,null,null,null,null,null,0,0," ",0]
[null,null,null,null,null,null,null,null,null,null,null,null,0,0," ",0]
[null,null,null,null,null,null,null,null,null,null,null,null,0,0," ",0]
[null,null,null,null,null,null,null,null,null,null,null,null,0,0," ",0]
[null,null,null,null,null,null,null,null,null,null,null,null,0,0," ",0]
[null,null,null,null,null,null,null,null,null,null,null,null,0,0," ",0]
[null,null,null,null,null,null,null,null,null,null,null,null,0,0," ",0]
[null,null,null,null,null,null,null,null,null,null,null,null,0,0," ",0]
[null,null,null,null,null,null,null,null,null,null,null,null,0,0," ",0]
[null,null,null,null,null,null,null,null,null,null,null,null,0,0," ",0]
[null,null,null,null,null,null,null,null,null,null,null,null,0,0," ",0]
[null,null,null,null,null,null,null,null,null,null,null,null,0,0," ",0]
[null,null,null,null,null,null,null,null,null,null,null,null,0,0," ",0]
[null,null,null,null,null,null,null,null,null,null,null,null,0,0," ",0]
[null,null,null,null,null,null,null,null,null,null,null,null,0,0," ",0]
[null,null,null,null,null,null,null,null,null,null,null,null,0,0," ",0]
[null,null,null,null,null,null,null,null,null,null,null,null,0,0," ",0]
[null,null,null,null,null,null,null,null,null,null,null,null,0,0," ",0]
[null,null,null,null,null,null,null,null,null,null,null,null,0,0," ",0]
[null,null,null,null,null,null,null,null,null,null,null,null,{"$f":"IF(ISNA(VLOOKUP(C841&G841,$V$3:$W$95,2,FALSE)),0,VLOOKUP(C841&G841,$V$3:$W$95,2,FALSE))","v":0},{"$f":"IF(D841=\"d\",SUM(J841*2,K841),J841)","v":0},{"$f":"E841&\" \"&F841","v":" "},{"$f":"SUM(M841,N841)","v":0}]
[null,null,null,null,null,null,null,null,null,null,null,null,0,0," ",0]
[null,null,null,null,null,null,null,null,null,null,null,null,0,0," ",0]
[null,null,null,null,null,null,null,null,null,null,null,null,0,0," ",0]
[null,null,null,null,null,null,null,null,null,null,null,null,0,0," ",0]
[null,null,null,null,null,null,null,null,null,null,null,null,0,0," ",0]
[null,null,null,null,null,null,null,null,null,null,null,null,0,0," ",0]
[null,null,null,null,null,null,null,null,null,null,null,null,0,0," ",0]
[null,null,null,null,null,null,null,null,null,null,null,null,0,0," ",0]
[null,null,null,null,null,null,null,null,null,null,null,null,0,0," ",0]
[null,null,null,null,null,null,null,null,null,null,null,null,0,0," ",0]
[null,null,null,null,null,null,null,null,null,null,null,null,0,0," ",0]
[null,null,null,null,null,null,null,null,null,null,null,null,0,0," ",0]
[null,null,null,null,null,null,null,null,null,null,null,null,0,0," ",0]
[null,null,null,null,null,null,null,null,null,null,null,null,0,0," ",0]
[null,null,null,null,null,null,null,null,null,null,null,null,0,0," ",0]
[null,null,null,null,null,null,null,null,null,null,null,null,0,0," ",0]
[null,null,null,null,null,null,null,null,null,null,null,null,0,0," ",0]
[null,null,null,null,null,null,null,null,null,null,null,null,0,0," ",0]
[null,null,null,null,null,null,null,null,null,null,null,null,0,0," ",0]
[null,null,null,null,null,null,null,null,null,null,null,null,0,0," ",0]
[null,null,null,null,null,null,null,null,null,null,null,null,0,0," ",0]
[null,null,null,null,null,null,null,null,null,null,null,null,0,0," ",0]
[null,null,null,null,null,null,null,null,null,null,null,null,0,0," ",0]
[null,null,null,null,null,null,null,null,null,null,null,null,0,0," ",0]
[null,null,null,null,null,null,null,null,null,null,null,null,0,0," ",0]
[null,null,null,null,null,null,null,null,null,null,null,null,0,0," ",0]
[null,null,null,null,null,null,null,null,null,null,null,null,0,0," ",0]
[null,null,null,null,null,null,null,null,null,null,null,null,0,0," ",0]
[null,null,null,null,null,null,null,null,null,null,null,null,0,0," ",0]
[null,null,null,null,null,null,null,null,null,null,null,null,0,0," ",0]
[null,null,null,null,null,null,null,null,null,null,null,null,0,0," ",0]
[null,null,null,null,null,null,null,null,null,null,null,null,0,0," ",0]
[null,null,null,null,null,null,null,null,null,null,null,null,0,0," ",0]
[null,null,null,null,null,null,null,null,null,null,null,null,0,0," ",0]
[null,null,null,null,null,null,null,null,null,null,null,null,0,0," ",0]
[null,null,null,null,null,null,null,null,null,null,null,null,0,0," ",0]
[null,null,null,null,null,null,null,null,null,null,null,null,0,0," ",0]
[null,null,null,null,null,null,null,null,null,null,null,null,0,0," ",0]
[null,null,null,null,null,null,null,null,null,null,null,null,0,0," ",0]
[null,null,null,null,null,null,null,null,null,null,null,null,0,0," ",0]
[null,null,null,null,null,null,null,null,null,null,null,null,0,0," ",0]
[null,null,null,null,null,null,null,null,null,null,null,null,0,0," ",0]
[null,null,null,null,null,null,null,null,null,null,null,null,0,0," ",0]
[null,null,null,null,null,null,null,null,null,null,null,null,0,0," ",0]
[null,null,null,null,null,null,null,null,null,null,null,null,0,0," ",0]
[null,null,null,null,null,null,null,null,null,null,null,null,0,0," ",0]
[null,null,null,null,null,null,null,null,null,null,null,null,0,0," ",0]
[null,null,null,null,null,null,null,null,null,null,null,null,0,0," ",0]
[null,null,null,null,null,null,null,null,null,null,null,null,0,0," ",0]
[null,null,null,null,null,null,null,null,null,null,null,null,0,0," ",0]
[null,null,null,null,null,null,null,null,null,null,null,null,0,0," ",0]
[null,null,null,null,null,null,null,null,null,null,null,null,0,0," ",0]
[null,null,null,null,null,null,null,null,null,null,null,null,0,0," ",0]
[null,null,null,null,null,null,null,null,null,null,null,null,0,0," ",0]
[null,null,null,null,null,null,null,null,null,null,null,null,0,0," ",0]
[null,null,null,null,null,null,null,null,null,null,null,null,0,0," ",0]
[null,null,null,null,null,null,null,null,null,null,null,null,0,0," ",0]
[null,null,null,null,null,null,null,null,null,null,null,null,0,0," ",0]
[null,null,null,null,null,null,null,null,null,null,null,null,0,0," ",0]
[null,null,null,null,null,null,null,null,null,null,null,null,0,0," ",0]
[null,null,null,null,null,null,null,null,null,null,null,null,0,0," ",0]
[null,null,null,null,null,null,null,null,null,null,null,null,0,0," ",0]
[null,null,null,null,null,null,null,null,null,null,null,null,0,0," ",0]
[null,null,null,null,null,null,null,null,null,null,null,null,{"$f":"IF(ISNA(VLOOKUP(C905&G905,$V$3:$W$95,2,FALSE)),0,VLOOKUP(C905&G905,$V$3:$W$95,2,FALSE))","v":0},{"$f":"IF(D905=\"d\",SUM(J905*2,K905),J905)","v":0},{"$f":"E905&\" \"&F905","v":" "},{"$f":"SUM(M905,N905)","v":0}]
[null,null,null,null,null,null,null,null,null,null,null,null,0,0," ",0]
[null,null,null,null,null,null,null,null,null,null,null,null,0,0," ",0]
[null,null,null,null,null,null,null,null,null,null,null,null,0,0," ",0]
[null,null,null,null,null,null,null,null,null,null,null,null,0,0," ",0]
[null,null,null,null,null,null,null,null,null,null,null,null,0,0," ",0]
[null,null,null,null,null,null,null,null,null,null,null,null,0,0," ",0]
[null,null,null,null,null,null,null,null,null,null,null,null,0,0," ",0]
[null,null,null,null,null,null,null,null,null,null,null,null,0,0," ",0]
[null,null,null,null,null,null,null,null,null,null,null,null,0,0," ",0]
[null,null,null,null,null,null,null,null,null,null,null,null,0,0," ",0]
[null,null,null,null,null,null,null,null,null,null,null,null,{"$f":"IF(ISNA(VLOOKUP(C916&G916,$V$3:$W$95,2,FALSE)),0,VLOOKUP(C916&G916,$V$3:$W$95,2,FALSE))","v":0},{"$f":"IF(D916=\"d\",SUM(J916*2,K916),J916)","v":0},{"$f":"E916&\" \"&F916","v":" "},{"$f":"SUM(M916,N916)","v":0}]
[null,null,null,null,null,null,null,null,null,null,null,null,0,0," ",0]
[null,null,null,null,null,null,null,null,null,null,null,null,0,0," ",0]
[null,null,null,null,null,null,null,null,null,null,null,null,0,0," ",0]
[null,null,null,null,null,null,null,null,null,null,null,null,0,0," ",0]
[null,null,null,null,null,null,null,null,null,null,null,null,0,0," ",0]
[null,null,null,null,null,null,null,null,null,null,null,null,0,0," ",0]
[null,null,null,null,null,null,null,null,null,null,null,null,0,0," ",0]
[null,null,null,null,null,null,null,null,null,null,null,null,0,0," ",0]
[null,null,null,null,null,null,null,null,null,null,null,null,0,0," ",0]
[null,null,null,null,null,null,null,null,null,null,null,null,0,0," ",0]
[null,null,null,null,null,null,null,null,null,null,null,null,0,0," ",0]
[null,null,null,null,null,null,null,null,null,null,null,null,0,0," ",0]
[null,null,null,null,null,null,null,null,null,null,null,null,0,0," ",0]
[null,null,null,null,null,null,null,null,null,null,null,null,0,0," ",0]
[null,null,null,null,null,null,null,null,null,null,null,null,0,0," ",0]
[null,null,null,null,null,null,null,null,null,null,null,null,0,0," ",0]
[null,null,null,null,null,null,null,null,null,null,null,null,0,0," ",0]
[null,null,null,null,null,null,null,null,null,null,null,null,0,0," ",0]
[null,null,null,null,null,null,null,null,null,null,null,null,0,0," ",0]
[null,null,null,null,null,null,null,null,null,null,null,null,0,0," ",0]
[null,null,null,null,null,null,null,null,null,null,null,null,0,0," ",0]
[null,null,null,null,null,null,null,null,null,null,null,null,0,0," ",0]
[null,null,null,null,null,null,null,null,null,null,null,null,0,0," ",0]
[null,null,null,null,null,null,null,null,null,null,null,null,0,0," ",0]
[null,null,null,null,null,null,null,null,null,null,null,null,0,0," ",0]
[null,null,null,null,null,null,null,null,null,null,null,null,0,0," ",0]
[null,null,null,null,null,null,null,null,null,null,null,null,0,0," ",0]
[null,null,null,null,null,null,null,null,null,null,null,null,0,0," ",0]
[null,null,null,null,null,null,null,null,null,null,null,null,0,0," ",0]
[null,null,null,null,null,null,null,null,null,null,null,null,0,0," ",0]
[null,null,null,null,null,null,null,null,null,null,null,null,0,0," ",0]
[null,null,null,null,null,null,null,null,null,null,null,null,0,0," ",0]
[null,null,null,null,null,null,null,null,null,null,null,null,0,0," ",0]
[null,null,null,null,null,null,null,null,null,null,null,null,0,0," ",0]
[null,null,null,null,null,null,null,null,null,null,null,null,0,0," ",0]
[null,null,null,null,null,null,null,null,null,null,null,null,0,0," ",0]
[null,null,null,null,null,null,null,null,null,null,null,null,0,0," ",0]
[null,null,null,null,null,null,null,null,null,null,null,null,0,0," ",0]
[null,null,null,null,null,null,null,null,null,null,null,null,0,0," ",0]
[null,null,null,null,null,null,null,null,null,null,null,null,0,0," ",0]
[null,null,null,null,null,null,null,null,null,null,null,null,0,0," ",0]
[null,null,null,null,null,null,null,null,null,null,null,null,0,0," ",0]
[null,null,null,null,null,null,null,null,null,null,null,null,0,0," ",0]
[null,null,null,null,null,null,null,null,null,null,null,null,0,0," ",0]
[null,null,null,null,null,null,null,null,null,null,null,null,0,0," ",0]
[null,null,null,null,null,null,null,null,null,null,null,null,{"$f":"IF(ISNA(VLOOKUP(C962&G962,$V$3:$W$95,2,FALSE)),0,VLOOKUP(C962&G962,$V$3:$W$95,2,FALSE))","v":0},0,{"$f":"E962&\" \"&F962","v":" "},0]
[null,null,null,null,null,null,null,null,null,null,null,null,0,{"$f":"IF(D963=\"d\",SUM(J963*2,K963),J963)","v":0}," ",{"$f":"SUM(M963,N963)","v":0}]
[null,null,null,null,null,null,null,null,null,null,null,null,0,0," ",0]
[null,null,null,null,null,null,null,null,null,null,null,null,0,0," ",0]
[null,null,null,null,null,null,null,null,null,null,null,null,0,0," ",0]
[null,null,null,null,null,null,null,null,null,null,null,null,0,0," ",0]
[null,null,null,null,null,null,null,null,null,null,null,null,0,0," ",0]
[null,null,null,null,null,null,null,null,null,null,null,null,0,0," ",0]
[null,null,null,null,null,null,null,null,null,null,null,null,0,0," ",0]
[null,null,null,null,null,null,null,null,null,null,null,null,0,0," ",0]
[null,null,null,null,null,null,null,null,null,null,null,null,0,0," ",0]
[null,null,null,null,null,null,null,null,null,null,null,null,0,0," ",0]
[null,null,null,null,null,null,null,null,null,null,null,null,0,0," ",0]
[null,null,null,null,null,null,null,null,null,null,null,null,0,0," ",0]
[null,null,null,null,null,null,null,null,null,null,null,null,0,0," ",0]
[null,null,null,null,null,null,null,null,null,null,null,null,0,0," ",0]
[null,null,null,null,null,null,null,null,null,null,null,null,0,0," ",0]
[null,null,null,null,null,null,null,null,null,null,null,null,0,0," ",0]
[null,null,null,null,null,null,null,null,null,null,null,null,0,0," ",0]
[null,null,null,null,null,null,null,null,null,null,null,null,0,0," ",0]
[null,null,null,null,null,null,null,null,null,null,null,null,0,0," ",0]
[null,null,null,null,null,null,null,null,null,null,null,null,0,0," ",0]
[null,null,null,null,null,null,null,"mláďata",null,null,null,null,0,0," ",0]
[null,null,null,null,null,null,null,"mladší žákyně",null,null,null,null,0,0," ",0]
[null,null,null,null,null,null,null,"mladší žáci",null,null,null,null,0,0," ",0]
[null,null,null,null,null,null,null,"starší žákyně",null,null,null,null,0,0," ",0]
[null,null,null,null,null,null,null,"starší žáci",null,null,null,null,0,0," ",0]
[null,null,null,null,null,null,null,"dorostenky",null,null,null,null,0,0," ",0]
[null,null,null,null,null,null,null,"dorostenci",null,null,null,null,0,0," ",0]
[null,null,null,null,null,null,null,"juniorky",null,null,null,null,0,0," ",0]
[null,null,null,null,null,null,null,"junioři",null,null,null,null,0,0," ",0]
[null,null,null,null,null,null,null,"ženy",null,null,null,null,0,0," ",0]
[null,null,null,null,null,null,null,"muži",null,null,null,null,0,0," ",0]
[null,null,null,null,null,null,null,"veteráni",null,null,null,null,0,0," ",0]
[null,null,null,null,null,null,null,"kata",null,null,null,null,0,0," ",0]

{"sheet":"knt_tab","index":2,"n_rows":114,"n_cols":41,"rows_kept":114,"cut":false,"hidden":true,"merged":[]}
["kategorie","(Vše)",null,"kategorie","mláďata",null,"kategorie","mladší žáci",null,"kategorie","mladší žákyně",null,"kategorie","starší žáci",null,"kategorie","starší žákyně",null,"kategorie","dorostenci",null,"kategorie","dorostenky",null,"kategorie","junioři",null,"kategorie","juniorky",null,"kategorie","muži",null,"kategorie","ženy",null,"kategorie","veteráni",null,"kategorie","kata"]
[]
["Součet z body",null,null,"Součet z body",null,null,"Součet z body",null,null,"Součet z body",null,null,"Součet z body",null,null,"Součet z body",null,null,"Součet z body",null,null,"Součet z body",null,null,"Součet z body",null,null,"Součet z body",null,null,"Součet z body",null,null,"Součet z body",null,null,"Součet z body",null,null,"Součet z body"]
["zavodnik","Celkem",null,"zavodnik","Celkem",null,"zavodnik","Celkem",null,"zavodnik","Celkem",null,"zavodnik","Celkem",null,"zavodnik","Celkem",null,"zavodnik","Celkem",null,"zavodnik","Celkem",null,"zavodnik","Celkem",null,"zavodnik","Celkem",null,"zavodnik","Celkem",null,"zavodnik","Celkem",null,"zavodnik","Celkem",null,"zavodnik","Celkem"]
["Rýpar Radek",106,null,"Prudil Adam",19,null,"Stark Vojtěch",53,null,"Zoulová Tereza",13,null,"Baudiš Michal",40,null,"Bukovjanová Charlotte",40,null,"Křížek Šimon",84,null,"Vavřínová Pavla",43,null,"Šimek Daniel",11,null,"Václavková Tereza",26,null,"Rýpar Radek",106,null,"Polašková Kristýna",42,null,"Martínek Roman",30,null," ",0]
["Motyka Dominik",94,null,"Bokiy Konstantin",17,null,"Ciora Jakub",42,null,"Zoulová Karolína",10,null,"Zwiling Šimon",37,null,"Kaszperová Kristýna",28,null,"Motyka Dominik",84,null,"Rapčanová Silvie",31,null,"Motyka Dominik",10,null,"Čerchlová Markéta",23,null,"Silvestr Matěj",80,null,"Čerchlová Markéta",39,null,"Schoffer Radim",16]
["Křížek Šimon",91,null,"Nováková Victoria",16,null,"Škoda Melichar",41,null,"Slováková Tereza",8,null,"Seibert Marian",28,null,"Homolová Kristýna",8,null,"Lindovský Jiří",80,null,"Kuželová Dominika",27,null,"Vršek Jakub",8,null," ",0,null,"Malaczynski Filip",10,null,"Václavková Tereza",39,null,"Moravec Vlastimil",15]
["Lindovský Jiří",87,null,"Lechovič Tobiáš",15,null,"Huvar Matyáš",38,null," ",0,null,"Pospíšil Jan",24,null,"Kocmanová Lucie",5,null,"Vontor Tomáš",77,null,"Rapčanová Alice",14,null,"Malaczynski Filip",7,null,null,null,null,"Svoboda Jiří",9,null,"Michálková Karolína",36,null," ",0]
["Silvestr Matěj",80,null,"Chovanec Martin",12,null,"Kuluris Manolis",37,null,null,null,null,"Plaček Viktor",11,null,"Bokiy Alexandra",0,null,"Fulneček Šimon",68,null,"Kokešová Alexandra",12,null," ",0,null,null,null,null,"Vršek Jakub",8,null,"Kokešová Alexandra",13]
["Vontor Tomáš",77,null,"Kuchejdová Veronika",10,null,"Přichystal Leon",34,null,null,null,null,"Valošek Jakub",11,null," ",0,null,"Kršňák Filip",52,null," ",0,null,"Kršňák Filip",0,null,null,null,null,"Lindovský Jiří",7,null," ",0]
["Fulneček Šimon",68,null,"Šelongová Viktorie",8,null,"To Vojtěch",24,null,null,null,null,"Kanclíř Šimon",11,null,null,null,null,"Potůček Tomáš",42,null,null,null,null,null,null,null,null,null,null,"Křížek Šimon",7]
["Václavková Tereza",65,null,"Vlček Viktor",7,null,"Musial Šimon",20,null,null,null,null,"Pavlík Lukáš",8,null,null,null,null,"Lavrukhin Dobrynya",39,null,null,null,null,null,null,null,null,null,null,"Šimek Daniel",0]
["Čerchlová Markéta",62,null,"Bauko Viktor",6,null,"Bystrianský Jan",20,null,null,null,null,"Kulhánek Adam",5,null,null,null,null,"Caletka Petr",31,null,null,null,null,null,null,null,null,null,null," ",0]
["Stark Vojtěch",53,null,"Kouřil Sebastián",6,null,"Kret Matyáš",13,null,null,null,null,"Salinger David",4,null,null,null,null,"Čerchla Michal",29,null,null,null,null,null,null,null,null,null,null,"Šmatelka Ondřej",0]
["Kršňák Filip",52,null,"Teodor Maslík",3,null,"Vlček Martin",12,null,null,null,null,"Dryšl Adam",3,null,null,null,null,"Chlebovský Daniel",26]
["Vavřínová Pavla",43,null,"Jahoda Pavel",3,null,"Šelong Tadeáš",11,null,null,null,null,"Selinger David",1,null,null,null,null,"Siuda Adam",24]
["Polašková Kristýna",42,null,"Podivinský Marek",2,null,"Soukup Hugo",8,null,null,null,null,"Trojek Václav",1,null,null,null,null,"Caletka Michal",24]
["Potůček Tomáš",42,null,"Šindel Jakub",1,null,"Procházka Daniel",8,null,null,null,null," ",0,null,null,null,null,"Čebík Filip",24]
["Ciora Jakub",42,null,"Maslík Teodor",0,null,"Bravanský Marek",7,null,null,null,null,"Galamboš Kristián",0,null,null,null,null,"Tomek David",23]
["Škoda Melichar",41,null,"Kuluri Theofania",0,null,"Kouřil Sebastián",6,null,null,null,null,"Ožana Maxmilián",0,null,null,null,null,"Pačuta Ladislav",22]
["Baudiš Michal",40,null," ",0,null,"Garbulinský Ladislav",5,null,null,null,null,"Murin Jan",0,null,null,null,null,"Matýsek Jan",20]
["Bukovjanová Charlotte",40,null,"Hladký Dalimil",0,null,"Nytra Sebastián",5,null,null,null,null,null,null,null,null,null,null,"Kristen Nikolas",13]
["Lavrukhin Dobrynya",39,null,null,null,null,"Kožušník Václav",4,null,null,null,null,null,null,null,null,null,null,"Meixner Michal",6]
["Huvar Matyáš",38,null,null,null,null,"Stránský David",2,null,null,null,null,null,null,null,null,null,null,"Kolář Vojtěch",4]
["Kuluris Manolis",37,null,null,null,null,"Berka Daniel",2,null,null,null,null,null,null,null,null,null,null,"Kristen Nicolas",3]
["Zwiling Šimon",37,null,null,null,null,"Boček Petr",0,null,null,null,null,null,null,null,null,null,null,"Huvar Jakub",1]
["Michálková Karolína",36,null,null,null,null,"Kotouček Marek",0,null,null,null,null,null,null,null,null,null,null,"Kožušník Vojtěch",0]
["Přichystal Leon",34,null,null,null,null,"Třos Vojtěch",0,null,null,null,null,null,null,null,null,null,null,"Vršek Jakub",0]
["Caletka Petr",31,null,null,null,null,"Hon Sebastián",0,null,null,null,null,null,null,null,null,null,null," ",0]
["Rapčanová Silvie",31,null,null,null,null," ",0]
["Martínek Roman",30,null,null,null,null,"Ilenčík Miroslav",0]
["Čerchla Michal",29,null,null,null,null,"Svoboda Jindřich",0]
["Kaszperová Kristýna",28]
["Seibert Marian",28]
["Kuželová Dominika",27]
["Chlebovský Daniel",26]
["Kokešová Alexandra",25]
["To Vojtěch",24]
["Pospíšil Jan",24]
["Caletka Michal",24]
["Siuda Adam",24]
["Čebík Filip",24]
["Tomek David",23]
["Pačuta Ladislav",22]
["Bystrianský Jan",20]
["Musial Šimon",20]
["Matýsek Jan",20]
["Prudil Adam",19]
["Bokiy Konstantin",17]
["Malaczynski Filip",17]
["Nováková Victoria",16]
["Schoffer Radim",16]
["Vršek Jakub",16]
["Lechovič Tobiáš",15]
["Moravec Vlastimil",15]
["Rapčanová Alice",14]
["Zoulová Tereza",13]
["Kristen Nikolas",13]
["Kret Matyáš",13]
["Kouřil Sebastián",12]
["Vlček Martin",12]
["Chovanec Martin",12]
["Valošek Jakub",11]
["Šimek Daniel",11]
["Šelong Tadeáš",11]
["Kanclíř Šimon",11]
["Plaček Viktor",11]
["Kuchejdová Veronika",10]
["Zoulová Karolína",10]
["Svoboda Jiří",9]
["Pavlík Lukáš",8]
["Šelongová Viktorie",8]
["Homolová Kristýna",8]
["Soukup Hugo",8]
["Slováková Tereza",8]
["Procházka Daniel",8]
["Bravanský Marek",7]
["Vlček Viktor",7]
["Meixner Michal",6]
["Bauko Viktor",6]
["Garbulinský Ladislav",5]
["Kulhánek Adam",5]
["Kocmanová Lucie",5]
["Nytra Sebastián",5]
["Salinger David",4]
["Kolář Vojtěch",4]
["Kožušník Václav",4]
["Jahoda Pavel",3]
["Teodor Maslík",3]
["Dryšl Adam",3]
["Kristen Nicolas",3]
["Podivinský Marek",2]
["Berka Daniel",2]
["Stránský David",2]
["Huvar Jakub",1]
["Trojek Václav",1]
["Selinger David",1]
["Šindel Jakub",1]
["Šmatelka Ondřej",0]
["Třos Vojtěch",0]
["Bokiy Alexandra",0]
["Kuluri Theofania",0]
["Murin Jan",0]
["Kožušník Vojtěch",0]
["Ilenčík Miroslav",0]
["Hladký Dalimil",0]
["Boček Petr",0]
["Maslík Teodor",0]
["Hon Sebastián",0]
["Galamboš Kristián",0]
["Kotouček Marek",0]
["Svoboda Jindřich",0]
[" ",0]
["Ožana Maxmilián",0]

{"sheet":"ranking","index":3,"n_rows":63,"n_cols":23,"rows_kept":63,"cut":false,"hidden":false,"merged":[[0,0,0,22]]}
[{"$f":"\"Pořadí úspěšnosti závodníků v r. \"&YEAR(vysledky!A2)","v":"Pořadí úspěšnosti závodníků v r. 2021"}]
["celkem oddíl",null,null,null,"celkem oddíl - pokračování",null,null,null,"celkem oddíl - pokračování",null,null,null,"kata",null,null,null,"starší žáci",null,null,null,"mladší žáci - pokračování"]
["Pořadí","Příjmení","body",null,{"$f":"IF(F3=\"\",\"\",IF(G3=C63,A63,61))","v":59},{"$f":"IF(ISERR(GETPIVOTDATA(\"body\",knt_tab!$A$3,\"zavodnik\",knt_tab!A65)),\"\",IF(GETPIVOTDATA(\"body\",knt_tab!$A$3,\"zavodnik\",knt_tab!A65)=0,\"\",knt_tab!A65))","v":"Šelong Tadeáš"},{"$f":"IF(F3=\"\",\"\",GETPIVOTDATA(\"body\",knt_tab!$A$3,\"zavodnik\",F3))","v":11},null,{"$f":"IF(J3=\"\",\"\",IF(K3=G62,E62,ROW(I3)-ROW($I$3)+122))","v":""},{"$f":"IF(ISERR(GETPIVOTDATA(\"body\",knt_tab!$A$3,\"zavodnik\",knt_tab!A126)),\"\",IF(GETPIVOTDATA(\"body\",knt_tab!$A$3,\"zavodnik\",knt_tab!A126)=0,\"\",knt_tab!A126))","v":""},{"$f":"IF(J3=\"\",\"\",GETPIVOTDATA(\"body\",knt_tab!$A$3,\"zavodnik\",J3))","v":""},null,"Pořadí","Příjmení","body",null,"Pořadí","Příjmení","body",null,{"$f":"IF(V3=\"\",\"\",IF(W3=S63,Q63,ROW(U3)-ROW($U$2)+17))","v":17},{"$f":"IF(ISERR(GETPIVOTDATA(\"body\",knt_tab!$G$3,\"zavodnik\",knt_tab!G22)),\"\",IF(GETPIVOTDATA(\"body\",knt_tab!$G$3,\"zavodnik\",knt_tab!G22)=0,\"\",knt_tab!G22))","v":"Nytra Sebastián"},{"$f":"IF(V3=\"\",\"\",GETPIVOTDATA(\"body\",knt_tab!$G$3,\"zavodnik\",V3))","v":5}]
[1,{"$f":"IF(ISERR(GETPIVOTDATA(\"body\",knt_tab!$A$3,\"zavodnik\",knt_tab!A5)),\"\",IF(GETPIVOTDATA(\"body\",knt_tab!$A$3,\"zavodnik\",knt_tab!A5)=0,\"\",knt_tab!A5))","v":"Rýpar Radek"},{"$f":"IF(B4=\"\",\"\",GETPIVOTDATA(\"body\",knt_tab!$A$3,\"zavodnik\",B4))","v":106},null,{"$f":"IF(F4=\"\",\"\",IF(G4=G3,E3,ROW(E4)-ROW($E$3)+61))","v":59},{"$f":"IF(ISERR(GETPIVOTDATA(\"body\",knt_tab!$A$3,\"zavodnik\",knt_tab!A66)),\"\",IF(GETPIVOTDATA(\"body\",knt_tab!$A$3,\"zavodnik\",knt_tab!A66)=0,\"\",knt_tab!A66))","v":"Kanclíř Šimon"},{"$f":"IF(F4=\"\",\"\",GETPIVOTDATA(\"body\",knt_tab!$A$3,\"zavodnik\",F4))","v":11},null,{"$f":"IF(J4=\"\",\"\",IF(K4=K3,I3,ROW(I4)-ROW($I$3)+122))","v":""},{"$f":"IF(ISERR(GETPIVOTDATA(\"body\",knt_tab!$A$3,\"zavodnik\",knt_tab!A127)),\"\",IF(GETPIVOTDATA(\"body\",knt_tab!$A$3,\"zavodnik\",knt_tab!A127)=0,\"\",knt_tab!A127))","v":""},{"$f":"IF(J4=\"\",\"\",GETPIVOTDATA(\"body\",knt_tab!$A$3,\"zavodnik\",J4))","v":""},null,1,{"$f":"IF(ISERR(GETPIVOTDATA(\"body\",knt_tab!$AN$3,\"zavodnik\",knt_tab!AN5)),\"\",IF(GETPIVOTDATA(\"body\",knt_tab!$AN$3,\"zavodnik\",knt_tab!AN5)=0,\"\",knt_tab!AN5))","v":""},{"$f":"IF(N4=\"\",\"\",GETPIVOTDATA(\"body\",knt_tab!$AN$3,\"zavodnik\",N4))","v":""},null,1,{"$f":"IF(ISERR(GETPIVOTDATA(\"body\",knt_tab!$M$3,\"zavodnik\",knt_tab!M5)),\"\",IF(GETPIVOTDATA(\"body\",knt_tab!$M$3,\"zavodnik\",knt_tab!M5)=0,\"\",knt_tab!M5))","v":"Baudiš Michal"},{"$f":"IF(R4=\"\",\"\",GETPIVOTDATA(\"body\",knt_tab!$M$3,\"zavodnik\",R4))","v":40},null,{"$f":"IF(V4=\"\",\"\",IF(W4=W3,U3,ROW(U4)-ROW($U$2)+17))","v":19},{"$f":"IF(ISERR(GETPIVOTDATA(\"body\",knt_tab!$G$3,\"zavodnik\",knt_tab!G23)),\"\",IF(GETPIVOTDATA(\"body\",knt_tab!$G$3,\"zavodnik\",knt_tab!G23)=0,\"\",knt_tab!G23))","v":"Kožušník Václav"},{"$f":"IF(V4=\"\",\"\",GETPIVOTDATA(\"body\",knt_tab!$G$3,\"zavodnik\",V4))","v":4}]
[{"$f":"IF(B5=\"\",\"\",IF(C5=C4,A4,ROW(A5)-ROW($A$3)))","v":2},{"$f":"IF(ISERR(GETPIVOTDATA(\"body\",knt_tab!$A$3,\"zavodnik\",knt_tab!A6)),\"\",IF(GETPIVOTDATA(\"body\",knt_tab!$A$3,\"zavodnik\",knt_tab!A6)=0,\"\",knt_tab!A6))","v":"Motyka Dominik"},{"$f":"IF(B5=\"\",\"\",GETPIVOTDATA(\"body\",knt_tab!$A$3,\"zavodnik\",B5))","v":94},null,{"$f":"IF(F5=\"\",\"\",IF(G5=G4,E4,ROW(E5)-ROW($E$3)+61))","v":59},{"$f":"IF(ISERR(GETPIVOTDATA(\"body\",knt_tab!$A$3,\"zavodnik\",knt_tab!A67)),\"\",IF(GETPIVOTDATA(\"body\",knt_tab!$A$3,\"zavodnik\",knt_tab!A67)=0,\"\",knt_tab!A67))","v":"Plaček Viktor"},{"$f":"IF(F5=\"\",\"\",GETPIVOTDATA(\"body\",knt_tab!$A$3,\"zavodnik\",F5))","v":11},null,{"$f":"IF(J5=\"\",\"\",IF(K5=K4,I4,ROW(I5)-ROW($I$3)+122))","v":""},{"$f":"IF(ISERR(GETPIVOTDATA(\"body\",knt_tab!$A$3,\"zavodnik\",knt_tab!A128)),\"\",IF(GETPIVOTDATA(\"body\",knt_tab!$A$3,\"zavodnik\",knt_tab!A128)=0,\"\",knt_tab!A128))","v":""},{"$f":"IF(J5=\"\",\"\",GETPIVOTDATA(\"body\",knt_tab!$A$3,\"zavodnik\",J5))","v":""},null,{"$f":"IF(N5=\"\",\"\",IF(O5=O4,M4,ROW(M5)-ROW($M$3)))","v":""},{"$f":"IF(ISERR(GETPIVOTDATA(\"body\",knt_tab!$AN$3,\"zavodnik\",knt_tab!AN6)),\"\",IF(GETPIVOTDATA(\"body\",knt_tab!$AN$3,\"zavodnik\",knt_tab!AN6)=0,\"\",knt_tab!AN6))","v":""},{"$f":"IF(N5=\"\",\"\",GETPIVOTDATA(\"body\",knt_tab!$AN$3,\"zavodnik\",N5))","v":""},null,{"$f":"IF(R5=\"\",\"\",IF(S5=S4,Q4,ROW(Q5)-ROW($Q$3)))","v":2},{"$f":"IF(ISERR(GETPIVOTDATA(\"body\",knt_tab!$M$3,\"zavodnik\",knt_tab!M6)),\"\",IF(GETPIVOTDATA(\"body\",knt_tab!$M$3,\"zavodnik\",knt_tab!M6)=0,\"\",knt_tab!M6))","v":"Zwiling Šimon"},{"$f":"IF(R5=\"\",\"\",GETPIVOTDATA(\"body\",knt_tab!$M$3,\"zavodnik\",R5))","v":37},null,20,{"$f":"IF(ISERR(GETPIVOTDATA(\"body\",knt_tab!$G$3,\"zavodnik\",knt_tab!G24)),\"\",IF(GETPIVOTDATA(\"body\",knt_tab!$G$3,\"zavodnik\",knt_tab!G24)=0,\"\",knt_tab!G24))","v":"Stránský David"},{"$f":"IF(V5=\"\",\"\",GETPIVOTDATA(\"body\",knt_tab!$G$3,\"zavodnik\",V5))","v":2}]
[3,{"$f":"IF(ISERR(GETPIVOTDATA(\"body\",knt_tab!$A$3,\"zavodnik\",knt_tab!A7)),\"\",IF(GETPIVOTDATA(\"body\",knt_tab!$A$3,\"zavodnik\",knt_tab!A7)=0,\"\",knt_tab!A7))","v":"Křížek Šimon"},{"$f":"IF(B6=\"\",\"\",GETPIVOTDATA(\"body\",knt_tab!$A$3,\"zavodnik\",B6))","v":91},null,64,{"$f":"IF(ISERR(GETPIVOTDATA(\"body\",knt_tab!$A$3,\"zavodnik\",knt_tab!A68)),\"\",IF(GETPIVOTDATA(\"body\",knt_tab!$A$3,\"zavodnik\",knt_tab!A68)=0,\"\",knt_tab!A68))","v":"Kuchejdová Veronika"},{"$f":"IF(F6=\"\",\"\",GETPIVOTDATA(\"body\",knt_tab!$A$3,\"zavodnik\",F6))","v":10},null,"",{"$f":"IF(ISERR(GETPIVOTDATA(\"body\",knt_tab!$A$3,\"zavodnik\",knt_tab!A129)),\"\",IF(GETPIVOTDATA(\"body\",knt_tab!$A$3,\"zavodnik\",knt_tab!A129)=0,\"\",knt_tab!A129))","v":""},{"$f":"IF(J6=\"\",\"\",GETPIVOTDATA(\"body\",knt_tab!$A$3,\"zavodnik\",J6))","v":""},null,{"$f":"IF(N6=\"\",\"\",IF(O6=O5,M5,ROW(M6)-ROW($M$3)))","v":""},{"$f":"IF(ISERR(GETPIVOTDATA(\"body\",knt_tab!$AN$3,\"zavodnik\",knt_tab!AN7)),\"\",IF(GETPIVOTDATA(\"body\",knt_tab!$AN$3,\"zavodnik\",knt_tab!AN7)=0,\"\",knt_tab!AN7))","v":""},{"$f":"IF(N6=\"\",\"\",GETPIVOTDATA(\"body\",knt_tab!$AN$3,\"zavodnik\",N6))","v":""},null,3,{"$f":"IF(ISERR(GETPIVOTDATA(\"body\",knt_tab!$M$3,\"zavodnik\",knt_tab!M7)),\"\",IF(GETPIVOTDATA(\"body\",knt_tab!$M$3,\"zavodnik\",knt_tab!M7)=0,\"\",knt_tab!M7))","v":"Seibert Marian"},{"$f":"IF(R6=\"\",\"\",GETPIVOTDATA(\"body\",knt_tab!$M$3,\"zavodnik\",R6))","v":28},null,20,{"$f":"IF(ISERR(GETPIVOTDATA(\"body\",knt_tab!$G$3,\"zavodnik\",knt_tab!G25)),\"\",IF(GETPIVOTDATA(\"body\",knt_tab!$G$3,\"zavodnik\",knt_tab!G25)=0,\"\",knt_tab!G25))","v":"Berka Daniel"},{"$f":"IF(V6=\"\",\"\",GETPIVOTDATA(\"body\",knt_tab!$G$3,\"zavodnik\",V6))","v":2}]
[4,{"$f":"IF(ISERR(GETPIVOTDATA(\"body\",knt_tab!$A$3,\"zavodnik\",knt_tab!A8)),\"\",IF(GETPIVOTDATA(\"body\",knt_tab!$A$3,\"zavodnik\",knt_tab!A8)=0,\"\",knt_tab!A8))","v":"Lindovský Jiří"},{"$f":"IF(B7=\"\",\"\",GETPIVOTDATA(\"body\",knt_tab!$A$3,\"zavodnik\",B7))","v":87},null,64,{"$f":"IF(ISERR(GETPIVOTDATA(\"body\",knt_tab!$A$3,\"zavodnik\",knt_tab!A69)),\"\",IF(GETPIVOTDATA(\"body\",knt_tab!$A$3,\"zavodnik\",knt_tab!A69)=0,\"\",knt_tab!A69))","v":"Zoulová Karolína"},{"$f":"IF(F7=\"\",\"\",GETPIVOTDATA(\"body\",knt_tab!$A$3,\"zavodnik\",F7))","v":10},null,{"$f":"IF(J7=\"\",\"\",IF(K7=K6,I6,ROW(I7)-ROW($I$3)+122))","v":""},{"$f":"IF(ISERR(GETPIVOTDATA(\"body\",knt_tab!$A$3,\"zavodnik\",knt_tab!A130)),\"\",IF(GETPIVOTDATA(\"body\",knt_tab!$A$3,\"zavodnik\",knt_tab!A130)=0,\"\",knt_tab!A130))","v":""},{"$f":"IF(J7=\"\",\"\",GETPIVOTDATA(\"body\",knt_tab!$A$3,\"zavodnik\",J7))","v":""},null,"",{"$f":"IF(ISERR(GETPIVOTDATA(\"body\",knt_tab!$AN$3,\"zavodnik\",knt_tab!AN8)),\"\",IF(GETPIVOTDATA(\"body\",knt_tab!$AN$3,\"zavodnik\",knt_tab!AN8)=0,\"\",knt_tab!AN8))","v":""},{"$f":"IF(N7=\"\",\"\",GETPIVOTDATA(\"body\",knt_tab!$AN$3,\"zavodnik\",N7))","v":""},null,4,{"$f":"IF(ISERR(GETPIVOTDATA(\"body\",knt_tab!$M$3,\"zavodnik\",knt_tab!M8)),\"\",IF(GETPIVOTDATA(\"body\",knt_tab!$M$3,\"zavodnik\",knt_tab!M8)=0,\"\",knt_tab!M8))","v":"Pospíšil Jan"},{"$f":"IF(R7=\"\",\"\",GETPIVOTDATA(\"body\",knt_tab!$M$3,\"zavodnik\",R7))","v":24},null,"",{"$f":"IF(ISERR(GETPIVOTDATA(\"body\",knt_tab!$G$3,\"zavodnik\",knt_tab!G26)),\"\",IF(GETPIVOTDATA(\"body\",knt_tab!$G$3,\"zavodnik\",knt_tab!G26)=0,\"\",knt_tab!G26))","v":""},{"$f":"IF(V7=\"\",\"\",GETPIVOTDATA(\"body\",knt_tab!$G$3,\"zavodnik\",V7))","v":""}]
[5,{"$f":"IF(ISERR(GETPIVOTDATA(\"body\",knt_tab!$A$3,\"zavodnik\",knt_tab!A9)),\"\",IF(GETPIVOTDATA(\"body\",knt_tab!$A$3,\"zavodnik\",knt_tab!A9)=0,\"\",knt_tab!A9))","v":"Silvestr Matěj"},{"$f":"IF(B8=\"\",\"\",GETPIVOTDATA(\"body\",knt_tab!$A$3,\"zavodnik\",B8))","v":80},null,66,{"$f":"IF(ISERR(GETPIVOTDATA(\"body\",knt_tab!$A$3,\"zavodnik\",knt_tab!A70)),\"\",IF(GETPIVOTDATA(\"body\",knt_tab!$A$3,\"zavodnik\",knt_tab!A70)=0,\"\",knt_tab!A70))","v":"Svoboda Jiří"},{"$f":"IF(F8=\"\",\"\",GETPIVOTDATA(\"body\",knt_tab!$A$3,\"zavodnik\",F8))","v":9},null,{"$f":"IF(J8=\"\",\"\",IF(K8=K7,I7,ROW(I8)-ROW($I$3)+122))","v":""},{"$f":"IF(ISERR(GETPIVOTDATA(\"body\",knt_tab!$A$3,\"zavodnik\",knt_tab!A131)),\"\",IF(GETPIVOTDATA(\"body\",knt_tab!$A$3,\"zavodnik\",knt_tab!A131)=0,\"\",knt_tab!A131))","v":""},{"$f":"IF(J8=\"\",\"\",GETPIVOTDATA(\"body\",knt_tab!$A$3,\"zavodnik\",J8))","v":""},null,"Junioři",null,null,null,5,{"$f":"IF(ISERR(GETPIVOTDATA(\"body\",knt_tab!$M$3,\"zavodnik\",knt_tab!M9)),\"\",IF(GETPIVOTDATA(\"body\",knt_tab!$M$3,\"zavodnik\",knt_tab!M9)=0,\"\",knt_tab!M9))","v":"Plaček Viktor"},{"$f":"IF(R8=\"\",\"\",GETPIVOTDATA(\"body\",knt_tab!$M$3,\"zavodnik\",R8))","v":11},null,"",{"$f":"IF(ISERR(GETPIVOTDATA(\"body\",knt_tab!$G$3,\"zavodnik\",knt_tab!G27)),\"\",IF(GETPIVOTDATA(\"body\",knt_tab!$G$3,\"zavodnik\",knt_tab!G27)=0,\"\",knt_tab!G27))","v":""},{"$f":"IF(V8=\"\",\"\",GETPIVOTDATA(\"body\",knt_tab!$G$3,\"zavodnik\",V8))","v":""}]
[6,{"$f":"IF(ISERR(GETPIVOTDATA(\"body\",knt_tab!$A$3,\"zavodnik\",knt_tab!A10)),\"\",IF(GETPIVOTDATA(\"body\",knt_tab!$A$3,\"zavodnik\",knt_tab!A10)=0,\"\",knt_tab!A10))","v":"Vontor Tomáš"},{"$f":"IF(B9=\"\",\"\",GETPIVOTDATA(\"body\",knt_tab!$A$3,\"zavodnik\",B9))","v":77},null,67,{"$f":"IF(ISERR(GETPIVOTDATA(\"body\",knt_tab!$A$3,\"zavodnik\",knt_tab!A71)),\"\",IF(GETPIVOTDATA(\"body\",knt_tab!$A$3,\"zavodnik\",knt_tab!A71)=0,\"\",knt_tab!A71))","v":"Pavlík Lukáš"},{"$f":"IF(F9=\"\",\"\",GETPIVOTDATA(\"body\",knt_tab!$A$3,\"zavodnik\",F9))","v":8},null,"",{"$f":"IF(ISERR(GETPIVOTDATA(\"body\",knt_tab!$A$3,\"zavodnik\",knt_tab!A132)),\"\",IF(GETPIVOTDATA(\"body\",knt_tab!$A$3,\"zavodnik\",knt_tab!A132)=0,\"\",knt_tab!A132))","v":""},{"$f":"IF(J9=\"\",\"\",GETPIVOTDATA(\"body\",knt_tab!$A$3,\"zavodnik\",J9))","v":""},null,"Pořadí","Příjmení","body",null,5,{"$f":"IF(ISERR(GETPIVOTDATA(\"body\",knt_tab!$M$3,\"zavodnik\",knt_tab!M10)),\"\",IF(GETPIVOTDATA(\"body\",knt_tab!$M$3,\"zavodnik\",knt_tab!M10)=0,\"\",knt_tab!M10))","v":"Valošek Jakub"},{"$f":"IF(R9=\"\",\"\",GETPIVOTDATA(\"body\",knt_tab!$M$3,\"zavodnik\",R9))","v":11},null,"",{"$f":"IF(ISERR(GETPIVOTDATA(\"body\",knt_tab!$G$3,\"zavodnik\",knt_tab!G28)),\"\",IF(GETPIVOTDATA(\"body\",knt_tab!$G$3,\"zavodnik\",knt_tab!G28)=0,\"\",knt_tab!G28))","v":""},{"$f":"IF(V9=\"\",\"\",GETPIVOTDATA(\"body\",knt_tab!$G$3,\"zavodnik\",V9))","v":""}]
[7,{"$f":"IF(ISERR(GETPIVOTDATA(\"body\",knt_tab!$A$3,\"zavodnik\",knt_tab!A11)),\"\",IF(GETPIVOTDATA(\"body\",knt_tab!$A$3,\"zavodnik\",knt_tab!A11)=0,\"\",knt_tab!A11))","v":"Fulneček Šimon"},{"$f":"IF(B10=\"\",\"\",GETPIVOTDATA(\"body\",knt_tab!$A$3,\"zavodnik\",B10))","v":68},null,67,{"$f":"IF(ISERR(GETPIVOTDATA(\"body\",knt_tab!$A$3,\"zavodnik\",knt_tab!A72)),\"\",IF(GETPIVOTDATA(\"body\",knt_tab!$A$3,\"zavodnik\",knt_tab!A72)=0,\"\",knt_tab!A72))","v":"Šelongová Viktorie"},{"$f":"IF(F10=\"\",\"\",GETPIVOTDATA(\"body\",knt_tab!$A$3,\"zavodnik\",F10))","v":8},null,"",{"$f":"IF(ISERR(GETPIVOTDATA(\"body\",knt_tab!$A$3,\"zavodnik\",knt_tab!A133)),\"\",IF(GETPIVOTDATA(\"body\",knt_tab!$A$3,\"zavodnik\",knt_tab!A133)=0,\"\",knt_tab!A133))","v":""},{"$f":"IF(J10=\"\",\"\",GETPIVOTDATA(\"body\",knt_tab!$A$3,\"zavodnik\",J10))","v":""},null,1,{"$f":"IF(ISERR(GETPIVOTDATA(\"body\",knt_tab!$Y$3,\"zavodnik\",knt_tab!Y5)),\"\",IF(GETPIVOTDATA(\"body\",knt_tab!$Y$3,\"zavodnik\",knt_tab!Y5)=0,\"\",knt_tab!Y5))","v":"Šimek Daniel"},{"$f":"IF(N10=\"\",\"\",GETPIVOTDATA(\"body\",knt_tab!$Y$3,\"zavodnik\",N10))","v":11},null,5,{"$f":"IF(ISERR(GETPIVOTDATA(\"body\",knt_tab!$M$3,\"zavodnik\",knt_tab!M11)),\"\",IF(GETPIVOTDATA(\"body\",knt_tab!$M$3,\"zavodnik\",knt_tab!M11)=0,\"\",knt_tab!M11))","v":"Kanclíř Šimon"},{"$f":"IF(R10=\"\",\"\",GETPIVOTDATA(\"body\",knt_tab!$M$3,\"zavodnik\",R10))","v":11},null,"",{"$f":"IF(ISERR(GETPIVOTDATA(\"body\",knt_tab!$G$3,\"zavodnik\",knt_tab!G29)),\"\",IF(GETPIVOTDATA(\"body\",knt_tab!$G$3,\"zavodnik\",knt_tab!G29)=0,\"\",knt_tab!G29))","v":""},{"$f":"IF(V10=\"\",\"\",GETPIVOTDATA(\"body\",knt_tab!$G$3,\"zavodnik\",V10))","v":""}]
[8,{"$f":"IF(ISERR(GETPIVOTDATA(\"body\",knt_tab!$A$3,\"zavodnik\",knt_tab!A12)),\"\",IF(GETPIVOTDATA(\"body\",knt_tab!$A$3,\"zavodnik\",knt_tab!A12)=0,\"\",knt_tab!A12))","v":"Václavková Tereza"},{"$f":"IF(B11=\"\",\"\",GETPIVOTDATA(\"body\",knt_tab!$A$3,\"zavodnik\",B11))","v":65},null,67,{"$f":"IF(ISERR(GETPIVOTDATA(\"body\",knt_tab!$A$3,\"zavodnik\",knt_tab!A73)),\"\",IF(GETPIVOTDATA(\"body\",knt_tab!$A$3,\"zavodnik\",knt_tab!A73)=0,\"\",knt_tab!A73))","v":"Homolová Kristýna"},{"$f":"IF(F11=\"\",\"\",GETPIVOTDATA(\"body\",knt_tab!$A$3,\"zavodnik\",F11))","v":8},null,"",{"$f":"IF(ISERR(GETPIVOTDATA(\"body\",knt_tab!$A$3,\"zavodnik\",knt_tab!A134)),\"\",IF(GETPIVOTDATA(\"body\",knt_tab!$A$3,\"zavodnik\",knt_tab!A134)=0,\"\",knt_tab!A134))","v":""},{"$f":"IF(J11=\"\",\"\",GETPIVOTDATA(\"body\",knt_tab!$A$3,\"zavodnik\",J11))","v":""},null,{"$f":"IF(N11=\"\",\"\",IF(O11=O10,M10,ROW(M11)-ROW($M$9)))","v":2},{"$f":"IF(ISERR(GETPIVOTDATA(\"body\",knt_tab!$Y$3,\"zavodnik\",knt_tab!Y6)),\"\",IF(GETPIVOTDATA(\"body\",knt_tab!$Y$3,\"zavodnik\",knt_tab!Y6)=0,\"\",knt_tab!Y6))","v":"Motyka Dominik"},{"$f":"IF(N11=\"\",\"\",GETPIVOTDATA(\"body\",knt_tab!$Y$3,\"zavodnik\",N11))","v":10},null,8,{"$f":"IF(ISERR(GETPIVOTDATA(\"body\",knt_tab!$M$3,\"zavodnik\",knt_tab!M12)),\"\",IF(GETPIVOTDATA(\"body\",knt_tab!$M$3,\"zavodnik\",knt_tab!M12)=0,\"\",knt_tab!M12))","v":"Pavlík Lukáš"},{"$f":"IF(R11=\"\",\"\",GETPIVOTDATA(\"body\",knt_tab!$M$3,\"zavodnik\",R11))","v":8},null,"",{"$f":"IF(ISERR(GETPIVOTDATA(\"body\",knt_tab!$G$3,\"zavodnik\",knt_tab!G30)),\"\",IF(GETPIVOTDATA(\"body\",knt_tab!$G$3,\"zavodnik\",knt_tab!G30)=0,\"\",knt_tab!G30))","v":""},{"$f":"IF(V11=\"\",\"\",GETPIVOTDATA(\"body\",knt_tab!$G$3,\"zavodnik\",V11))","v":""}]
[9,{"$f":"IF(ISERR(GETPIVOTDATA(\"body\",knt_tab!$A$3,\"zavodnik\",knt_tab!A13)),\"\",IF(GETPIVOTDATA(\"body\",knt_tab!$A$3,\"zavodnik\",knt_tab!A13)=0,\"\",knt_tab!A13))","v":"Čerchlová Markéta"},{"$f":"IF(B12=\"\",\"\",GETPIVOTDATA(\"body\",knt_tab!$A$3,\"zavodnik\",B12))","v":62},null,67,{"$f":"IF(ISERR(GETPIVOTDATA(\"body\",knt_tab!$A$3,\"zavodnik\",knt_tab!A74)),\"\",IF(GETPIVOTDATA(\"body\",knt_tab!$A$3,\"zavodnik\",knt_tab!A74)=0,\"\",knt_tab!A74))","v":"Soukup Hugo"},{"$f":"IF(F12=\"\",\"\",GETPIVOTDATA(\"body\",knt_tab!$A$3,\"zavodnik\",F12))","v":8},null,"",{"$f":"IF(ISERR(GETPIVOTDATA(\"body\",knt_tab!$A$3,\"zavodnik\",knt_tab!A135)),\"\",IF(GETPIVOTDATA(\"body\",knt_tab!$A$3,\"zavodnik\",knt_tab!A135)=0,\"\",knt_tab!A135))","v":""},{"$f":"IF(J12=\"\",\"\",GETPIVOTDATA(\"body\",knt_tab!$A$3,\"zavodnik\",J12))","v":""},null,{"$f":"IF(N12=\"\",\"\",IF(O12=O11,M11,ROW(M12)-ROW($M$9)))","v":3},{"$f":"IF(ISERR(GETPIVOTDATA(\"body\",knt_tab!$Y$3,\"zavodnik\",knt_tab!Y7)),\"\",IF(GETPIVOTDATA(\"body\",knt_tab!$Y$3,\"zavodnik\",knt_tab!Y7)=0,\"\",knt_tab!Y7))","v":"Vršek Jakub"},{"$f":"IF(N12=\"\",\"\",GETPIVOTDATA(\"body\",knt_tab!$Y$3,\"zavodnik\",N12))","v":8},null,9,{"$f":"IF(ISERR(GETPIVOTDATA(\"body\",knt_tab!$M$3,\"zavodnik\",knt_tab!M13)),\"\",IF(GETPIVOTDATA(\"body\",knt_tab!$M$3,\"zavodnik\",knt_tab!M13)=0,\"\",knt_tab!M13))","v":"Kulhánek Adam"},{"$f":"IF(R12=\"\",\"\",GETPIVOTDATA(\"body\",knt_tab!$M$3,\"zavodnik\",R12))","v":5},null,"",{"$f":"IF(ISERR(GETPIVOTDATA(\"body\",knt_tab!$G$3,\"zavodnik\",knt_tab!G31)),\"\",IF(GETPIVOTDATA(\"body\",knt_tab!$G$3,\"zavodnik\",knt_tab!G31)=0,\"\",knt_tab!G31))","v":""},{"$f":"IF(V12=\"\",\"\",GETPIVOTDATA(\"body\",knt_tab!$G$3,\"zavodnik\",V12))","v":""}]
[10,{"$f":"IF(ISERR(GETPIVOTDATA(\"body\",knt_tab!$A$3,\"zavodnik\",knt_tab!A14)),\"\",IF(GETPIVOTDATA(\"body\",knt_tab!$A$3,\"zavodnik\",knt_tab!A14)=0,\"\",knt_tab!A14))","v":"Stark Vojtěch"},{"$f":"IF(B13=\"\",\"\",GETPIVOTDATA(\"body\",knt_tab!$A$3,\"zavodnik\",B13))","v":53},null,67,{"$f":"IF(ISERR(GETPIVOTDATA(\"body\",knt_tab!$A$3,\"zavodnik\",knt_tab!A75)),\"\",IF(GETPIVOTDATA(\"body\",knt_tab!$A$3,\"zavodnik\",knt_tab!A75)=0,\"\",knt_tab!A75))","v":"Slováková Tereza"},{"$f":"IF(F13=\"\",\"\",GETPIVOTDATA(\"body\",knt_tab!$A$3,\"zavodnik\",F13))","v":8},null,{"$f":"IF(J13=\"\",\"\",IF(K13=K12,I12,ROW(I13)-ROW($I$3)+122))","v":""},{"$f":"IF(ISERR(GETPIVOTDATA(\"body\",knt_tab!$A$3,\"zavodnik\",knt_tab!A136)),\"\",IF(GETPIVOTDATA(\"body\",knt_tab!$A$3,\"zavodnik\",knt_tab!A136)=0,\"\",knt_tab!A136))","v":""},{"$f":"IF(J13=\"\",\"\",GETPIVOTDATA(\"body\",knt_tab!$A$3,\"zavodnik\",J13))","v":""},null,{"$f":"IF(N13=\"\",\"\",IF(O13=O12,M12,ROW(M13)-ROW($M$9)))","v":4},{"$f":"IF(ISERR(GETPIVOTDATA(\"body\",knt_tab!$Y$3,\"zavodnik\",knt_tab!Y8)),\"\",IF(GETPIVOTDATA(\"body\",knt_tab!$Y$3,\"zavodnik\",knt_tab!Y8)=0,\"\",knt_tab!Y8))","v":"Malaczynski Filip"},{"$f":"IF(N13=\"\",\"\",GETPIVOTDATA(\"body\",knt_tab!$Y$3,\"zavodnik\",N13))","v":7},null,10,{"$f":"IF(ISERR(GETPIVOTDATA(\"body\",knt_tab!$M$3,\"zavodnik\",knt_tab!M14)),\"\",IF(GETPIVOTDATA(\"body\",knt_tab!$M$3,\"zavodnik\",knt_tab!M14)=0,\"\",knt_tab!M14))","v":"Salinger David"},{"$f":"IF(R13=\"\",\"\",GETPIVOTDATA(\"body\",knt_tab!$M$3,\"zavodnik\",R13))","v":4},null,"",{"$f":"IF(ISERR(GETPIVOTDATA(\"body\",knt_tab!$G$3,\"zavodnik\",knt_tab!G32)),\"\",IF(GETPIVOTDATA(\"body\",knt_tab!$G$3,\"zavodnik\",knt_tab!G32)=0,\"\",knt_tab!G32))","v":""},{"$f":"IF(V13=\"\",\"\",GETPIVOTDATA(\"body\",knt_tab!$G$3,\"zavodnik\",V13))","v":""}]
[11,{"$f":"IF(ISERR(GETPIVOTDATA(\"body\",knt_tab!$A$3,\"zavodnik\",knt_tab!A15)),\"\",IF(GETPIVOTDATA(\"body\",knt_tab!$A$3,\"zavodnik\",knt_tab!A15)=0,\"\",knt_tab!A15))","v":"Kršňák Filip"},{"$f":"IF(B14=\"\",\"\",GETPIVOTDATA(\"body\",knt_tab!$A$3,\"zavodnik\",B14))","v":52},null,67,{"$f":"IF(ISERR(GETPIVOTDATA(\"body\",knt_tab!$A$3,\"zavodnik\",knt_tab!A76)),\"\",IF(GETPIVOTDATA(\"body\",knt_tab!$A$3,\"zavodnik\",knt_tab!A76)=0,\"\",knt_tab!A76))","v":"Procházka Daniel"},{"$f":"IF(F14=\"\",\"\",GETPIVOTDATA(\"body\",knt_tab!$A$3,\"zavodnik\",F14))","v":8},null,"",{"$f":"IF(ISERR(GETPIVOTDATA(\"body\",knt_tab!$A$3,\"zavodnik\",knt_tab!A137)),\"\",IF(GETPIVOTDATA(\"body\",knt_tab!$A$3,\"zavodnik\",knt_tab!A137)=0,\"\",knt_tab!A137))","v":""},{"$f":"IF(J14=\"\",\"\",GETPIVOTDATA(\"body\",knt_tab!$A$3,\"zavodnik\",J14))","v":""},null,{"$f":"IF(N14=\"\",\"\",IF(O14=O13,M13,ROW(M14)-ROW($M$9)))","v":""},{"$f":"IF(ISERR(GETPIVOTDATA(\"body\",knt_tab!$Y$3,\"zavodnik\",knt_tab!Y9)),\"\",IF(GETPIVOTDATA(\"body\",knt_tab!$Y$3,\"zavodnik\",knt_tab!Y9)=0,\"\",knt_tab!Y9))","v":""},{"$f":"IF(N14=\"\",\"\",GETPIVOTDATA(\"body\",knt_tab!$Y$3,\"zavodnik\",N14))","v":""},null,11,{"$f":"IF(ISERR(GETPIVOTDATA(\"body\",knt_tab!$M$3,\"zavodnik\",knt_tab!M15)),\"\",IF(GETPIVOTDATA(\"body\",knt_tab!$M$3,\"zavodnik\",knt_tab!M15)=0,\"\",knt_tab!M15))","v":"Dryšl Adam"},{"$f":"IF(R14=\"\",\"\",GETPIVOTDATA(\"body\",knt_tab!$M$3,\"zavodnik\",R14))","v":3},null,"",{"$f":"IF(ISERR(GETPIVOTDATA(\"body\",knt_tab!$G$3,\"zavodnik\",knt_tab!G33)),\"\",IF(GETPIVOTDATA(\"body\",knt_tab!$G$3,\"zavodnik\",knt_tab!G33)=0,\"\",knt_tab!G33))","v":""},{"$f":"IF(V14=\"\",\"\",GETPIVOTDATA(\"body\",knt_tab!$G$3,\"zavodnik\",V14))","v":""}]
[12,{"$f":"IF(ISERR(GETPIVOTDATA(\"body\",knt_tab!$A$3,\"zavodnik\",knt_tab!A16)),\"\",IF(GETPIVOTDATA(\"body\",knt_tab!$A$3,\"zavodnik\",knt_tab!A16)=0,\"\",knt_tab!A16))","v":"Vavřínová Pavla"},{"$f":"IF(B15=\"\",\"\",GETPIVOTDATA(\"body\",knt_tab!$A$3,\"zavodnik\",B15))","v":43},null,73,{"$f":"IF(ISERR(GETPIVOTDATA(\"body\",knt_tab!$A$3,\"zavodnik\",knt_tab!A77)),\"\",IF(GETPIVOTDATA(\"body\",knt_tab!$A$3,\"zavodnik\",knt_tab!A77)=0,\"\",knt_tab!A77))","v":"Bravanský Marek"},{"$f":"IF(F15=\"\",\"\",GETPIVOTDATA(\"body\",knt_tab!$A$3,\"zavodnik\",F15))","v":7},null,"",{"$f":"IF(ISERR(GETPIVOTDATA(\"body\",knt_tab!$A$3,\"zavodnik\",knt_tab!A138)),\"\",IF(GETPIVOTDATA(\"body\",knt_tab!$A$3,\"zavodnik\",knt_tab!A138)=0,\"\",knt_tab!A138))","v":""},{"$f":"IF(J15=\"\",\"\",GETPIVOTDATA(\"body\",knt_tab!$A$3,\"zavodnik\",J15))","v":""},null,{"$f":"IF(N15=\"\",\"\",IF(O15=O14,M14,ROW(M15)-ROW($M$9)))","v":""},{"$f":"IF(ISERR(GETPIVOTDATA(\"body\",knt_tab!$Y$3,\"zavodnik\",knt_tab!Y10)),\"\",IF(GETPIVOTDATA(\"body\",knt_tab!$Y$3,\"zavodnik\",knt_tab!Y10)=0,\"\",knt_tab!Y10))","v":""},{"$f":"IF(N15=\"\",\"\",GETPIVOTDATA(\"body\",knt_tab!$Y$3,\"zavodnik\",N15))","v":""},null,12,{"$f":"IF(ISERR(GETPIVOTDATA(\"body\",knt_tab!$M$3,\"zavodnik\",knt_tab!M16)),\"\",IF(GETPIVOTDATA(\"body\",knt_tab!$M$3,\"zavodnik\",knt_tab!M16)=0,\"\",knt_tab!M16))","v":"Selinger David"},{"$f":"IF(R15=\"\",\"\",GETPIVOTDATA(\"body\",knt_tab!$M$3,\"zavodnik\",R15))","v":1},null,"",{"$f":"IF(ISERR(GETPIVOTDATA(\"body\",knt_tab!$G$3,\"zavodnik\",knt_tab!G34)),\"\",IF(GETPIVOTDATA(\"body\",knt_tab!$G$3,\"zavodnik\",knt_tab!G34)=0,\"\",knt_tab!G34))","v":""},{"$f":"IF(V15=\"\",\"\",GETPIVOTDATA(\"body\",knt_tab!$G$3,\"zavodnik\",V15))","v":""}]
[13,{"$f":"IF(ISERR(GETPIVOTDATA(\"body\",knt_tab!$A$3,\"zavodnik\",knt_tab!A17)),\"\",IF(GETPIVOTDATA(\"body\",knt_tab!$A$3,\"zavodnik\",knt_tab!A17)=0,\"\",knt_tab!A17))","v":"Polašková Kristýna"},{"$f":"IF(B16=\"\",\"\",GETPIVOTDATA(\"body\",knt_tab!$A$3,\"zavodnik\",B16))","v":42},null,73,{"$f":"IF(ISERR(GETPIVOTDATA(\"body\",knt_tab!$A$3,\"zavodnik\",knt_tab!A78)),\"\",IF(GETPIVOTDATA(\"body\",knt_tab!$A$3,\"zavodnik\",knt_tab!A78)=0,\"\",knt_tab!A78))","v":"Vlček Viktor"},{"$f":"IF(F16=\"\",\"\",GETPIVOTDATA(\"body\",knt_tab!$A$3,\"zavodnik\",F16))","v":7},null,"",{"$f":"IF(ISERR(GETPIVOTDATA(\"body\",knt_tab!$A$3,\"zavodnik\",knt_tab!A139)),\"\",IF(GETPIVOTDATA(\"body\",knt_tab!$A$3,\"zavodnik\",knt_tab!A139)=0,\"\",knt_tab!A139))","v":""},{"$f":"IF(J16=\"\",\"\",GETPIVOTDATA(\"body\",knt_tab!$A$3,\"zavodnik\",J16))","v":""},null,{"$f":"IF(N16=\"\",\"\",IF(O16=O15,M15,ROW(M16)-ROW($M$9)))","v":""},{"$f":"IF(ISERR(GETPIVOTDATA(\"body\",knt_tab!$Y$3,\"zavodnik\",knt_tab!Y11)),\"\",IF(GETPIVOTDATA(\"body\",knt_tab!$Y$3,\"zavodnik\",knt_tab!Y11)=0,\"\",knt_tab!Y11))","v":""},{"$f":"IF(N16=\"\",\"\",GETPIVOTDATA(\"body\",knt_tab!$Y$3,\"zavodnik\",N16))","v":""},null,{"$f":"IF(R16=\"\",\"\",IF(S16=S15,Q15,ROW(Q16)-ROW($Q$3)))","v":12},{"$f":"IF(ISERR(GETPIVOTDATA(\"body\",knt_tab!$M$3,\"zavodnik\",knt_tab!M17)),\"\",IF(GETPIVOTDATA(\"body\",knt_tab!$M$3,\"zavodnik\",knt_tab!M17)=0,\"\",knt_tab!M17))","v":"Trojek Václav"},{"$f":"IF(R16=\"\",\"\",GETPIVOTDATA(\"body\",knt_tab!$M$3,\"zavodnik\",R16))","v":1},null,"",{"$f":"IF(ISERR(GETPIVOTDATA(\"body\",knt_tab!$G$3,\"zavodnik\",knt_tab!G35)),\"\",IF(GETPIVOTDATA(\"body\",knt_tab!$G$3,\"zavodnik\",knt_tab!G35)=0,\"\",knt_tab!G35))","v":""},{"$f":"IF(V16=\"\",\"\",GETPIVOTDATA(\"body\",knt_tab!$G$3,\"zavodnik\",V16))","v":""}]
[13,{"$f":"IF(ISERR(GETPIVOTDATA(\"body\",knt_tab!$A$3,\"zavodnik\",knt_tab!A18)),\"\",IF(GETPIVOTDATA(\"body\",knt_tab!$A$3,\"zavodnik\",knt_tab!A18)=0,\"\",knt_tab!A18))","v":"Potůček Tomáš"},{"$f":"IF(B17=\"\",\"\",GETPIVOTDATA(\"body\",knt_tab!$A$3,\"zavodnik\",B17))","v":42},null,75,{"$f":"IF(ISERR(GETPIVOTDATA(\"body\",knt_tab!$A$3,\"zavodnik\",knt_tab!A79)),\"\",IF(GETPIVOTDATA(\"body\",knt_tab!$A$3,\"zavodnik\",knt_tab!A79)=0,\"\",knt_tab!A79))","v":"Meixner Michal"},{"$f":"IF(F17=\"\",\"\",GETPIVOTDATA(\"body\",knt_tab!$A$3,\"zavodnik\",F17))","v":6},null,{"$f":"IF(J17=\"\",\"\",IF(K17=K16,I16,ROW(I17)-ROW($I$3)+122))","v":""},{"$f":"IF(ISERR(GETPIVOTDATA(\"body\",knt_tab!$A$3,\"zavodnik\",knt_tab!A140)),\"\",IF(GETPIVOTDATA(\"body\",knt_tab!$A$3,\"zavodnik\",knt_tab!A140)=0,\"\",knt_tab!A140))","v":""},{"$f":"IF(J17=\"\",\"\",GETPIVOTDATA(\"body\",knt_tab!$A$3,\"zavodnik\",J17))","v":""},null,"",{"$f":"IF(ISERR(GETPIVOTDATA(\"body\",knt_tab!$Y$3,\"zavodnik\",knt_tab!Y12)),\"\",IF(GETPIVOTDATA(\"body\",knt_tab!$Y$3,\"zavodnik\",knt_tab!Y12)=0,\"\",knt_tab!Y12))","v":""},{"$f":"IF(N17=\"\",\"\",GETPIVOTDATA(\"body\",knt_tab!$Y$3,\"zavodnik\",N17))","v":""},null,{"$f":"IF(R17=\"\",\"\",IF(S17=S16,Q16,ROW(Q17)-ROW($Q$3)))","v":""},{"$f":"IF(ISERR(GETPIVOTDATA(\"body\",knt_tab!$M$3,\"zavodnik\",knt_tab!M18)),\"\",IF(GETPIVOTDATA(\"body\",knt_tab!$M$3,\"zavodnik\",knt_tab!M18)=0,\"\",knt_tab!M18))","v":""},{"$f":"IF(R17=\"\",\"\",GETPIVOTDATA(\"body\",knt_tab!$M$3,\"zavodnik\",R17))","v":""},null,"",{"$f":"IF(ISERR(GETPIVOTDATA(\"body\",knt_tab!$G$3,\"zavodnik\",knt_tab!G36)),\"\",IF(GETPIVOTDATA(\"body\",knt_tab!$G$3,\"zavodnik\",knt_tab!G36)=0,\"\",knt_tab!G36))","v":""},{"$f":"IF(V17=\"\",\"\",GETPIVOTDATA(\"body\",knt_tab!$G$3,\"zavodnik\",V17))","v":""}]
[13,{"$f":"IF(ISERR(GETPIVOTDATA(\"body\",knt_tab!$A$3,\"zavodnik\",knt_tab!A19)),\"\",IF(GETPIVOTDATA(\"body\",knt_tab!$A$3,\"zavodnik\",knt_tab!A19)=0,\"\",knt_tab!A19))","v":"Ciora Jakub"},{"$f":"IF(B18=\"\",\"\",GETPIVOTDATA(\"body\",knt_tab!$A$3,\"zavodnik\",B18))","v":42},null,75,{"$f":"IF(ISERR(GETPIVOTDATA(\"body\",knt_tab!$A$3,\"zavodnik\",knt_tab!A80)),\"\",IF(GETPIVOTDATA(\"body\",knt_tab!$A$3,\"zavodnik\",knt_tab!A80)=0,\"\",knt_tab!A80))","v":"Bauko Viktor"},{"$f":"IF(F18=\"\",\"\",GETPIVOTDATA(\"body\",knt_tab!$A$3,\"zavodnik\",F18))","v":6},null,"",{"$f":"IF(ISERR(GETPIVOTDATA(\"body\",knt_tab!$A$3,\"zavodnik\",knt_tab!A141)),\"\",IF(GETPIVOTDATA(\"body\",knt_tab!$A$3,\"zavodnik\",knt_tab!A141)=0,\"\",knt_tab!A141))","v":""},{"$f":"IF(J18=\"\",\"\",GETPIVOTDATA(\"body\",knt_tab!$A$3,\"zavodnik\",J18))","v":""},null,null,null,null,null,"",{"$f":"IF(ISERR(GETPIVOTDATA(\"body\",knt_tab!$M$3,\"zavodnik\",knt_tab!M19)),\"\",IF(GETPIVOTDATA(\"body\",knt_tab!$M$3,\"zavodnik\",knt_tab!M19)=0,\"\",knt_tab!M19))","v":""},{"$f":"IF(R18=\"\",\"\",GETPIVOTDATA(\"body\",knt_tab!$M$3,\"zavodnik\",R18))","v":""},null,{"$f":"IF(V18=\"\",\"\",IF(W18=W17,U17,ROW(U18)-ROW($U$2)+17))","v":""},{"$f":"IF(ISERR(GETPIVOTDATA(\"body\",knt_tab!$G$3,\"zavodnik\",knt_tab!G37)),\"\",IF(GETPIVOTDATA(\"body\",knt_tab!$G$3,\"zavodnik\",knt_tab!G37)=0,\"\",knt_tab!G37))","v":""},{"$f":"IF(V18=\"\",\"\",GETPIVOTDATA(\"body\",knt_tab!$G$3,\"zavodnik\",V18))","v":""}]
[16,{"$f":"IF(ISERR(GETPIVOTDATA(\"body\",knt_tab!$A$3,\"zavodnik\",knt_tab!A20)),\"\",IF(GETPIVOTDATA(\"body\",knt_tab!$A$3,\"zavodnik\",knt_tab!A20)=0,\"\",knt_tab!A20))","v":"Škoda Melichar"},{"$f":"IF(B19=\"\",\"\",GETPIVOTDATA(\"body\",knt_tab!$A$3,\"zavodnik\",B19))","v":41},null,77,{"$f":"IF(ISERR(GETPIVOTDATA(\"body\",knt_tab!$A$3,\"zavodnik\",knt_tab!A81)),\"\",IF(GETPIVOTDATA(\"body\",knt_tab!$A$3,\"zavodnik\",knt_tab!A81)=0,\"\",knt_tab!A81))","v":"Garbulinský Ladislav"},{"$f":"IF(F19=\"\",\"\",GETPIVOTDATA(\"body\",knt_tab!$A$3,\"zavodnik\",F19))","v":5},null,null,null,null,null,"Dorostenky",null,null,null,"",{"$f":"IF(ISERR(GETPIVOTDATA(\"body\",knt_tab!$M$3,\"zavodnik\",knt_tab!M20)),\"\",IF(GETPIVOTDATA(\"body\",knt_tab!$M$3,\"zavodnik\",knt_tab!M20)=0,\"\",knt_tab!M20))","v":""},{"$f":"IF(R19=\"\",\"\",GETPIVOTDATA(\"body\",knt_tab!$M$3,\"zavodnik\",R19))","v":""},null,"",{"$f":"IF(ISERR(GETPIVOTDATA(\"body\",knt_tab!$G$3,\"zavodnik\",knt_tab!G38)),\"\",IF(GETPIVOTDATA(\"body\",knt_tab!$G$3,\"zavodnik\",knt_tab!G38)=0,\"\",knt_tab!G38))","v":""},{"$f":"IF(V19=\"\",\"\",GETPIVOTDATA(\"body\",knt_tab!$G$3,\"zavodnik\",V19))","v":""}]
[17,{"$f":"IF(ISERR(GETPIVOTDATA(\"body\",knt_tab!$A$3,\"zavodnik\",knt_tab!A21)),\"\",IF(GETPIVOTDATA(\"body\",knt_tab!$A$3,\"zavodnik\",knt_tab!A21)=0,\"\",knt_tab!A21))","v":"Baudiš Michal"},{"$f":"IF(B20=\"\",\"\",GETPIVOTDATA(\"body\",knt_tab!$A$3,\"zavodnik\",B20))","v":40},null,77,{"$f":"IF(ISERR(GETPIVOTDATA(\"body\",knt_tab!$A$3,\"zavodnik\",knt_tab!A82)),\"\",IF(GETPIVOTDATA(\"body\",knt_tab!$A$3,\"zavodnik\",knt_tab!A82)=0,\"\",knt_tab!A82))","v":"Kulhánek Adam"},{"$f":"IF(F20=\"\",\"\",GETPIVOTDATA(\"body\",knt_tab!$A$3,\"zavodnik\",F20))","v":5},null,"veteráni",null,null,null,"Pořadí","Příjmení","body",null,{"$f":"IF(R20=\"\",\"\",IF(S20=S19,Q19,ROW(Q20)-ROW($Q$3)))","v":""},{"$f":"IF(ISERR(GETPIVOTDATA(\"body\",knt_tab!$M$3,\"zavodnik\",knt_tab!M21)),\"\",IF(GETPIVOTDATA(\"body\",knt_tab!$M$3,\"zavodnik\",knt_tab!M21)=0,\"\",knt_tab!M21))","v":""},{"$f":"IF(R20=\"\",\"\",GETPIVOTDATA(\"body\",knt_tab!$M$3,\"zavodnik\",R20))","v":""},null,"",{"$f":"IF(ISERR(GETPIVOTDATA(\"body\",knt_tab!$G$3,\"zavodnik\",knt_tab!G39)),\"\",IF(GETPIVOTDATA(\"body\",knt_tab!$G$3,\"zavodnik\",knt_tab!G39)=0,\"\",knt_tab!G39))","v":""},{"$f":"IF(V20=\"\",\"\",GETPIVOTDATA(\"body\",knt_tab!$G$3,\"zavodnik\",V20))","v":""}]
[17,{"$f":"IF(ISERR(GETPIVOTDATA(\"body\",knt_tab!$A$3,\"zavodnik\",knt_tab!A22)),\"\",IF(GETPIVOTDATA(\"body\",knt_tab!$A$3,\"zavodnik\",knt_tab!A22)=0,\"\",knt_tab!A22))","v":"Bukovjanová Charlotte"},{"$f":"IF(B21=\"\",\"\",GETPIVOTDATA(\"body\",knt_tab!$A$3,\"zavodnik\",B21))","v":40},null,77,{"$f":"IF(ISERR(GETPIVOTDATA(\"body\",knt_tab!$A$3,\"zavodnik\",knt_tab!A83)),\"\",IF(GETPIVOTDATA(\"body\",knt_tab!$A$3,\"zavodnik\",knt_tab!A83)=0,\"\",knt_tab!A83))","v":"Kocmanová Lucie"},{"$f":"IF(F21=\"\",\"\",GETPIVOTDATA(\"body\",knt_tab!$A$3,\"zavodnik\",F21))","v":5},null,"Pořadí","Příjmení","body",null,1,{"$f":"IF(ISERR(GETPIVOTDATA(\"body\",knt_tab!$V$3,\"zavodnik\",knt_tab!V5)),\"\",IF(GETPIVOTDATA(\"body\",knt_tab!$V$3,\"zavodnik\",knt_tab!V5)=0,\"\",knt_tab!V5))","v":"Vavřínová Pavla"},{"$f":"IF(N21=\"\",\"\",GETPIVOTDATA(\"body\",knt_tab!$V$3,\"zavodnik\",N21))","v":43},null,"",{"$f":"IF(ISERR(GETPIVOTDATA(\"body\",knt_tab!$M$3,\"zavodnik\",knt_tab!M22)),\"\",IF(GETPIVOTDATA(\"body\",knt_tab!$M$3,\"zavodnik\",knt_tab!M22)=0,\"\",knt_tab!M22))","v":""},{"$f":"IF(R21=\"\",\"\",GETPIVOTDATA(\"body\",knt_tab!$M$3,\"zavodnik\",R21))","v":""},null,"",{"$f":"IF(ISERR(GETPIVOTDATA(\"body\",knt_tab!$G$3,\"zavodnik\",knt_tab!G40)),\"\",IF(GETPIVOTDATA(\"body\",knt_tab!$G$3,\"zavodnik\",knt_tab!G40)=0,\"\",knt_tab!G40))","v":""},{"$f":"IF(V21=\"\",\"\",GETPIVOTDATA(\"body\",knt_tab!$G$3,\"zavodnik\",V21))","v":""}]
[19,{"$f":"IF(ISERR(GETPIVOTDATA(\"body\",knt_tab!$A$3,\"zavodnik\",knt_tab!A23)),\"\",IF(GETPIVOTDATA(\"body\",knt_tab!$A$3,\"zavodnik\",knt_tab!A23)=0,\"\",knt_tab!A23))","v":"Lavrukhin Dobrynya"},{"$f":"IF(B22=\"\",\"\",GETPIVOTDATA(\"body\",knt_tab!$A$3,\"zavodnik\",B22))","v":39},null,77,{"$f":"IF(ISERR(GETPIVOTDATA(\"body\",knt_tab!$A$3,\"zavodnik\",knt_tab!A84)),\"\",IF(GETPIVOTDATA(\"body\",knt_tab!$A$3,\"zavodnik\",knt_tab!A84)=0,\"\",knt_tab!A84))","v":"Nytra Sebastián"},{"$f":"IF(F22=\"\",\"\",GETPIVOTDATA(\"body\",knt_tab!$A$3,\"zavodnik\",F22))","v":5},null,1,{"$f":"IF(ISERR(GETPIVOTDATA(\"body\",knt_tab!$AK$3,\"zavodnik\",knt_tab!AK5)),\"\",IF(GETPIVOTDATA(\"body\",knt_tab!$AK$3,\"zavodnik\",knt_tab!AK5)=0,\"\",knt_tab!AK5))","v":"Martínek Roman"},{"$f":"IF(J22=\"\",\"\",GETPIVOTDATA(\"body\",knt_tab!$AK$3,\"zavodnik\",J22))","v":30},null,{"$f":"IF(N22=\"\",\"\",IF(O22=O21,M21,ROW(M22)-ROW($M$20)))","v":2},{"$f":"IF(ISERR(GETPIVOTDATA(\"body\",knt_tab!$V$3,\"zavodnik\",knt_tab!V6)),\"\",IF(GETPIVOTDATA(\"body\",knt_tab!$V$3,\"zavodnik\",knt_tab!V6)=0,\"\",knt_tab!V6))","v":"Rapčanová Silvie"},{"$f":"IF(N22=\"\",\"\",GETPIVOTDATA(\"body\",knt_tab!$V$3,\"zavodnik\",N22))","v":31},null,"",{"$f":"IF(ISERR(GETPIVOTDATA(\"body\",knt_tab!$M$3,\"zavodnik\",knt_tab!M23)),\"\",IF(GETPIVOTDATA(\"body\",knt_tab!$M$3,\"zavodnik\",knt_tab!M23)=0,\"\",knt_tab!M23))","v":""},{"$f":"IF(R22=\"\",\"\",GETPIVOTDATA(\"body\",knt_tab!$M$3,\"zavodnik\",R22))","v":""},null,"",{"$f":"IF(ISERR(GETPIVOTDATA(\"body\",knt_tab!$G$3,\"zavodnik\",knt_tab!G41)),\"\",IF(GETPIVOTDATA(\"body\",knt_tab!$G$3,\"zavodnik\",knt_tab!G41)=0,\"\",knt_tab!G41))","v":""},{"$f":"IF(V22=\"\",\"\",GETPIVOTDATA(\"body\",knt_tab!$G$3,\"zavodnik\",V22))","v":""}]
[20,{"$f":"IF(ISERR(GETPIVOTDATA(\"body\",knt_tab!$A$3,\"zavodnik\",knt_tab!A24)),\"\",IF(GETPIVOTDATA(\"body\",knt_tab!$A$3,\"zavodnik\",knt_tab!A24)=0,\"\",knt_tab!A24))","v":"Huvar Matyáš"},{"$f":"IF(B23=\"\",\"\",GETPIVOTDATA(\"body\",knt_tab!$A$3,\"zavodnik\",B23))","v":38},null,81,{"$f":"IF(ISERR(GETPIVOTDATA(\"body\",knt_tab!$A$3,\"zavodnik\",knt_tab!A85)),\"\",IF(GETPIVOTDATA(\"body\",knt_tab!$A$3,\"zavodnik\",knt_tab!A85)=0,\"\",knt_tab!A85))","v":"Salinger David"},{"$f":"IF(F23=\"\",\"\",GETPIVOTDATA(\"body\",knt_tab!$A$3,\"zavodnik\",F23))","v":4},null,{"$f":"IF(J23=\"\",\"\",IF(K23=K22,I22,ROW(I23)-ROW($I$21)))","v":2},{"$f":"IF(ISERR(GETPIVOTDATA(\"body\",knt_tab!$AK$3,\"zavodnik\",knt_tab!AK6)),\"\",IF(GETPIVOTDATA(\"body\",knt_tab!$AK$3,\"zavodnik\",knt_tab!AK6)=0,\"\",knt_tab!AK6))","v":"Schoffer Radim"},{"$f":"IF(J23=\"\",\"\",GETPIVOTDATA(\"body\",knt_tab!$AK$3,\"zavodnik\",J23))","v":16},null,3,{"$f":"IF(ISERR(GETPIVOTDATA(\"body\",knt_tab!$V$3,\"zavodnik\",knt_tab!V7)),\"\",IF(GETPIVOTDATA(\"body\",knt_tab!$V$3,\"zavodnik\",knt_tab!V7)=0,\"\",knt_tab!V7))","v":"Kuželová Dominika"},{"$f":"IF(N23=\"\",\"\",GETPIVOTDATA(\"body\",knt_tab!$V$3,\"zavodnik\",N23))","v":27},null,"",{"$f":"IF(ISERR(GETPIVOTDATA(\"body\",knt_tab!$M$3,\"zavodnik\",knt_tab!M24)),\"\",IF(GETPIVOTDATA(\"body\",knt_tab!$M$3,\"zavodnik\",knt_tab!M24)=0,\"\",knt_tab!M24))","v":""},{"$f":"IF(R23=\"\",\"\",GETPIVOTDATA(\"body\",knt_tab!$M$3,\"zavodnik\",R23))","v":""},null,"",{"$f":"IF(ISERR(GETPIVOTDATA(\"body\",knt_tab!$G$3,\"zavodnik\",knt_tab!G42)),\"\",IF(GETPIVOTDATA(\"body\",knt_tab!$G$3,\"zavodnik\",knt_tab!G42)=0,\"\",knt_tab!G42))","v":""},{"$f":"IF(V23=\"\",\"\",GETPIVOTDATA(\"body\",knt_tab!$G$3,\"zavodnik\",V23))","v":""}]
[21,{"$f":"IF(ISERR(GETPIVOTDATA(\"body\",knt_tab!$A$3,\"zavodnik\",knt_tab!A25)),\"\",IF(GETPIVOTDATA(\"body\",knt_tab!$A$3,\"zavodnik\",knt_tab!A25)=0,\"\",knt_tab!A25))","v":"Kuluris Manolis"},{"$f":"IF(B24=\"\",\"\",GETPIVOTDATA(\"body\",knt_tab!$A$3,\"zavodnik\",B24))","v":37},null,81,{"$f":"IF(ISERR(GETPIVOTDATA(\"body\",knt_tab!$A$3,\"zavodnik\",knt_tab!A86)),\"\",IF(GETPIVOTDATA(\"body\",knt_tab!$A$3,\"zavodnik\",knt_tab!A86)=0,\"\",knt_tab!A86))","v":"Kolář Vojtěch"},{"$f":"IF(F24=\"\",\"\",GETPIVOTDATA(\"body\",knt_tab!$A$3,\"zavodnik\",F24))","v":4},null,3,{"$f":"IF(ISERR(GETPIVOTDATA(\"body\",knt_tab!$AK$3,\"zavodnik\",knt_tab!AK7)),\"\",IF(GETPIVOTDATA(\"body\",knt_tab!$AK$3,\"zavodnik\",knt_tab!AK7)=0,\"\",knt_tab!AK7))","v":"Moravec Vlastimil"},{"$f":"IF(J24=\"\",\"\",GETPIVOTDATA(\"body\",knt_tab!$AK$3,\"zavodnik\",J24))","v":15},null,4,{"$f":"IF(ISERR(GETPIVOTDATA(\"body\",knt_tab!$V$3,\"zavodnik\",knt_tab!V8)),\"\",IF(GETPIVOTDATA(\"body\",knt_tab!$V$3,\"zavodnik\",knt_tab!V8)=0,\"\",knt_tab!V8))","v":"Rapčanová Alice"},{"$f":"IF(N24=\"\",\"\",GETPIVOTDATA(\"body\",knt_tab!$V$3,\"zavodnik\",N24))","v":14},null,{"$f":"IF(R24=\"\",\"\",IF(S24=S23,Q23,ROW(Q24)-ROW($Q$3)))","v":""},{"$f":"IF(ISERR(GETPIVOTDATA(\"body\",knt_tab!$M$3,\"zavodnik\",knt_tab!M25)),\"\",IF(GETPIVOTDATA(\"body\",knt_tab!$M$3,\"zavodnik\",knt_tab!M25)=0,\"\",knt_tab!M25))","v":""},{"$f":"IF(R24=\"\",\"\",GETPIVOTDATA(\"body\",knt_tab!$M$3,\"zavodnik\",R24))","v":""},null,"",{"$f":"IF(ISERR(GETPIVOTDATA(\"body\",knt_tab!$G$3,\"zavodnik\",knt_tab!G43)),\"\",IF(GETPIVOTDATA(\"body\",knt_tab!$G$3,\"zavodnik\",knt_tab!G43)=0,\"\",knt_tab!G43))","v":""},{"$f":"IF(V24=\"\",\"\",GETPIVOTDATA(\"body\",knt_tab!$G$3,\"zavodnik\",V24))","v":""}]
[21,{"$f":"IF(ISERR(GETPIVOTDATA(\"body\",knt_tab!$A$3,\"zavodnik\",knt_tab!A26)),\"\",IF(GETPIVOTDATA(\"body\",knt_tab!$A$3,\"zavodnik\",knt_tab!A26)=0,\"\",knt_tab!A26))","v":"Zwiling Šimon"},{"$f":"IF(B25=\"\",\"\",GETPIVOTDATA(\"body\",knt_tab!$A$3,\"zavodnik\",B25))","v":37},null,81,{"$f":"IF(ISERR(GETPIVOTDATA(\"body\",knt_tab!$A$3,\"zavodnik\",knt_tab!A87)),\"\",IF(GETPIVOTDATA(\"body\",knt_tab!$A$3,\"zavodnik\",knt_tab!A87)=0,\"\",knt_tab!A87))","v":"Kožušník Václav"},{"$f":"IF(F25=\"\",\"\",GETPIVOTDATA(\"body\",knt_tab!$A$3,\"zavodnik\",F25))","v":4},null,"",{"$f":"IF(ISERR(GETPIVOTDATA(\"body\",knt_tab!$AK$3,\"zavodnik\",knt_tab!AK8)),\"\",IF(GETPIVOTDATA(\"body\",knt_tab!$AK$3,\"zavodnik\",knt_tab!AK8)=0,\"\",knt_tab!AK8))","v":""},{"$f":"IF(J25=\"\",\"\",GETPIVOTDATA(\"body\",knt_tab!$AK$3,\"zavodnik\",J25))","v":""},null,5,{"$f":"IF(ISERR(GETPIVOTDATA(\"body\",knt_tab!$V$3,\"zavodnik\",knt_tab!V9)),\"\",IF(GETPIVOTDATA(\"body\",knt_tab!$V$3,\"zavodnik\",knt_tab!V9)=0,\"\",knt_tab!V9))","v":"Kokešová Alexandra"},{"$f":"IF(N25=\"\",\"\",GETPIVOTDATA(\"body\",knt_tab!$V$3,\"zavodnik\",N25))","v":12},null,"",{"$f":"IF(ISERR(GETPIVOTDATA(\"body\",knt_tab!$M$3,\"zavodnik\",knt_tab!M26)),\"\",IF(GETPIVOTDATA(\"body\",knt_tab!$M$3,\"zavodnik\",knt_tab!M26)=0,\"\",knt_tab!M26))","v":""},{"$f":"IF(R25=\"\",\"\",GETPIVOTDATA(\"body\",knt_tab!$M$3,\"zavodnik\",R25))","v":""},null,"",{"$f":"IF(ISERR(GETPIVOTDATA(\"body\",knt_tab!$G$3,\"zavodnik\",knt_tab!G44)),\"\",IF(GETPIVOTDATA(\"body\",knt_tab!$G$3,\"zavodnik\",knt_tab!G44)=0,\"\",knt_tab!G44))","v":""},{"$f":"IF(V25=\"\",\"\",GETPIVOTDATA(\"body\",knt_tab!$G$3,\"zavodnik\",V25))","v":""}]
[23,{"$f":"IF(ISERR(GETPIVOTDATA(\"body\",knt_tab!$A$3,\"zavodnik\",knt_tab!A27)),\"\",IF(GETPIVOTDATA(\"body\",knt_tab!$A$3,\"zavodnik\",knt_tab!A27)=0,\"\",knt_tab!A27))","v":"Michálková Karolína"},{"$f":"IF(B26=\"\",\"\",GETPIVOTDATA(\"body\",knt_tab!$A$3,\"zavodnik\",B26))","v":36},null,84,{"$f":"IF(ISERR(GETPIVOTDATA(\"body\",knt_tab!$A$3,\"zavodnik\",knt_tab!A88)),\"\",IF(GETPIVOTDATA(\"body\",knt_tab!$A$3,\"zavodnik\",knt_tab!A88)=0,\"\",knt_tab!A88))","v":"Jahoda Pavel"},{"$f":"IF(F26=\"\",\"\",GETPIVOTDATA(\"body\",knt_tab!$A$3,\"zavodnik\",F26))","v":3},null,null,null,null,null,"",{"$f":"IF(ISERR(GETPIVOTDATA(\"body\",knt_tab!$V$3,\"zavodnik\",knt_tab!V10)),\"\",IF(GETPIVOTDATA(\"body\",knt_tab!$V$3,\"zavodnik\",knt_tab!V10)=0,\"\",knt_tab!V10))","v":""},{"$f":"IF(N26=\"\",\"\",GETPIVOTDATA(\"body\",knt_tab!$V$3,\"zavodnik\",N26))","v":""},null,{"$f":"IF(R26=\"\",\"\",IF(S26=S25,Q25,ROW(Q26)-ROW($Q$3)))","v":""},{"$f":"IF(ISERR(GETPIVOTDATA(\"body\",knt_tab!$M$3,\"zavodnik\",knt_tab!M27)),\"\",IF(GETPIVOTDATA(\"body\",knt_tab!$M$3,\"zavodnik\",knt_tab!M27)=0,\"\",knt_tab!M27))","v":""},{"$f":"IF(R26=\"\",\"\",GETPIVOTDATA(\"body\",knt_tab!$M$3,\"zavodnik\",R26))","v":""},null,"",{"$f":"IF(ISERR(GETPIVOTDATA(\"body\",knt_tab!$G$3,\"zavodnik\",knt_tab!G45)),\"\",IF(GETPIVOTDATA(\"body\",knt_tab!$G$3,\"zavodnik\",knt_tab!G45)=0,\"\",knt_tab!G45))","v":""},{"$f":"IF(V26=\"\",\"\",GETPIVOTDATA(\"body\",knt_tab!$G$3,\"zavodnik\",V26))","v":""}]
[24,{"$f":"IF(ISERR(GETPIVOTDATA(\"body\",knt_tab!$A$3,\"zavodnik\",knt_tab!A28)),\"\",IF(GETPIVOTDATA(\"body\",knt_tab!$A$3,\"zavodnik\",knt_tab!A28)=0,\"\",knt_tab!A28))","v":"Přichystal Leon"},{"$f":"IF(B27=\"\",\"\",GETPIVOTDATA(\"body\",knt_tab!$A$3,\"zavodnik\",B27))","v":34},null,84,{"$f":"IF(ISERR(GETPIVOTDATA(\"body\",knt_tab!$A$3,\"zavodnik\",knt_tab!A89)),\"\",IF(GETPIVOTDATA(\"body\",knt_tab!$A$3,\"zavodnik\",knt_tab!A89)=0,\"\",knt_tab!A89))","v":"Teodor Maslík"},{"$f":"IF(F27=\"\",\"\",GETPIVOTDATA(\"body\",knt_tab!$A$3,\"zavodnik\",F27))","v":3},null,"muži",null,null,null,"",{"$f":"IF(ISERR(GETPIVOTDATA(\"body\",knt_tab!$V$3,\"zavodnik\",knt_tab!V11)),\"\",IF(GETPIVOTDATA(\"body\",knt_tab!$V$3,\"zavodnik\",knt_tab!V11)=0,\"\",knt_tab!V11))","v":""},{"$f":"IF(N27=\"\",\"\",GETPIVOTDATA(\"body\",knt_tab!$V$3,\"zavodnik\",N27))","v":""},null,"",{"$f":"IF(ISERR(GETPIVOTDATA(\"body\",knt_tab!$M$3,\"zavodnik\",knt_tab!M28)),\"\",IF(GETPIVOTDATA(\"body\",knt_tab!$M$3,\"zavodnik\",knt_tab!M28)=0,\"\",knt_tab!M28))","v":""},{"$f":"IF(R27=\"\",\"\",GETPIVOTDATA(\"body\",knt_tab!$M$3,\"zavodnik\",R27))","v":""}]
[25,{"$f":"IF(ISERR(GETPIVOTDATA(\"body\",knt_tab!$A$3,\"zavodnik\",knt_tab!A29)),\"\",IF(GETPIVOTDATA(\"body\",knt_tab!$A$3,\"zavodnik\",knt_tab!A29)=0,\"\",knt_tab!A29))","v":"Caletka Petr"},{"$f":"IF(B28=\"\",\"\",GETPIVOTDATA(\"body\",knt_tab!$A$3,\"zavodnik\",B28))","v":31},null,84,{"$f":"IF(ISERR(GETPIVOTDATA(\"body\",knt_tab!$A$3,\"zavodnik\",knt_tab!A90)),\"\",IF(GETPIVOTDATA(\"body\",knt_tab!$A$3,\"zavodnik\",knt_tab!A90)=0,\"\",knt_tab!A90))","v":"Dryšl Adam"},{"$f":"IF(F28=\"\",\"\",GETPIVOTDATA(\"body\",knt_tab!$A$3,\"zavodnik\",F28))","v":3},null,"Pořadí","Příjmení","body",null,null,null,null,null,{"$f":"IF(R28=\"\",\"\",IF(S28=S27,Q27,ROW(Q28)-ROW($Q$3)))","v":""},{"$f":"IF(ISERR(GETPIVOTDATA(\"body\",knt_tab!$M$3,\"zavodnik\",knt_tab!M29)),\"\",IF(GETPIVOTDATA(\"body\",knt_tab!$M$3,\"zavodnik\",knt_tab!M29)=0,\"\",knt_tab!M29))","v":""},{"$f":"IF(R28=\"\",\"\",GETPIVOTDATA(\"body\",knt_tab!$M$3,\"zavodnik\",R28))","v":""},null,"mláďata"]
[25,{"$f":"IF(ISERR(GETPIVOTDATA(\"body\",knt_tab!$A$3,\"zavodnik\",knt_tab!A30)),\"\",IF(GETPIVOTDATA(\"body\",knt_tab!$A$3,\"zavodnik\",knt_tab!A30)=0,\"\",knt_tab!A30))","v":"Rapčanová Silvie"},{"$f":"IF(B29=\"\",\"\",GETPIVOTDATA(\"body\",knt_tab!$A$3,\"zavodnik\",B29))","v":31},null,84,{"$f":"IF(ISERR(GETPIVOTDATA(\"body\",knt_tab!$A$3,\"zavodnik\",knt_tab!A91)),\"\",IF(GETPIVOTDATA(\"body\",knt_tab!$A$3,\"zavodnik\",knt_tab!A91)=0,\"\",knt_tab!A91))","v":"Kristen Nicolas"},{"$f":"IF(F29=\"\",\"\",GETPIVOTDATA(\"body\",knt_tab!$A$3,\"zavodnik\",F29))","v":3},null,1,{"$f":"IF(ISERR(GETPIVOTDATA(\"body\",knt_tab!$AE$3,\"zavodnik\",knt_tab!AE5)),\"\",IF(GETPIVOTDATA(\"body\",knt_tab!$AE$3,\"zavodnik\",knt_tab!AE5)=0,\"\",knt_tab!AE5))","v":"Rýpar Radek"},{"$f":"IF(J29=\"\",\"\",GETPIVOTDATA(\"body\",knt_tab!$AE$3,\"zavodnik\",J29))","v":106},null,"Dorostenci",null,null,null,"",{"$f":"IF(ISERR(GETPIVOTDATA(\"body\",knt_tab!$M$3,\"zavodnik\",knt_tab!M30)),\"\",IF(GETPIVOTDATA(\"body\",knt_tab!$M$3,\"zavodnik\",knt_tab!M30)=0,\"\",knt_tab!M30))","v":""},{"$f":"IF(R29=\"\",\"\",GETPIVOTDATA(\"body\",knt_tab!$M$3,\"zavodnik\",R29))","v":""},null,"Pořadí","Příjmení","body"]
[27,{"$f":"IF(ISERR(GETPIVOTDATA(\"body\",knt_tab!$A$3,\"zavodnik\",knt_tab!A31)),\"\",IF(GETPIVOTDATA(\"body\",knt_tab!$A$3,\"zavodnik\",knt_tab!A31)=0,\"\",knt_tab!A31))","v":"Martínek Roman"},{"$f":"IF(B30=\"\",\"\",GETPIVOTDATA(\"body\",knt_tab!$A$3,\"zavodnik\",B30))","v":30},null,88,{"$f":"IF(ISERR(GETPIVOTDATA(\"body\",knt_tab!$A$3,\"zavodnik\",knt_tab!A92)),\"\",IF(GETPIVOTDATA(\"body\",knt_tab!$A$3,\"zavodnik\",knt_tab!A92)=0,\"\",knt_tab!A92))","v":"Podivinský Marek"},{"$f":"IF(F30=\"\",\"\",GETPIVOTDATA(\"body\",knt_tab!$A$3,\"zavodnik\",F30))","v":2},null,{"$f":"IF(J30=\"\",\"\",IF(K30=K29,I29,ROW(I30)-ROW($I$28)))","v":2},{"$f":"IF(ISERR(GETPIVOTDATA(\"body\",knt_tab!$AE$3,\"zavodnik\",knt_tab!AE6)),\"\",IF(GETPIVOTDATA(\"body\",knt_tab!$AE$3,\"zavodnik\",knt_tab!AE6)=0,\"\",knt_tab!AE6))","v":"Silvestr Matěj"},{"$f":"IF(J30=\"\",\"\",GETPIVOTDATA(\"body\",knt_tab!$AE$3,\"zavodnik\",J30))","v":80},null,"Pořadí","Příjmení","body",null,"",{"$f":"IF(ISERR(GETPIVOTDATA(\"body\",knt_tab!$M$3,\"zavodnik\",knt_tab!M31)),\"\",IF(GETPIVOTDATA(\"body\",knt_tab!$M$3,\"zavodnik\",knt_tab!M31)=0,\"\",knt_tab!M31))","v":""},{"$f":"IF(R30=\"\",\"\",GETPIVOTDATA(\"body\",knt_tab!$M$3,\"zavodnik\",R30))","v":""},null,1,{"$f":"IF(ISERR(GETPIVOTDATA(\"body\",knt_tab!$D$3,\"zavodnik\",knt_tab!D5)),\"\",IF(GETPIVOTDATA(\"body\",knt_tab!$D$3,\"zavodnik\",knt_tab!D5)=0,\"\",knt_tab!D5))","v":"Prudil Adam"},{"$f":"IF(V30=\"\",\"\",GETPIVOTDATA(\"body\",knt_tab!$D$3,\"zavodnik\",V30))","v":19}]
[28,{"$f":"IF(ISERR(GETPIVOTDATA(\"body\",knt_tab!$A$3,\"zavodnik\",knt_tab!A32)),\"\",IF(GETPIVOTDATA(\"body\",knt_tab!$A$3,\"zavodnik\",knt_tab!A32)=0,\"\",knt_tab!A32))","v":"Čerchla Michal"},{"$f":"IF(B31=\"\",\"\",GETPIVOTDATA(\"body\",knt_tab!$A$3,\"zavodnik\",B31))","v":29},null,88,{"$f":"IF(ISERR(GETPIVOTDATA(\"body\",knt_tab!$A$3,\"zavodnik\",knt_tab!A93)),\"\",IF(GETPIVOTDATA(\"body\",knt_tab!$A$3,\"zavodnik\",knt_tab!A93)=0,\"\",knt_tab!A93))","v":"Berka Daniel"},{"$f":"IF(F31=\"\",\"\",GETPIVOTDATA(\"body\",knt_tab!$A$3,\"zavodnik\",F31))","v":2},null,3,{"$f":"IF(ISERR(GETPIVOTDATA(\"body\",knt_tab!$AE$3,\"zavodnik\",knt_tab!AE7)),\"\",IF(GETPIVOTDATA(\"body\",knt_tab!$AE$3,\"zavodnik\",knt_tab!AE7)=0,\"\",knt_tab!AE7))","v":"Malaczynski Filip"},{"$f":"IF(J31=\"\",\"\",GETPIVOTDATA(\"body\",knt_tab!$AE$3,\"zavodnik\",J31))","v":10},null,1,{"$f":"IF(ISERR(GETPIVOTDATA(\"body\",knt_tab!$S$3,\"zavodnik\",knt_tab!S5)),\"\",IF(GETPIVOTDATA(\"body\",knt_tab!$S$3,\"zavodnik\",knt_tab!S5)=0,\"\",knt_tab!S5))","v":"Křížek Šimon"},{"$f":"IF(N31=\"\",\"\",GETPIVOTDATA(\"body\",knt_tab!$S$3,\"zavodnik\",N31))","v":84},null,{"$f":"IF(R31=\"\",\"\",IF(S31=S30,Q30,ROW(Q31)-ROW($Q$3)))","v":""},{"$f":"IF(ISERR(GETPIVOTDATA(\"body\",knt_tab!$M$3,\"zavodnik\",knt_tab!M32)),\"\",IF(GETPIVOTDATA(\"body\",knt_tab!$M$3,\"zavodnik\",knt_tab!M32)=0,\"\",knt_tab!M32))","v":""},{"$f":"IF(R31=\"\",\"\",GETPIVOTDATA(\"body\",knt_tab!$M$3,\"zavodnik\",R31))","v":""},null,{"$f":"IF(V31=\"\",\"\",IF(W31=W30,U30,ROW(U31)-ROW($U$29)))","v":2},{"$f":"IF(ISERR(GETPIVOTDATA(\"body\",knt_tab!$D$3,\"zavodnik\",knt_tab!D6)),\"\",IF(GETPIVOTDATA(\"body\",knt_tab!$D$3,\"zavodnik\",knt_tab!D6)=0,\"\",knt_tab!D6))","v":"Bokiy Konstantin"},{"$f":"IF(V31=\"\",\"\",GETPIVOTDATA(\"body\",knt_tab!$D$3,\"zavodnik\",V31))","v":17}]
[29,{"$f":"IF(ISERR(GETPIVOTDATA(\"body\",knt_tab!$A$3,\"zavodnik\",knt_tab!A33)),\"\",IF(GETPIVOTDATA(\"body\",knt_tab!$A$3,\"zavodnik\",knt_tab!A33)=0,\"\",knt_tab!A33))","v":"Kaszperová Kristýna"},{"$f":"IF(B32=\"\",\"\",GETPIVOTDATA(\"body\",knt_tab!$A$3,\"zavodnik\",B32))","v":28},null,88,{"$f":"IF(ISERR(GETPIVOTDATA(\"body\",knt_tab!$A$3,\"zavodnik\",knt_tab!A94)),\"\",IF(GETPIVOTDATA(\"body\",knt_tab!$A$3,\"zavodnik\",knt_tab!A94)=0,\"\",knt_tab!A94))","v":"Stránský David"},{"$f":"IF(F32=\"\",\"\",GETPIVOTDATA(\"body\",knt_tab!$A$3,\"zavodnik\",F32))","v":2},null,4,{"$f":"IF(ISERR(GETPIVOTDATA(\"body\",knt_tab!$AE$3,\"zavodnik\",knt_tab!AE8)),\"\",IF(GETPIVOTDATA(\"body\",knt_tab!$AE$3,\"zavodnik\",knt_tab!AE8)=0,\"\",knt_tab!AE8))","v":"Svoboda Jiří"},{"$f":"IF(J32=\"\",\"\",GETPIVOTDATA(\"body\",knt_tab!$AE$3,\"zavodnik\",J32))","v":9},null,{"$f":"IF(N32=\"\",\"\",IF(O32=O31,M31,ROW(M32)-ROW($M$30)))","v":1},{"$f":"IF(ISERR(GETPIVOTDATA(\"body\",knt_tab!$S$3,\"zavodnik\",knt_tab!S6)),\"\",IF(GETPIVOTDATA(\"body\",knt_tab!$S$3,\"zavodnik\",knt_tab!S6)=0,\"\",knt_tab!S6))","v":"Motyka Dominik"},{"$f":"IF(N32=\"\",\"\",GETPIVOTDATA(\"body\",knt_tab!$S$3,\"zavodnik\",N32))","v":84},null,"",{"$f":"IF(ISERR(GETPIVOTDATA(\"body\",knt_tab!$M$3,\"zavodnik\",knt_tab!M33)),\"\",IF(GETPIVOTDATA(\"body\",knt_tab!$M$3,\"zavodnik\",knt_tab!M33)=0,\"\",knt_tab!M33))","v":""},{"$f":"IF(R32=\"\",\"\",GETPIVOTDATA(\"body\",knt_tab!$M$3,\"zavodnik\",R32))","v":""},null,3,{"$f":"IF(ISERR(GETPIVOTDATA(\"body\",knt_tab!$D$3,\"zavodnik\",knt_tab!D7)),\"\",IF(GETPIVOTDATA(\"body\",knt_tab!$D$3,\"zavodnik\",knt_tab!D7)=0,\"\",knt_tab!D7))","v":"Nováková Victoria"},{"$f":"IF(V32=\"\",\"\",GETPIVOTDATA(\"body\",knt_tab!$D$3,\"zavodnik\",V32))","v":16}]
[{"$f":"IF(B33=\"\",\"\",IF(C33=C32,A32,ROW(A33)-ROW($A$3)))","v":29},{"$f":"IF(ISERR(GETPIVOTDATA(\"body\",knt_tab!$A$3,\"zavodnik\",knt_tab!A34)),\"\",IF(GETPIVOTDATA(\"body\",knt_tab!$A$3,\"zavodnik\",knt_tab!A34)=0,\"\",knt_tab!A34))","v":"Seibert Marian"},{"$f":"IF(B33=\"\",\"\",GETPIVOTDATA(\"body\",knt_tab!$A$3,\"zavodnik\",B33))","v":28},null,91,{"$f":"IF(ISERR(GETPIVOTDATA(\"body\",knt_tab!$A$3,\"zavodnik\",knt_tab!A95)),\"\",IF(GETPIVOTDATA(\"body\",knt_tab!$A$3,\"zavodnik\",knt_tab!A95)=0,\"\",knt_tab!A95))","v":"Huvar Jakub"},{"$f":"IF(F33=\"\",\"\",GETPIVOTDATA(\"body\",knt_tab!$A$3,\"zavodnik\",F33))","v":1},null,5,{"$f":"IF(ISERR(GETPIVOTDATA(\"body\",knt_tab!$AE$3,\"zavodnik\",knt_tab!AE9)),\"\",IF(GETPIVOTDATA(\"body\",knt_tab!$AE$3,\"zavodnik\",knt_tab!AE9)=0,\"\",knt_tab!AE9))","v":"Vršek Jakub"},{"$f":"IF(J33=\"\",\"\",GETPIVOTDATA(\"body\",knt_tab!$AE$3,\"zavodnik\",J33))","v":8},null,3,{"$f":"IF(ISERR(GETPIVOTDATA(\"body\",knt_tab!$S$3,\"zavodnik\",knt_tab!S7)),\"\",IF(GETPIVOTDATA(\"body\",knt_tab!$S$3,\"zavodnik\",knt_tab!S7)=0,\"\",knt_tab!S7))","v":"Lindovský Jiří"},{"$f":"IF(N33=\"\",\"\",GETPIVOTDATA(\"body\",knt_tab!$S$3,\"zavodnik\",N33))","v":80},null,"",{"$f":"IF(ISERR(GETPIVOTDATA(\"body\",knt_tab!$M$3,\"zavodnik\",knt_tab!M34)),\"\",IF(GETPIVOTDATA(\"body\",knt_tab!$M$3,\"zavodnik\",knt_tab!M34)=0,\"\",knt_tab!M34))","v":""},{"$f":"IF(R33=\"\",\"\",GETPIVOTDATA(\"body\",knt_tab!$M$3,\"zavodnik\",R33))","v":""},null,4,{"$f":"IF(ISERR(GETPIVOTDATA(\"body\",knt_tab!$D$3,\"zavodnik\",knt_tab!D8)),\"\",IF(GETPIVOTDATA(\"body\",knt_tab!$D$3,\"zavodnik\",knt_tab!D8)=0,\"\",knt_tab!D8))","v":"Lechovič Tobiáš"},{"$f":"IF(V33=\"\",\"\",GETPIVOTDATA(\"body\",knt_tab!$D$3,\"zavodnik\",V33))","v":15}]
[{"$f":"IF(B34=\"\",\"\",IF(C34=C33,A33,ROW(A34)-ROW($A$3)))","v":31},{"$f":"IF(ISERR(GETPIVOTDATA(\"body\",knt_tab!$A$3,\"zavodnik\",knt_tab!A35)),\"\",IF(GETPIVOTDATA(\"body\",knt_tab!$A$3,\"zavodnik\",knt_tab!A35)=0,\"\",knt_tab!A35))","v":"Kuželová Dominika"},{"$f":"IF(B34=\"\",\"\",GETPIVOTDATA(\"body\",knt_tab!$A$3,\"zavodnik\",B34))","v":27},null,91,{"$f":"IF(ISERR(GETPIVOTDATA(\"body\",knt_tab!$A$3,\"zavodnik\",knt_tab!A96)),\"\",IF(GETPIVOTDATA(\"body\",knt_tab!$A$3,\"zavodnik\",knt_tab!A96)=0,\"\",knt_tab!A96))","v":"Trojek Václav"},{"$f":"IF(F34=\"\",\"\",GETPIVOTDATA(\"body\",knt_tab!$A$3,\"zavodnik\",F34))","v":1},null,6,{"$f":"IF(ISERR(GETPIVOTDATA(\"body\",knt_tab!$AE$3,\"zavodnik\",knt_tab!AE10)),\"\",IF(GETPIVOTDATA(\"body\",knt_tab!$AE$3,\"zavodnik\",knt_tab!AE10)=0,\"\",knt_tab!AE10))","v":"Lindovský Jiří"},{"$f":"IF(J34=\"\",\"\",GETPIVOTDATA(\"body\",knt_tab!$AE$3,\"zavodnik\",J34))","v":7},null,4,{"$f":"IF(ISERR(GETPIVOTDATA(\"body\",knt_tab!$S$3,\"zavodnik\",knt_tab!S8)),\"\",IF(GETPIVOTDATA(\"body\",knt_tab!$S$3,\"zavodnik\",knt_tab!S8)=0,\"\",knt_tab!S8))","v":"Vontor Tomáš"},{"$f":"IF(N34=\"\",\"\",GETPIVOTDATA(\"body\",knt_tab!$S$3,\"zavodnik\",N34))","v":77},null,null,null,null,null,5,{"$f":"IF(ISERR(GETPIVOTDATA(\"body\",knt_tab!$D$3,\"zavodnik\",knt_tab!D9)),\"\",IF(GETPIVOTDATA(\"body\",knt_tab!$D$3,\"zavodnik\",knt_tab!D9)=0,\"\",knt_tab!D9))","v":"Chovanec Martin"},{"$f":"IF(V34=\"\",\"\",GETPIVOTDATA(\"body\",knt_tab!$D$3,\"zavodnik\",V34))","v":12}]
[32,{"$f":"IF(ISERR(GETPIVOTDATA(\"body\",knt_tab!$A$3,\"zavodnik\",knt_tab!A36)),\"\",IF(GETPIVOTDATA(\"body\",knt_tab!$A$3,\"zavodnik\",knt_tab!A36)=0,\"\",knt_tab!A36))","v":"Chlebovský Daniel"},{"$f":"IF(B35=\"\",\"\",GETPIVOTDATA(\"body\",knt_tab!$A$3,\"zavodnik\",B35))","v":26},null,91,{"$f":"IF(ISERR(GETPIVOTDATA(\"body\",knt_tab!$A$3,\"zavodnik\",knt_tab!A97)),\"\",IF(GETPIVOTDATA(\"body\",knt_tab!$A$3,\"zavodnik\",knt_tab!A97)=0,\"\",knt_tab!A97))","v":"Selinger David"},{"$f":"IF(F35=\"\",\"\",GETPIVOTDATA(\"body\",knt_tab!$A$3,\"zavodnik\",F35))","v":1},null,6,{"$f":"IF(ISERR(GETPIVOTDATA(\"body\",knt_tab!$AE$3,\"zavodnik\",knt_tab!AE11)),\"\",IF(GETPIVOTDATA(\"body\",knt_tab!$AE$3,\"zavodnik\",knt_tab!AE11)=0,\"\",knt_tab!AE11))","v":"Křížek Šimon"},{"$f":"IF(J35=\"\",\"\",GETPIVOTDATA(\"body\",knt_tab!$AE$3,\"zavodnik\",J35))","v":7},null,5,{"$f":"IF(ISERR(GETPIVOTDATA(\"body\",knt_tab!$S$3,\"zavodnik\",knt_tab!S9)),\"\",IF(GETPIVOTDATA(\"body\",knt_tab!$S$3,\"zavodnik\",knt_tab!S9)=0,\"\",knt_tab!S9))","v":"Fulneček Šimon"},{"$f":"IF(N35=\"\",\"\",GETPIVOTDATA(\"body\",knt_tab!$S$3,\"zavodnik\",N35))","v":68},null,"mladší žákyně",null,null,null,6,{"$f":"IF(ISERR(GETPIVOTDATA(\"body\",knt_tab!$D$3,\"zavodnik\",knt_tab!D10)),\"\",IF(GETPIVOTDATA(\"body\",knt_tab!$D$3,\"zavodnik\",knt_tab!D10)=0,\"\",knt_tab!D10))","v":"Kuchejdová Veronika"},{"$f":"IF(V35=\"\",\"\",GETPIVOTDATA(\"body\",knt_tab!$D$3,\"zavodnik\",V35))","v":10}]
[33,{"$f":"IF(ISERR(GETPIVOTDATA(\"body\",knt_tab!$A$3,\"zavodnik\",knt_tab!A37)),\"\",IF(GETPIVOTDATA(\"body\",knt_tab!$A$3,\"zavodnik\",knt_tab!A37)=0,\"\",knt_tab!A37))","v":"Kokešová Alexandra"},{"$f":"IF(B36=\"\",\"\",GETPIVOTDATA(\"body\",knt_tab!$A$3,\"zavodnik\",B36))","v":25},null,91,{"$f":"IF(ISERR(GETPIVOTDATA(\"body\",knt_tab!$A$3,\"zavodnik\",knt_tab!A98)),\"\",IF(GETPIVOTDATA(\"body\",knt_tab!$A$3,\"zavodnik\",knt_tab!A98)=0,\"\",knt_tab!A98))","v":"Šindel Jakub"},{"$f":"IF(F36=\"\",\"\",GETPIVOTDATA(\"body\",knt_tab!$A$3,\"zavodnik\",F36))","v":1},null,"",{"$f":"IF(ISERR(GETPIVOTDATA(\"body\",knt_tab!$AE$3,\"zavodnik\",knt_tab!AE12)),\"\",IF(GETPIVOTDATA(\"body\",knt_tab!$AE$3,\"zavodnik\",knt_tab!AE12)=0,\"\",knt_tab!AE12))","v":""},{"$f":"IF(J36=\"\",\"\",GETPIVOTDATA(\"body\",knt_tab!$AE$3,\"zavodnik\",J36))","v":""},null,6,{"$f":"IF(ISERR(GETPIVOTDATA(\"body\",knt_tab!$S$3,\"zavodnik\",knt_tab!S10)),\"\",IF(GETPIVOTDATA(\"body\",knt_tab!$S$3,\"zavodnik\",knt_tab!S10)=0,\"\",knt_tab!S10))","v":"Kršňák Filip"},{"$f":"IF(N36=\"\",\"\",GETPIVOTDATA(\"body\",knt_tab!$S$3,\"zavodnik\",N36))","v":52},null,"Pořadí","Příjmení","body",null,7,{"$f":"IF(ISERR(GETPIVOTDATA(\"body\",knt_tab!$D$3,\"zavodnik\",knt_tab!D11)),\"\",IF(GETPIVOTDATA(\"body\",knt_tab!$D$3,\"zavodnik\",knt_tab!D11)=0,\"\",knt_tab!D11))","v":"Šelongová Viktorie"},{"$f":"IF(V36=\"\",\"\",GETPIVOTDATA(\"body\",knt_tab!$D$3,\"zavodnik\",V36))","v":8}]
[34,{"$f":"IF(ISERR(GETPIVOTDATA(\"body\",knt_tab!$A$3,\"zavodnik\",knt_tab!A38)),\"\",IF(GETPIVOTDATA(\"body\",knt_tab!$A$3,\"zavodnik\",knt_tab!A38)=0,\"\",knt_tab!A38))","v":"To Vojtěch"},{"$f":"IF(B37=\"\",\"\",GETPIVOTDATA(\"body\",knt_tab!$A$3,\"zavodnik\",B37))","v":24},null,"",{"$f":"IF(ISERR(GETPIVOTDATA(\"body\",knt_tab!$A$3,\"zavodnik\",knt_tab!A99)),\"\",IF(GETPIVOTDATA(\"body\",knt_tab!$A$3,\"zavodnik\",knt_tab!A99)=0,\"\",knt_tab!A99))","v":""},{"$f":"IF(F37=\"\",\"\",GETPIVOTDATA(\"body\",knt_tab!$A$3,\"zavodnik\",F37))","v":""},null,"",{"$f":"IF(ISERR(GETPIVOTDATA(\"body\",knt_tab!$AE$3,\"zavodnik\",knt_tab!AE13)),\"\",IF(GETPIVOTDATA(\"body\",knt_tab!$AE$3,\"zavodnik\",knt_tab!AE13)=0,\"\",knt_tab!AE13))","v":""},{"$f":"IF(J37=\"\",\"\",GETPIVOTDATA(\"body\",knt_tab!$AE$3,\"zavodnik\",J37))","v":""},null,7,{"$f":"IF(ISERR(GETPIVOTDATA(\"body\",knt_tab!$S$3,\"zavodnik\",knt_tab!S11)),\"\",IF(GETPIVOTDATA(\"body\",knt_tab!$S$3,\"zavodnik\",knt_tab!S11)=0,\"\",knt_tab!S11))","v":"Potůček Tomáš"},{"$f":"IF(N37=\"\",\"\",GETPIVOTDATA(\"body\",knt_tab!$S$3,\"zavodnik\",N37))","v":42},null,1,{"$f":"IF(ISERR(GETPIVOTDATA(\"body\",knt_tab!$J$3,\"zavodnik\",knt_tab!J5)),\"\",IF(GETPIVOTDATA(\"body\",knt_tab!$J$3,\"zavodnik\",knt_tab!J5)=0,\"\",knt_tab!J5))","v":"Zoulová Tereza"},{"$f":"IF(R37=\"\",\"\",GETPIVOTDATA(\"body\",knt_tab!$J$3,\"zavodnik\",R37))","v":13},null,8,{"$f":"IF(ISERR(GETPIVOTDATA(\"body\",knt_tab!$D$3,\"zavodnik\",knt_tab!D12)),\"\",IF(GETPIVOTDATA(\"body\",knt_tab!$D$3,\"zavodnik\",knt_tab!D12)=0,\"\",knt_tab!D12))","v":"Vlček Viktor"},{"$f":"IF(V37=\"\",\"\",GETPIVOTDATA(\"body\",knt_tab!$D$3,\"zavodnik\",V37))","v":7}]
[34,{"$f":"IF(ISERR(GETPIVOTDATA(\"body\",knt_tab!$A$3,\"zavodnik\",knt_tab!A39)),\"\",IF(GETPIVOTDATA(\"body\",knt_tab!$A$3,\"zavodnik\",knt_tab!A39)=0,\"\",knt_tab!A39))","v":"Pospíšil Jan"},{"$f":"IF(B38=\"\",\"\",GETPIVOTDATA(\"body\",knt_tab!$A$3,\"zavodnik\",B38))","v":24},null,"",{"$f":"IF(ISERR(GETPIVOTDATA(\"body\",knt_tab!$A$3,\"zavodnik\",knt_tab!A100)),\"\",IF(GETPIVOTDATA(\"body\",knt_tab!$A$3,\"zavodnik\",knt_tab!A100)=0,\"\",knt_tab!A100))","v":""},{"$f":"IF(F38=\"\",\"\",GETPIVOTDATA(\"body\",knt_tab!$A$3,\"zavodnik\",F38))","v":""},null,"",{"$f":"IF(ISERR(GETPIVOTDATA(\"body\",knt_tab!$AE$3,\"zavodnik\",knt_tab!AE14)),\"\",IF(GETPIVOTDATA(\"body\",knt_tab!$AE$3,\"zavodnik\",knt_tab!AE14)=0,\"\",knt_tab!AE14))","v":""},{"$f":"IF(J38=\"\",\"\",GETPIVOTDATA(\"body\",knt_tab!$AE$3,\"zavodnik\",J38))","v":""},null,8,{"$f":"IF(ISERR(GETPIVOTDATA(\"body\",knt_tab!$S$3,\"zavodnik\",knt_tab!S12)),\"\",IF(GETPIVOTDATA(\"body\",knt_tab!$S$3,\"zavodnik\",knt_tab!S12)=0,\"\",knt_tab!S12))","v":"Lavrukhin Dobrynya"},{"$f":"IF(N38=\"\",\"\",GETPIVOTDATA(\"body\",knt_tab!$S$3,\"zavodnik\",N38))","v":39},null,{"$f":"IF(R38=\"\",\"\",IF(S38=S37,Q37,ROW(Q38)-ROW($Q$36)))","v":2},{"$f":"IF(ISERR(GETPIVOTDATA(\"body\",knt_tab!$J$3,\"zavodnik\",knt_tab!J6)),\"\",IF(GETPIVOTDATA(\"body\",knt_tab!$J$3,\"zavodnik\",knt_tab!J6)=0,\"\",knt_tab!J6))","v":"Zoulová Karolína"},{"$f":"IF(R38=\"\",\"\",GETPIVOTDATA(\"body\",knt_tab!$J$3,\"zavodnik\",R38))","v":10},null,9,{"$f":"IF(ISERR(GETPIVOTDATA(\"body\",knt_tab!$D$3,\"zavodnik\",knt_tab!D13)),\"\",IF(GETPIVOTDATA(\"body\",knt_tab!$D$3,\"zavodnik\",knt_tab!D13)=0,\"\",knt_tab!D13))","v":"Bauko Viktor"},{"$f":"IF(V38=\"\",\"\",GETPIVOTDATA(\"body\",knt_tab!$D$3,\"zavodnik\",V38))","v":6}]
[34,{"$f":"IF(ISERR(GETPIVOTDATA(\"body\",knt_tab!$A$3,\"zavodnik\",knt_tab!A40)),\"\",IF(GETPIVOTDATA(\"body\",knt_tab!$A$3,\"zavodnik\",knt_tab!A40)=0,\"\",knt_tab!A40))","v":"Caletka Michal"},{"$f":"IF(B39=\"\",\"\",GETPIVOTDATA(\"body\",knt_tab!$A$3,\"zavodnik\",B39))","v":24},null,"",{"$f":"IF(ISERR(GETPIVOTDATA(\"body\",knt_tab!$A$3,\"zavodnik\",knt_tab!A101)),\"\",IF(GETPIVOTDATA(\"body\",knt_tab!$A$3,\"zavodnik\",knt_tab!A101)=0,\"\",knt_tab!A101))","v":""},{"$f":"IF(F39=\"\",\"\",GETPIVOTDATA(\"body\",knt_tab!$A$3,\"zavodnik\",F39))","v":""},null,"",{"$f":"IF(ISERR(GETPIVOTDATA(\"body\",knt_tab!$AE$3,\"zavodnik\",knt_tab!AE15)),\"\",IF(GETPIVOTDATA(\"body\",knt_tab!$AE$3,\"zavodnik\",knt_tab!AE15)=0,\"\",knt_tab!AE15))","v":""},{"$f":"IF(J39=\"\",\"\",GETPIVOTDATA(\"body\",knt_tab!$AE$3,\"zavodnik\",J39))","v":""},null,9,{"$f":"IF(ISERR(GETPIVOTDATA(\"body\",knt_tab!$S$3,\"zavodnik\",knt_tab!S13)),\"\",IF(GETPIVOTDATA(\"body\",knt_tab!$S$3,\"zavodnik\",knt_tab!S13)=0,\"\",knt_tab!S13))","v":"Caletka Petr"},{"$f":"IF(N39=\"\",\"\",GETPIVOTDATA(\"body\",knt_tab!$S$3,\"zavodnik\",N39))","v":31},null,3,{"$f":"IF(ISERR(GETPIVOTDATA(\"body\",knt_tab!$J$3,\"zavodnik\",knt_tab!J7)),\"\",IF(GETPIVOTDATA(\"body\",knt_tab!$J$3,\"zavodnik\",knt_tab!J7)=0,\"\",knt_tab!J7))","v":"Slováková Tereza"},{"$f":"IF(R39=\"\",\"\",GETPIVOTDATA(\"body\",knt_tab!$J$3,\"zavodnik\",R39))","v":8},null,9,{"$f":"IF(ISERR(GETPIVOTDATA(\"body\",knt_tab!$D$3,\"zavodnik\",knt_tab!D14)),\"\",IF(GETPIVOTDATA(\"body\",knt_tab!$D$3,\"zavodnik\",knt_tab!D14)=0,\"\",knt_tab!D14))","v":"Kouřil Sebastián"},{"$f":"IF(V39=\"\",\"\",GETPIVOTDATA(\"body\",knt_tab!$D$3,\"zavodnik\",V39))","v":6}]
[34,{"$f":"IF(ISERR(GETPIVOTDATA(\"body\",knt_tab!$A$3,\"zavodnik\",knt_tab!A41)),\"\",IF(GETPIVOTDATA(\"body\",knt_tab!$A$3,\"zavodnik\",knt_tab!A41)=0,\"\",knt_tab!A41))","v":"Siuda Adam"},{"$f":"IF(B40=\"\",\"\",GETPIVOTDATA(\"body\",knt_tab!$A$3,\"zavodnik\",B40))","v":24},null,"",{"$f":"IF(ISERR(GETPIVOTDATA(\"body\",knt_tab!$A$3,\"zavodnik\",knt_tab!A102)),\"\",IF(GETPIVOTDATA(\"body\",knt_tab!$A$3,\"zavodnik\",knt_tab!A102)=0,\"\",knt_tab!A102))","v":""},{"$f":"IF(F40=\"\",\"\",GETPIVOTDATA(\"body\",knt_tab!$A$3,\"zavodnik\",F40))","v":""},null,"",{"$f":"IF(ISERR(GETPIVOTDATA(\"body\",knt_tab!$AE$3,\"zavodnik\",knt_tab!AE16)),\"\",IF(GETPIVOTDATA(\"body\",knt_tab!$AE$3,\"zavodnik\",knt_tab!AE16)=0,\"\",knt_tab!AE16))","v":""},{"$f":"IF(J40=\"\",\"\",GETPIVOTDATA(\"body\",knt_tab!$AE$3,\"zavodnik\",J40))","v":""},null,10,{"$f":"IF(ISERR(GETPIVOTDATA(\"body\",knt_tab!$S$3,\"zavodnik\",knt_tab!S14)),\"\",IF(GETPIVOTDATA(\"body\",knt_tab!$S$3,\"zavodnik\",knt_tab!S14)=0,\"\",knt_tab!S14))","v":"Čerchla Michal"},{"$f":"IF(N40=\"\",\"\",GETPIVOTDATA(\"body\",knt_tab!$S$3,\"zavodnik\",N40))","v":29},null,"",{"$f":"IF(ISERR(GETPIVOTDATA(\"body\",knt_tab!$J$3,\"zavodnik\",knt_tab!J8)),\"\",IF(GETPIVOTDATA(\"body\",knt_tab!$J$3,\"zavodnik\",knt_tab!J8)=0,\"\",knt_tab!J8))","v":""},{"$f":"IF(R40=\"\",\"\",GETPIVOTDATA(\"body\",knt_tab!$J$3,\"zavodnik\",R40))","v":""},null,11,{"$f":"IF(ISERR(GETPIVOTDATA(\"body\",knt_tab!$D$3,\"zavodnik\",knt_tab!D15)),\"\",IF(GETPIVOTDATA(\"body\",knt_tab!$D$3,\"zavodnik\",knt_tab!D15)=0,\"\",knt_tab!D15))","v":"Teodor Maslík"},{"$f":"IF(V40=\"\",\"\",GETPIVOTDATA(\"body\",knt_tab!$D$3,\"zavodnik\",V40))","v":3}]
[34,{"$f":"IF(ISERR(GETPIVOTDATA(\"body\",knt_tab!$A$3,\"zavodnik\",knt_tab!A42)),\"\",IF(GETPIVOTDATA(\"body\",knt_tab!$A$3,\"zavodnik\",knt_tab!A42)=0,\"\",knt_tab!A42))","v":"Čebík Filip"},{"$f":"IF(B41=\"\",\"\",GETPIVOTDATA(\"body\",knt_tab!$A$3,\"zavodnik\",B41))","v":24},null,"",{"$f":"IF(ISERR(GETPIVOTDATA(\"body\",knt_tab!$A$3,\"zavodnik\",knt_tab!A103)),\"\",IF(GETPIVOTDATA(\"body\",knt_tab!$A$3,\"zavodnik\",knt_tab!A103)=0,\"\",knt_tab!A103))","v":""},{"$f":"IF(F41=\"\",\"\",GETPIVOTDATA(\"body\",knt_tab!$A$3,\"zavodnik\",F41))","v":""},null,"",{"$f":"IF(ISERR(GETPIVOTDATA(\"body\",knt_tab!$AE$3,\"zavodnik\",knt_tab!AE17)),\"\",IF(GETPIVOTDATA(\"body\",knt_tab!$AE$3,\"zavodnik\",knt_tab!AE17)=0,\"\",knt_tab!AE17))","v":""},{"$f":"IF(J41=\"\",\"\",GETPIVOTDATA(\"body\",knt_tab!$AE$3,\"zavodnik\",J41))","v":""},null,11,{"$f":"IF(ISERR(GETPIVOTDATA(\"body\",knt_tab!$S$3,\"zavodnik\",knt_tab!S15)),\"\",IF(GETPIVOTDATA(\"body\",knt_tab!$S$3,\"zavodnik\",knt_tab!S15)=0,\"\",knt_tab!S15))","v":"Chlebovský Daniel"},{"$f":"IF(N41=\"\",\"\",GETPIVOTDATA(\"body\",knt_tab!$S$3,\"zavodnik\",N41))","v":26},null,"",{"$f":"IF(ISERR(GETPIVOTDATA(\"body\",knt_tab!$J$3,\"zavodnik\",knt_tab!J9)),\"\",IF(GETPIVOTDATA(\"body\",knt_tab!$J$3,\"zavodnik\",knt_tab!J9)=0,\"\",knt_tab!J9))","v":""},{"$f":"IF(R41=\"\",\"\",GETPIVOTDATA(\"body\",knt_tab!$J$3,\"zavodnik\",R41))","v":""},null,11,{"$f":"IF(ISERR(GETPIVOTDATA(\"body\",knt_tab!$D$3,\"zavodnik\",knt_tab!D16)),\"\",IF(GETPIVOTDATA(\"body\",knt_tab!$D$3,\"zavodnik\",knt_tab!D16)=0,\"\",knt_tab!D16))","v":"Jahoda Pavel"},{"$f":"IF(V41=\"\",\"\",GETPIVOTDATA(\"body\",knt_tab!$D$3,\"zavodnik\",V41))","v":3}]
[39,{"$f":"IF(ISERR(GETPIVOTDATA(\"body\",knt_tab!$A$3,\"zavodnik\",knt_tab!A43)),\"\",IF(GETPIVOTDATA(\"body\",knt_tab!$A$3,\"zavodnik\",knt_tab!A43)=0,\"\",knt_tab!A43))","v":"Tomek David"},{"$f":"IF(B42=\"\",\"\",GETPIVOTDATA(\"body\",knt_tab!$A$3,\"zavodnik\",B42))","v":23},null,"",{"$f":"IF(ISERR(GETPIVOTDATA(\"body\",knt_tab!$A$3,\"zavodnik\",knt_tab!A104)),\"\",IF(GETPIVOTDATA(\"body\",knt_tab!$A$3,\"zavodnik\",knt_tab!A104)=0,\"\",knt_tab!A104))","v":""},{"$f":"IF(F42=\"\",\"\",GETPIVOTDATA(\"body\",knt_tab!$A$3,\"zavodnik\",F42))","v":""},null,"",{"$f":"IF(ISERR(GETPIVOTDATA(\"body\",knt_tab!$AE$3,\"zavodnik\",knt_tab!AE18)),\"\",IF(GETPIVOTDATA(\"body\",knt_tab!$AE$3,\"zavodnik\",knt_tab!AE18)=0,\"\",knt_tab!AE18))","v":""},{"$f":"IF(J42=\"\",\"\",GETPIVOTDATA(\"body\",knt_tab!$AE$3,\"zavodnik\",J42))","v":""},null,12,{"$f":"IF(ISERR(GETPIVOTDATA(\"body\",knt_tab!$S$3,\"zavodnik\",knt_tab!S16)),\"\",IF(GETPIVOTDATA(\"body\",knt_tab!$S$3,\"zavodnik\",knt_tab!S16)=0,\"\",knt_tab!S16))","v":"Siuda Adam"},{"$f":"IF(N42=\"\",\"\",GETPIVOTDATA(\"body\",knt_tab!$S$3,\"zavodnik\",N42))","v":24},null,"",{"$f":"IF(ISERR(GETPIVOTDATA(\"body\",knt_tab!$J$3,\"zavodnik\",knt_tab!J10)),\"\",IF(GETPIVOTDATA(\"body\",knt_tab!$J$3,\"zavodnik\",knt_tab!J10)=0,\"\",knt_tab!J10))","v":""},{"$f":"IF(R42=\"\",\"\",GETPIVOTDATA(\"body\",knt_tab!$J$3,\"zavodnik\",R42))","v":""},null,13,{"$f":"IF(ISERR(GETPIVOTDATA(\"body\",knt_tab!$D$3,\"zavodnik\",knt_tab!D17)),\"\",IF(GETPIVOTDATA(\"body\",knt_tab!$D$3,\"zavodnik\",knt_tab!D17)=0,\"\",knt_tab!D17))","v":"Podivinský Marek"},{"$f":"IF(V42=\"\",\"\",GETPIVOTDATA(\"body\",knt_tab!$D$3,\"zavodnik\",V42))","v":2}]
[40,{"$f":"IF(ISERR(GETPIVOTDATA(\"body\",knt_tab!$A$3,\"zavodnik\",knt_tab!A44)),\"\",IF(GETPIVOTDATA(\"body\",knt_tab!$A$3,\"zavodnik\",knt_tab!A44)=0,\"\",knt_tab!A44))","v":"Pačuta Ladislav"},{"$f":"IF(B43=\"\",\"\",GETPIVOTDATA(\"body\",knt_tab!$A$3,\"zavodnik\",B43))","v":22},null,"",{"$f":"IF(ISERR(GETPIVOTDATA(\"body\",knt_tab!$A$3,\"zavodnik\",knt_tab!A105)),\"\",IF(GETPIVOTDATA(\"body\",knt_tab!$A$3,\"zavodnik\",knt_tab!A105)=0,\"\",knt_tab!A105))","v":""},{"$f":"IF(F43=\"\",\"\",GETPIVOTDATA(\"body\",knt_tab!$A$3,\"zavodnik\",F43))","v":""},null,"",{"$f":"IF(ISERR(GETPIVOTDATA(\"body\",knt_tab!$AE$3,\"zavodnik\",knt_tab!AE19)),\"\",IF(GETPIVOTDATA(\"body\",knt_tab!$AE$3,\"zavodnik\",knt_tab!AE19)=0,\"\",knt_tab!AE19))","v":""},{"$f":"IF(J43=\"\",\"\",GETPIVOTDATA(\"body\",knt_tab!$AE$3,\"zavodnik\",J43))","v":""},null,12,{"$f":"IF(ISERR(GETPIVOTDATA(\"body\",knt_tab!$S$3,\"zavodnik\",knt_tab!S17)),\"\",IF(GETPIVOTDATA(\"body\",knt_tab!$S$3,\"zavodnik\",knt_tab!S17)=0,\"\",knt_tab!S17))","v":"Caletka Michal"},{"$f":"IF(N43=\"\",\"\",GETPIVOTDATA(\"body\",knt_tab!$S$3,\"zavodnik\",N43))","v":24},null,"",{"$f":"IF(ISERR(GETPIVOTDATA(\"body\",knt_tab!$J$3,\"zavodnik\",knt_tab!J11)),\"\",IF(GETPIVOTDATA(\"body\",knt_tab!$J$3,\"zavodnik\",knt_tab!J11)=0,\"\",knt_tab!J11))","v":""},{"$f":"IF(R43=\"\",\"\",GETPIVOTDATA(\"body\",knt_tab!$J$3,\"zavodnik\",R43))","v":""},null,14,{"$f":"IF(ISERR(GETPIVOTDATA(\"body\",knt_tab!$D$3,\"zavodnik\",knt_tab!D18)),\"\",IF(GETPIVOTDATA(\"body\",knt_tab!$D$3,\"zavodnik\",knt_tab!D18)=0,\"\",knt_tab!D18))","v":"Šindel Jakub"},{"$f":"IF(V43=\"\",\"\",GETPIVOTDATA(\"body\",knt_tab!$D$3,\"zavodnik\",V43))","v":1}]
[41,{"$f":"IF(ISERR(GETPIVOTDATA(\"body\",knt_tab!$A$3,\"zavodnik\",knt_tab!A45)),\"\",IF(GETPIVOTDATA(\"body\",knt_tab!$A$3,\"zavodnik\",knt_tab!A45)=0,\"\",knt_tab!A45))","v":"Bystrianský Jan"},{"$f":"IF(B44=\"\",\"\",GETPIVOTDATA(\"body\",knt_tab!$A$3,\"zavodnik\",B44))","v":20},null,"",{"$f":"IF(ISERR(GETPIVOTDATA(\"body\",knt_tab!$A$3,\"zavodnik\",knt_tab!A106)),\"\",IF(GETPIVOTDATA(\"body\",knt_tab!$A$3,\"zavodnik\",knt_tab!A106)=0,\"\",knt_tab!A106))","v":""},{"$f":"IF(F44=\"\",\"\",GETPIVOTDATA(\"body\",knt_tab!$A$3,\"zavodnik\",F44))","v":""},null,"",{"$f":"IF(ISERR(GETPIVOTDATA(\"body\",knt_tab!$AE$3,\"zavodnik\",knt_tab!AE20)),\"\",IF(GETPIVOTDATA(\"body\",knt_tab!$AE$3,\"zavodnik\",knt_tab!AE20)=0,\"\",knt_tab!AE20))","v":""},{"$f":"IF(J44=\"\",\"\",GETPIVOTDATA(\"body\",knt_tab!$AE$3,\"zavodnik\",J44))","v":""},null,12,{"$f":"IF(ISERR(GETPIVOTDATA(\"body\",knt_tab!$S$3,\"zavodnik\",knt_tab!S18)),\"\",IF(GETPIVOTDATA(\"body\",knt_tab!$S$3,\"zavodnik\",knt_tab!S18)=0,\"\",knt_tab!S18))","v":"Čebík Filip"},{"$f":"IF(N44=\"\",\"\",GETPIVOTDATA(\"body\",knt_tab!$S$3,\"zavodnik\",N44))","v":24},null,null,null,null,null,"",{"$f":"IF(ISERR(GETPIVOTDATA(\"body\",knt_tab!$D$3,\"zavodnik\",knt_tab!D19)),\"\",IF(GETPIVOTDATA(\"body\",knt_tab!$D$3,\"zavodnik\",knt_tab!D19)=0,\"\",knt_tab!D19))","v":""},{"$f":"IF(V44=\"\",\"\",GETPIVOTDATA(\"body\",knt_tab!$D$3,\"zavodnik\",V44))","v":""}]
[41,{"$f":"IF(ISERR(GETPIVOTDATA(\"body\",knt_tab!$A$3,\"zavodnik\",knt_tab!A46)),\"\",IF(GETPIVOTDATA(\"body\",knt_tab!$A$3,\"zavodnik\",knt_tab!A46)=0,\"\",knt_tab!A46))","v":"Musial Šimon"},{"$f":"IF(B45=\"\",\"\",GETPIVOTDATA(\"body\",knt_tab!$A$3,\"zavodnik\",B45))","v":20},null,"",{"$f":"IF(ISERR(GETPIVOTDATA(\"body\",knt_tab!$A$3,\"zavodnik\",knt_tab!A107)),\"\",IF(GETPIVOTDATA(\"body\",knt_tab!$A$3,\"zavodnik\",knt_tab!A107)=0,\"\",knt_tab!A107))","v":""},{"$f":"IF(F45=\"\",\"\",GETPIVOTDATA(\"body\",knt_tab!$A$3,\"zavodnik\",F45))","v":""},null,"",{"$f":"IF(ISERR(GETPIVOTDATA(\"body\",knt_tab!$AE$3,\"zavodnik\",knt_tab!AE21)),\"\",IF(GETPIVOTDATA(\"body\",knt_tab!$AE$3,\"zavodnik\",knt_tab!AE21)=0,\"\",knt_tab!AE21))","v":""},{"$f":"IF(J45=\"\",\"\",GETPIVOTDATA(\"body\",knt_tab!$AE$3,\"zavodnik\",J45))","v":""},null,{"$f":"IF(N45=\"\",\"\",IF(O45=O44,M44,ROW(M45)-ROW($M$30)))","v":15},{"$f":"IF(ISERR(GETPIVOTDATA(\"body\",knt_tab!$S$3,\"zavodnik\",knt_tab!S19)),\"\",IF(GETPIVOTDATA(\"body\",knt_tab!$S$3,\"zavodnik\",knt_tab!S19)=0,\"\",knt_tab!S19))","v":"Tomek David"},{"$f":"IF(N45=\"\",\"\",GETPIVOTDATA(\"body\",knt_tab!$S$3,\"zavodnik\",N45))","v":23},null,"mladší žáci",null,null,null,"",{"$f":"IF(ISERR(GETPIVOTDATA(\"body\",knt_tab!$D$3,\"zavodnik\",knt_tab!D20)),\"\",IF(GETPIVOTDATA(\"body\",knt_tab!$D$3,\"zavodnik\",knt_tab!D20)=0,\"\",knt_tab!D20))","v":""},{"$f":"IF(V45=\"\",\"\",GETPIVOTDATA(\"body\",knt_tab!$D$3,\"zavodnik\",V45))","v":""}]
[41,{"$f":"IF(ISERR(GETPIVOTDATA(\"body\",knt_tab!$A$3,\"zavodnik\",knt_tab!A47)),\"\",IF(GETPIVOTDATA(\"body\",knt_tab!$A$3,\"zavodnik\",knt_tab!A47)=0,\"\",knt_tab!A47))","v":"Matýsek Jan"},{"$f":"IF(B46=\"\",\"\",GETPIVOTDATA(\"body\",knt_tab!$A$3,\"zavodnik\",B46))","v":20},null,"",{"$f":"IF(ISERR(GETPIVOTDATA(\"body\",knt_tab!$A$3,\"zavodnik\",knt_tab!A108)),\"\",IF(GETPIVOTDATA(\"body\",knt_tab!$A$3,\"zavodnik\",knt_tab!A108)=0,\"\",knt_tab!A108))","v":""},{"$f":"IF(F46=\"\",\"\",GETPIVOTDATA(\"body\",knt_tab!$A$3,\"zavodnik\",F46))","v":""},null,null,null,null,null,16,{"$f":"IF(ISERR(GETPIVOTDATA(\"body\",knt_tab!$S$3,\"zavodnik\",knt_tab!S20)),\"\",IF(GETPIVOTDATA(\"body\",knt_tab!$S$3,\"zavodnik\",knt_tab!S20)=0,\"\",knt_tab!S20))","v":"Pačuta Ladislav"},{"$f":"IF(N46=\"\",\"\",GETPIVOTDATA(\"body\",knt_tab!$S$3,\"zavodnik\",N46))","v":22},null,"Pořadí","Příjmení","body",null,"",{"$f":"IF(ISERR(GETPIVOTDATA(\"body\",knt_tab!$D$3,\"zavodnik\",knt_tab!D21)),\"\",IF(GETPIVOTDATA(\"body\",knt_tab!$D$3,\"zavodnik\",knt_tab!D21)=0,\"\",knt_tab!D21))","v":""},{"$f":"IF(V46=\"\",\"\",GETPIVOTDATA(\"body\",knt_tab!$D$3,\"zavodnik\",V46))","v":""}]
[44,{"$f":"IF(ISERR(GETPIVOTDATA(\"body\",knt_tab!$A$3,\"zavodnik\",knt_tab!A48)),\"\",IF(GETPIVOTDATA(\"body\",knt_tab!$A$3,\"zavodnik\",knt_tab!A48)=0,\"\",knt_tab!A48))","v":"Prudil Adam"},{"$f":"IF(B47=\"\",\"\",GETPIVOTDATA(\"body\",knt_tab!$A$3,\"zavodnik\",B47))","v":19},null,"",{"$f":"IF(ISERR(GETPIVOTDATA(\"body\",knt_tab!$A$3,\"zavodnik\",knt_tab!A109)),\"\",IF(GETPIVOTDATA(\"body\",knt_tab!$A$3,\"zavodnik\",knt_tab!A109)=0,\"\",knt_tab!A109))","v":""},{"$f":"IF(F47=\"\",\"\",GETPIVOTDATA(\"body\",knt_tab!$A$3,\"zavodnik\",F47))","v":""},null,"ženy",null,null,null,17,{"$f":"IF(ISERR(GETPIVOTDATA(\"body\",knt_tab!$S$3,\"zavodnik\",knt_tab!S21)),\"\",IF(GETPIVOTDATA(\"body\",knt_tab!$S$3,\"zavodnik\",knt_tab!S21)=0,\"\",knt_tab!S21))","v":"Matýsek Jan"},{"$f":"IF(N47=\"\",\"\",GETPIVOTDATA(\"body\",knt_tab!$S$3,\"zavodnik\",N47))","v":20},null,1,{"$f":"IF(ISERR(GETPIVOTDATA(\"body\",knt_tab!$G$3,\"zavodnik\",knt_tab!G5)),\"\",IF(GETPIVOTDATA(\"body\",knt_tab!$G$3,\"zavodnik\",knt_tab!G5)=0,\"\",knt_tab!G5))","v":"Stark Vojtěch"},{"$f":"IF(R47=\"\",\"\",GETPIVOTDATA(\"body\",knt_tab!$G$3,\"zavodnik\",R47))","v":53},null,"",{"$f":"IF(ISERR(GETPIVOTDATA(\"body\",knt_tab!$D$3,\"zavodnik\",knt_tab!D22)),\"\",IF(GETPIVOTDATA(\"body\",knt_tab!$D$3,\"zavodnik\",knt_tab!D22)=0,\"\",knt_tab!D22))","v":""},{"$f":"IF(V47=\"\",\"\",GETPIVOTDATA(\"body\",knt_tab!$D$3,\"zavodnik\",V47))","v":""}]
[{"$f":"IF(B48=\"\",\"\",IF(C48=C47,A47,ROW(A48)-ROW($A$3)))","v":45},{"$f":"IF(ISERR(GETPIVOTDATA(\"body\",knt_tab!$A$3,\"zavodnik\",knt_tab!A49)),\"\",IF(GETPIVOTDATA(\"body\",knt_tab!$A$3,\"zavodnik\",knt_tab!A49)=0,\"\",knt_tab!A49))","v":"Bokiy Konstantin"},{"$f":"IF(B48=\"\",\"\",GETPIVOTDATA(\"body\",knt_tab!$A$3,\"zavodnik\",B48))","v":17},null,"",{"$f":"IF(ISERR(GETPIVOTDATA(\"body\",knt_tab!$A$3,\"zavodnik\",knt_tab!A110)),\"\",IF(GETPIVOTDATA(\"body\",knt_tab!$A$3,\"zavodnik\",knt_tab!A110)=0,\"\",knt_tab!A110))","v":""},{"$f":"IF(F48=\"\",\"\",GETPIVOTDATA(\"body\",knt_tab!$A$3,\"zavodnik\",F48))","v":""},null,"Pořadí","Příjmení","body",null,18,{"$f":"IF(ISERR(GETPIVOTDATA(\"body\",knt_tab!$S$3,\"zavodnik\",knt_tab!S22)),\"\",IF(GETPIVOTDATA(\"body\",knt_tab!$S$3,\"zavodnik\",knt_tab!S22)=0,\"\",knt_tab!S22))","v":"Kristen Nikolas"},{"$f":"IF(N48=\"\",\"\",GETPIVOTDATA(\"body\",knt_tab!$S$3,\"zavodnik\",N48))","v":13},null,{"$f":"IF(R48=\"\",\"\",IF(S48=S47,Q47,ROW(Q48)-ROW($Q$46)))","v":2},{"$f":"IF(ISERR(GETPIVOTDATA(\"body\",knt_tab!$G$3,\"zavodnik\",knt_tab!G6)),\"\",IF(GETPIVOTDATA(\"body\",knt_tab!$G$3,\"zavodnik\",knt_tab!G6)=0,\"\",knt_tab!G6))","v":"Ciora Jakub"},{"$f":"IF(R48=\"\",\"\",GETPIVOTDATA(\"body\",knt_tab!$G$3,\"zavodnik\",R48))","v":42},null,"",{"$f":"IF(ISERR(GETPIVOTDATA(\"body\",knt_tab!$D$3,\"zavodnik\",knt_tab!D23)),\"\",IF(GETPIVOTDATA(\"body\",knt_tab!$D$3,\"zavodnik\",knt_tab!D23)=0,\"\",knt_tab!D23))","v":""},{"$f":"IF(V48=\"\",\"\",GETPIVOTDATA(\"body\",knt_tab!$D$3,\"zavodnik\",V48))","v":""}]
[45,{"$f":"IF(ISERR(GETPIVOTDATA(\"body\",knt_tab!$A$3,\"zavodnik\",knt_tab!A50)),\"\",IF(GETPIVOTDATA(\"body\",knt_tab!$A$3,\"zavodnik\",knt_tab!A50)=0,\"\",knt_tab!A50))","v":"Malaczynski Filip"},{"$f":"IF(B49=\"\",\"\",GETPIVOTDATA(\"body\",knt_tab!$A$3,\"zavodnik\",B49))","v":17},null,"",{"$f":"IF(ISERR(GETPIVOTDATA(\"body\",knt_tab!$A$3,\"zavodnik\",knt_tab!A111)),\"\",IF(GETPIVOTDATA(\"body\",knt_tab!$A$3,\"zavodnik\",knt_tab!A111)=0,\"\",knt_tab!A111))","v":""},{"$f":"IF(F49=\"\",\"\",GETPIVOTDATA(\"body\",knt_tab!$A$3,\"zavodnik\",F49))","v":""},null,1,{"$f":"IF(ISERR(GETPIVOTDATA(\"body\",knt_tab!$AH$3,\"zavodnik\",knt_tab!AH5)),\"\",IF(GETPIVOTDATA(\"body\",knt_tab!$AH$3,\"zavodnik\",knt_tab!AH5)=0,\"\",knt_tab!AH5))","v":"Polašková Kristýna"},{"$f":"IF(J49=\"\",\"\",GETPIVOTDATA(\"body\",knt_tab!$AH$3,\"zavodnik\",J49))","v":42},null,19,{"$f":"IF(ISERR(GETPIVOTDATA(\"body\",knt_tab!$S$3,\"zavodnik\",knt_tab!S23)),\"\",IF(GETPIVOTDATA(\"body\",knt_tab!$S$3,\"zavodnik\",knt_tab!S23)=0,\"\",knt_tab!S23))","v":"Meixner Michal"},{"$f":"IF(N49=\"\",\"\",GETPIVOTDATA(\"body\",knt_tab!$S$3,\"zavodnik\",N49))","v":6},null,3,{"$f":"IF(ISERR(GETPIVOTDATA(\"body\",knt_tab!$G$3,\"zavodnik\",knt_tab!G7)),\"\",IF(GETPIVOTDATA(\"body\",knt_tab!$G$3,\"zavodnik\",knt_tab!G7)=0,\"\",knt_tab!G7))","v":"Škoda Melichar"},{"$f":"IF(R49=\"\",\"\",GETPIVOTDATA(\"body\",knt_tab!$G$3,\"zavodnik\",R49))","v":41},null,"",{"$f":"IF(ISERR(GETPIVOTDATA(\"body\",knt_tab!$D$3,\"zavodnik\",knt_tab!D24)),\"\",IF(GETPIVOTDATA(\"body\",knt_tab!$D$3,\"zavodnik\",knt_tab!D24)=0,\"\",knt_tab!D24))","v":""},{"$f":"IF(V49=\"\",\"\",GETPIVOTDATA(\"body\",knt_tab!$D$3,\"zavodnik\",V49))","v":""}]
[47,{"$f":"IF(ISERR(GETPIVOTDATA(\"body\",knt_tab!$A$3,\"zavodnik\",knt_tab!A51)),\"\",IF(GETPIVOTDATA(\"body\",knt_tab!$A$3,\"zavodnik\",knt_tab!A51)=0,\"\",knt_tab!A51))","v":"Nováková Victoria"},{"$f":"IF(B50=\"\",\"\",GETPIVOTDATA(\"body\",knt_tab!$A$3,\"zavodnik\",B50))","v":16},null,"",{"$f":"IF(ISERR(GETPIVOTDATA(\"body\",knt_tab!$A$3,\"zavodnik\",knt_tab!A112)),\"\",IF(GETPIVOTDATA(\"body\",knt_tab!$A$3,\"zavodnik\",knt_tab!A112)=0,\"\",knt_tab!A112))","v":""},{"$f":"IF(F50=\"\",\"\",GETPIVOTDATA(\"body\",knt_tab!$A$3,\"zavodnik\",F50))","v":""},null,{"$f":"IF(J50=\"\",\"\",IF(K50=K49,I49,ROW(I50)-ROW($I$48)))","v":2},{"$f":"IF(ISERR(GETPIVOTDATA(\"body\",knt_tab!$AH$3,\"zavodnik\",knt_tab!AH6)),\"\",IF(GETPIVOTDATA(\"body\",knt_tab!$AH$3,\"zavodnik\",knt_tab!AH6)=0,\"\",knt_tab!AH6))","v":"Čerchlová Markéta"},{"$f":"IF(J50=\"\",\"\",GETPIVOTDATA(\"body\",knt_tab!$AH$3,\"zavodnik\",J50))","v":39},null,null,null,null,null,4,{"$f":"IF(ISERR(GETPIVOTDATA(\"body\",knt_tab!$G$3,\"zavodnik\",knt_tab!G8)),\"\",IF(GETPIVOTDATA(\"body\",knt_tab!$G$3,\"zavodnik\",knt_tab!G8)=0,\"\",knt_tab!G8))","v":"Huvar Matyáš"},{"$f":"IF(R50=\"\",\"\",GETPIVOTDATA(\"body\",knt_tab!$G$3,\"zavodnik\",R50))","v":38},null,"",{"$f":"IF(ISERR(GETPIVOTDATA(\"body\",knt_tab!$D$3,\"zavodnik\",knt_tab!D25)),\"\",IF(GETPIVOTDATA(\"body\",knt_tab!$D$3,\"zavodnik\",knt_tab!D25)=0,\"\",knt_tab!D25))","v":""},{"$f":"IF(V50=\"\",\"\",GETPIVOTDATA(\"body\",knt_tab!$D$3,\"zavodnik\",V50))","v":""}]
[47,{"$f":"IF(ISERR(GETPIVOTDATA(\"body\",knt_tab!$A$3,\"zavodnik\",knt_tab!A52)),\"\",IF(GETPIVOTDATA(\"body\",knt_tab!$A$3,\"zavodnik\",knt_tab!A52)=0,\"\",knt_tab!A52))","v":"Schoffer Radim"},{"$f":"IF(B51=\"\",\"\",GETPIVOTDATA(\"body\",knt_tab!$A$3,\"zavodnik\",B51))","v":16},null,"",{"$f":"IF(ISERR(GETPIVOTDATA(\"body\",knt_tab!$A$3,\"zavodnik\",knt_tab!A113)),\"\",IF(GETPIVOTDATA(\"body\",knt_tab!$A$3,\"zavodnik\",knt_tab!A113)=0,\"\",knt_tab!A113))","v":""},{"$f":"IF(F51=\"\",\"\",GETPIVOTDATA(\"body\",knt_tab!$A$3,\"zavodnik\",F51))","v":""},null,2,{"$f":"IF(ISERR(GETPIVOTDATA(\"body\",knt_tab!$AH$3,\"zavodnik\",knt_tab!AH7)),\"\",IF(GETPIVOTDATA(\"body\",knt_tab!$AH$3,\"zavodnik\",knt_tab!AH7)=0,\"\",knt_tab!AH7))","v":"Václavková Tereza"},{"$f":"IF(J51=\"\",\"\",GETPIVOTDATA(\"body\",knt_tab!$AH$3,\"zavodnik\",J51))","v":39},null,"starší žákyně",null,null,null,5,{"$f":"IF(ISERR(GETPIVOTDATA(\"body\",knt_tab!$G$3,\"zavodnik\",knt_tab!G9)),\"\",IF(GETPIVOTDATA(\"body\",knt_tab!$G$3,\"zavodnik\",knt_tab!G9)=0,\"\",knt_tab!G9))","v":"Kuluris Manolis"},{"$f":"IF(R51=\"\",\"\",GETPIVOTDATA(\"body\",knt_tab!$G$3,\"zavodnik\",R51))","v":37},null,"",{"$f":"IF(ISERR(GETPIVOTDATA(\"body\",knt_tab!$D$3,\"zavodnik\",knt_tab!D26)),\"\",IF(GETPIVOTDATA(\"body\",knt_tab!$D$3,\"zavodnik\",knt_tab!D26)=0,\"\",knt_tab!D26))","v":""},{"$f":"IF(V51=\"\",\"\",GETPIVOTDATA(\"body\",knt_tab!$D$3,\"zavodnik\",V51))","v":""}]
[47,{"$f":"IF(ISERR(GETPIVOTDATA(\"body\",knt_tab!$A$3,\"zavodnik\",knt_tab!A53)),\"\",IF(GETPIVOTDATA(\"body\",knt_tab!$A$3,\"zavodnik\",knt_tab!A53)=0,\"\",knt_tab!A53))","v":"Vršek Jakub"},{"$f":"IF(B52=\"\",\"\",GETPIVOTDATA(\"body\",knt_tab!$A$3,\"zavodnik\",B52))","v":16},null,"",{"$f":"IF(ISERR(GETPIVOTDATA(\"body\",knt_tab!$A$3,\"zavodnik\",knt_tab!A114)),\"\",IF(GETPIVOTDATA(\"body\",knt_tab!$A$3,\"zavodnik\",knt_tab!A114)=0,\"\",knt_tab!A114))","v":""},{"$f":"IF(F52=\"\",\"\",GETPIVOTDATA(\"body\",knt_tab!$A$3,\"zavodnik\",F52))","v":""},null,4,{"$f":"IF(ISERR(GETPIVOTDATA(\"body\",knt_tab!$AH$3,\"zavodnik\",knt_tab!AH8)),\"\",IF(GETPIVOTDATA(\"body\",knt_tab!$AH$3,\"zavodnik\",knt_tab!AH8)=0,\"\",knt_tab!AH8))","v":"Michálková Karolína"},{"$f":"IF(J52=\"\",\"\",GETPIVOTDATA(\"body\",knt_tab!$AH$3,\"zavodnik\",J52))","v":36},null,"Pořadí","Příjmení","body",null,6,{"$f":"IF(ISERR(GETPIVOTDATA(\"body\",knt_tab!$G$3,\"zavodnik\",knt_tab!G10)),\"\",IF(GETPIVOTDATA(\"body\",knt_tab!$G$3,\"zavodnik\",knt_tab!G10)=0,\"\",knt_tab!G10))","v":"Přichystal Leon"},{"$f":"IF(R52=\"\",\"\",GETPIVOTDATA(\"body\",knt_tab!$G$3,\"zavodnik\",R52))","v":34},null,"",{"$f":"IF(ISERR(GETPIVOTDATA(\"body\",knt_tab!$D$3,\"zavodnik\",knt_tab!D27)),\"\",IF(GETPIVOTDATA(\"body\",knt_tab!$D$3,\"zavodnik\",knt_tab!D27)=0,\"\",knt_tab!D27))","v":""},{"$f":"IF(V52=\"\",\"\",GETPIVOTDATA(\"body\",knt_tab!$D$3,\"zavodnik\",V52))","v":""}]
[50,{"$f":"IF(ISERR(GETPIVOTDATA(\"body\",knt_tab!$A$3,\"zavodnik\",knt_tab!A54)),\"\",IF(GETPIVOTDATA(\"body\",knt_tab!$A$3,\"zavodnik\",knt_tab!A54)=0,\"\",knt_tab!A54))","v":"Lechovič Tobiáš"},{"$f":"IF(B53=\"\",\"\",GETPIVOTDATA(\"body\",knt_tab!$A$3,\"zavodnik\",B53))","v":15},null,"",{"$f":"IF(ISERR(GETPIVOTDATA(\"body\",knt_tab!$A$3,\"zavodnik\",knt_tab!A115)),\"\",IF(GETPIVOTDATA(\"body\",knt_tab!$A$3,\"zavodnik\",knt_tab!A115)=0,\"\",knt_tab!A115))","v":""},{"$f":"IF(F53=\"\",\"\",GETPIVOTDATA(\"body\",knt_tab!$A$3,\"zavodnik\",F53))","v":""},null,5,{"$f":"IF(ISERR(GETPIVOTDATA(\"body\",knt_tab!$AH$3,\"zavodnik\",knt_tab!AH9)),\"\",IF(GETPIVOTDATA(\"body\",knt_tab!$AH$3,\"zavodnik\",knt_tab!AH9)=0,\"\",knt_tab!AH9))","v":"Kokešová Alexandra"},{"$f":"IF(J53=\"\",\"\",GETPIVOTDATA(\"body\",knt_tab!$AH$3,\"zavodnik\",J53))","v":13},null,1,{"$f":"IF(ISERR(GETPIVOTDATA(\"body\",knt_tab!$P$3,\"zavodnik\",knt_tab!P5)),\"\",IF(GETPIVOTDATA(\"body\",knt_tab!$P$3,\"zavodnik\",knt_tab!P5)=0,\"\",knt_tab!P5))","v":"Bukovjanová Charlotte"},{"$f":"IF(N53=\"\",\"\",GETPIVOTDATA(\"body\",knt_tab!$P$3,\"zavodnik\",N53))","v":40},null,7,{"$f":"IF(ISERR(GETPIVOTDATA(\"body\",knt_tab!$G$3,\"zavodnik\",knt_tab!G11)),\"\",IF(GETPIVOTDATA(\"body\",knt_tab!$G$3,\"zavodnik\",knt_tab!G11)=0,\"\",knt_tab!G11))","v":"To Vojtěch"},{"$f":"IF(R53=\"\",\"\",GETPIVOTDATA(\"body\",knt_tab!$G$3,\"zavodnik\",R53))","v":24},null,"",{"$f":"IF(ISERR(GETPIVOTDATA(\"body\",knt_tab!$D$3,\"zavodnik\",knt_tab!D28)),\"\",IF(GETPIVOTDATA(\"body\",knt_tab!$D$3,\"zavodnik\",knt_tab!D28)=0,\"\",knt_tab!D28))","v":""},{"$f":"IF(V53=\"\",\"\",GETPIVOTDATA(\"body\",knt_tab!$D$3,\"zavodnik\",V53))","v":""}]
[50,{"$f":"IF(ISERR(GETPIVOTDATA(\"body\",knt_tab!$A$3,\"zavodnik\",knt_tab!A55)),\"\",IF(GETPIVOTDATA(\"body\",knt_tab!$A$3,\"zavodnik\",knt_tab!A55)=0,\"\",knt_tab!A55))","v":"Moravec Vlastimil"},{"$f":"IF(B54=\"\",\"\",GETPIVOTDATA(\"body\",knt_tab!$A$3,\"zavodnik\",B54))","v":15},null,"",{"$f":"IF(ISERR(GETPIVOTDATA(\"body\",knt_tab!$A$3,\"zavodnik\",knt_tab!A116)),\"\",IF(GETPIVOTDATA(\"body\",knt_tab!$A$3,\"zavodnik\",knt_tab!A116)=0,\"\",knt_tab!A116))","v":""},{"$f":"IF(F54=\"\",\"\",GETPIVOTDATA(\"body\",knt_tab!$A$3,\"zavodnik\",F54))","v":""},null,"",{"$f":"IF(ISERR(GETPIVOTDATA(\"body\",knt_tab!$AH$3,\"zavodnik\",knt_tab!AH10)),\"\",IF(GETPIVOTDATA(\"body\",knt_tab!$AH$3,\"zavodnik\",knt_tab!AH10)=0,\"\",knt_tab!AH10))","v":""},{"$f":"IF(J54=\"\",\"\",GETPIVOTDATA(\"body\",knt_tab!$AH$3,\"zavodnik\",J54))","v":""},null,{"$f":"IF(N54=\"\",\"\",IF(O54=O53,M53,ROW(M54)-ROW($M$52)))","v":2},{"$f":"IF(ISERR(GETPIVOTDATA(\"body\",knt_tab!$P$3,\"zavodnik\",knt_tab!P6)),\"\",IF(GETPIVOTDATA(\"body\",knt_tab!$P$3,\"zavodnik\",knt_tab!P6)=0,\"\",knt_tab!P6))","v":"Kaszperová Kristýna"},{"$f":"IF(N54=\"\",\"\",GETPIVOTDATA(\"body\",knt_tab!$P$3,\"zavodnik\",N54))","v":28},null,8,{"$f":"IF(ISERR(GETPIVOTDATA(\"body\",knt_tab!$G$3,\"zavodnik\",knt_tab!G12)),\"\",IF(GETPIVOTDATA(\"body\",knt_tab!$G$3,\"zavodnik\",knt_tab!G12)=0,\"\",knt_tab!G12))","v":"Musial Šimon"},{"$f":"IF(R54=\"\",\"\",GETPIVOTDATA(\"body\",knt_tab!$G$3,\"zavodnik\",R54))","v":20},null,"",{"$f":"IF(ISERR(GETPIVOTDATA(\"body\",knt_tab!$D$3,\"zavodnik\",knt_tab!D29)),\"\",IF(GETPIVOTDATA(\"body\",knt_tab!$D$3,\"zavodnik\",knt_tab!D29)=0,\"\",knt_tab!D29))","v":""},{"$f":"IF(V54=\"\",\"\",GETPIVOTDATA(\"body\",knt_tab!$D$3,\"zavodnik\",V54))","v":""}]
[52,{"$f":"IF(ISERR(GETPIVOTDATA(\"body\",knt_tab!$A$3,\"zavodnik\",knt_tab!A56)),\"\",IF(GETPIVOTDATA(\"body\",knt_tab!$A$3,\"zavodnik\",knt_tab!A56)=0,\"\",knt_tab!A56))","v":"Rapčanová Alice"},{"$f":"IF(B55=\"\",\"\",GETPIVOTDATA(\"body\",knt_tab!$A$3,\"zavodnik\",B55))","v":14},null,"",{"$f":"IF(ISERR(GETPIVOTDATA(\"body\",knt_tab!$A$3,\"zavodnik\",knt_tab!A117)),\"\",IF(GETPIVOTDATA(\"body\",knt_tab!$A$3,\"zavodnik\",knt_tab!A117)=0,\"\",knt_tab!A117))","v":""},{"$f":"IF(F55=\"\",\"\",GETPIVOTDATA(\"body\",knt_tab!$A$3,\"zavodnik\",F55))","v":""},null,"",{"$f":"IF(ISERR(GETPIVOTDATA(\"body\",knt_tab!$AH$3,\"zavodnik\",knt_tab!AH11)),\"\",IF(GETPIVOTDATA(\"body\",knt_tab!$AH$3,\"zavodnik\",knt_tab!AH11)=0,\"\",knt_tab!AH11))","v":""},{"$f":"IF(J55=\"\",\"\",GETPIVOTDATA(\"body\",knt_tab!$AH$3,\"zavodnik\",J55))","v":""},null,{"$f":"IF(N55=\"\",\"\",IF(O55=O54,M54,ROW(M55)-ROW($M$52)))","v":3},{"$f":"IF(ISERR(GETPIVOTDATA(\"body\",knt_tab!$P$3,\"zavodnik\",knt_tab!P7)),\"\",IF(GETPIVOTDATA(\"body\",knt_tab!$P$3,\"zavodnik\",knt_tab!P7)=0,\"\",knt_tab!P7))","v":"Homolová Kristýna"},{"$f":"IF(N55=\"\",\"\",GETPIVOTDATA(\"body\",knt_tab!$P$3,\"zavodnik\",N55))","v":8},null,8,{"$f":"IF(ISERR(GETPIVOTDATA(\"body\",knt_tab!$G$3,\"zavodnik\",knt_tab!G13)),\"\",IF(GETPIVOTDATA(\"body\",knt_tab!$G$3,\"zavodnik\",knt_tab!G13)=0,\"\",knt_tab!G13))","v":"Bystrianský Jan"},{"$f":"IF(R55=\"\",\"\",GETPIVOTDATA(\"body\",knt_tab!$G$3,\"zavodnik\",R55))","v":20},null,"",{"$f":"IF(ISERR(GETPIVOTDATA(\"body\",knt_tab!$D$3,\"zavodnik\",knt_tab!D30)),\"\",IF(GETPIVOTDATA(\"body\",knt_tab!$D$3,\"zavodnik\",knt_tab!D30)=0,\"\",knt_tab!D30))","v":""},{"$f":"IF(V55=\"\",\"\",GETPIVOTDATA(\"body\",knt_tab!$D$3,\"zavodnik\",V55))","v":""}]
[53,{"$f":"IF(ISERR(GETPIVOTDATA(\"body\",knt_tab!$A$3,\"zavodnik\",knt_tab!A57)),\"\",IF(GETPIVOTDATA(\"body\",knt_tab!$A$3,\"zavodnik\",knt_tab!A57)=0,\"\",knt_tab!A57))","v":"Zoulová Tereza"},{"$f":"IF(B56=\"\",\"\",GETPIVOTDATA(\"body\",knt_tab!$A$3,\"zavodnik\",B56))","v":13},null,"",{"$f":"IF(ISERR(GETPIVOTDATA(\"body\",knt_tab!$A$3,\"zavodnik\",knt_tab!A118)),\"\",IF(GETPIVOTDATA(\"body\",knt_tab!$A$3,\"zavodnik\",knt_tab!A118)=0,\"\",knt_tab!A118))","v":""},{"$f":"IF(F56=\"\",\"\",GETPIVOTDATA(\"body\",knt_tab!$A$3,\"zavodnik\",F56))","v":""},null,null,null,null,null,{"$f":"IF(N56=\"\",\"\",IF(O56=O55,M55,ROW(M56)-ROW($M$52)))","v":4},{"$f":"IF(ISERR(GETPIVOTDATA(\"body\",knt_tab!$P$3,\"zavodnik\",knt_tab!P8)),\"\",IF(GETPIVOTDATA(\"body\",knt_tab!$P$3,\"zavodnik\",knt_tab!P8)=0,\"\",knt_tab!P8))","v":"Kocmanová Lucie"},{"$f":"IF(N56=\"\",\"\",GETPIVOTDATA(\"body\",knt_tab!$P$3,\"zavodnik\",N56))","v":5},null,10,{"$f":"IF(ISERR(GETPIVOTDATA(\"body\",knt_tab!$G$3,\"zavodnik\",knt_tab!G14)),\"\",IF(GETPIVOTDATA(\"body\",knt_tab!$G$3,\"zavodnik\",knt_tab!G14)=0,\"\",knt_tab!G14))","v":"Kret Matyáš"},{"$f":"IF(R56=\"\",\"\",GETPIVOTDATA(\"body\",knt_tab!$G$3,\"zavodnik\",R56))","v":13},null,"",{"$f":"IF(ISERR(GETPIVOTDATA(\"body\",knt_tab!$D$3,\"zavodnik\",knt_tab!D31)),\"\",IF(GETPIVOTDATA(\"body\",knt_tab!$D$3,\"zavodnik\",knt_tab!D31)=0,\"\",knt_tab!D31))","v":""},{"$f":"IF(V56=\"\",\"\",GETPIVOTDATA(\"body\",knt_tab!$D$3,\"zavodnik\",V56))","v":""}]
[53,{"$f":"IF(ISERR(GETPIVOTDATA(\"body\",knt_tab!$A$3,\"zavodnik\",knt_tab!A58)),\"\",IF(GETPIVOTDATA(\"body\",knt_tab!$A$3,\"zavodnik\",knt_tab!A58)=0,\"\",knt_tab!A58))","v":"Kristen Nikolas"},{"$f":"IF(B57=\"\",\"\",GETPIVOTDATA(\"body\",knt_tab!$A$3,\"zavodnik\",B57))","v":13},null,{"$f":"IF(F57=\"\",\"\",IF(G57=G56,E56,ROW(E57)-ROW($E$3)+61))","v":""},{"$f":"IF(ISERR(GETPIVOTDATA(\"body\",knt_tab!$A$3,\"zavodnik\",knt_tab!A119)),\"\",IF(GETPIVOTDATA(\"body\",knt_tab!$A$3,\"zavodnik\",knt_tab!A119)=0,\"\",knt_tab!A119))","v":""},{"$f":"IF(F57=\"\",\"\",GETPIVOTDATA(\"body\",knt_tab!$A$3,\"zavodnik\",F57))","v":""},null,"Juniorky",null,null,null,{"$f":"IF(N57=\"\",\"\",IF(O57=O56,M56,ROW(M57)-ROW($M$52)))","v":""},{"$f":"IF(ISERR(GETPIVOTDATA(\"body\",knt_tab!$P$3,\"zavodnik\",knt_tab!P9)),\"\",IF(GETPIVOTDATA(\"body\",knt_tab!$P$3,\"zavodnik\",knt_tab!P9)=0,\"\",knt_tab!P9))","v":""},{"$f":"IF(N57=\"\",\"\",GETPIVOTDATA(\"body\",knt_tab!$P$3,\"zavodnik\",N57))","v":""},null,11,{"$f":"IF(ISERR(GETPIVOTDATA(\"body\",knt_tab!$G$3,\"zavodnik\",knt_tab!G15)),\"\",IF(GETPIVOTDATA(\"body\",knt_tab!$G$3,\"zavodnik\",knt_tab!G15)=0,\"\",knt_tab!G15))","v":"Vlček Martin"},{"$f":"IF(R57=\"\",\"\",GETPIVOTDATA(\"body\",knt_tab!$G$3,\"zavodnik\",R57))","v":12},null,"",{"$f":"IF(ISERR(GETPIVOTDATA(\"body\",knt_tab!$D$3,\"zavodnik\",knt_tab!D32)),\"\",IF(GETPIVOTDATA(\"body\",knt_tab!$D$3,\"zavodnik\",knt_tab!D32)=0,\"\",knt_tab!D32))","v":""},{"$f":"IF(V57=\"\",\"\",GETPIVOTDATA(\"body\",knt_tab!$D$3,\"zavodnik\",V57))","v":""}]
[53,{"$f":"IF(ISERR(GETPIVOTDATA(\"body\",knt_tab!$A$3,\"zavodnik\",knt_tab!A59)),\"\",IF(GETPIVOTDATA(\"body\",knt_tab!$A$3,\"zavodnik\",knt_tab!A59)=0,\"\",knt_tab!A59))","v":"Kret Matyáš"},{"$f":"IF(B58=\"\",\"\",GETPIVOTDATA(\"body\",knt_tab!$A$3,\"zavodnik\",B58))","v":13},null,"",{"$f":"IF(ISERR(GETPIVOTDATA(\"body\",knt_tab!$A$3,\"zavodnik\",knt_tab!A120)),\"\",IF(GETPIVOTDATA(\"body\",knt_tab!$A$3,\"zavodnik\",knt_tab!A120)=0,\"\",knt_tab!A120))","v":""},{"$f":"IF(F58=\"\",\"\",GETPIVOTDATA(\"body\",knt_tab!$A$3,\"zavodnik\",F58))","v":""},null,"Pořadí","Příjmení","body",null,"",{"$f":"IF(ISERR(GETPIVOTDATA(\"body\",knt_tab!$P$3,\"zavodnik\",knt_tab!P10)),\"\",IF(GETPIVOTDATA(\"body\",knt_tab!$P$3,\"zavodnik\",knt_tab!P10)=0,\"\",knt_tab!P10))","v":""},{"$f":"IF(N58=\"\",\"\",GETPIVOTDATA(\"body\",knt_tab!$P$3,\"zavodnik\",N58))","v":""},null,12,{"$f":"IF(ISERR(GETPIVOTDATA(\"body\",knt_tab!$G$3,\"zavodnik\",knt_tab!G16)),\"\",IF(GETPIVOTDATA(\"body\",knt_tab!$G$3,\"zavodnik\",knt_tab!G16)=0,\"\",knt_tab!G16))","v":"Šelong Tadeáš"},{"$f":"IF(R58=\"\",\"\",GETPIVOTDATA(\"body\",knt_tab!$G$3,\"zavodnik\",R58))","v":11},null,"",{"$f":"IF(ISERR(GETPIVOTDATA(\"body\",knt_tab!$D$3,\"zavodnik\",knt_tab!D33)),\"\",IF(GETPIVOTDATA(\"body\",knt_tab!$D$3,\"zavodnik\",knt_tab!D33)=0,\"\",knt_tab!D33))","v":""},{"$f":"IF(V58=\"\",\"\",GETPIVOTDATA(\"body\",knt_tab!$D$3,\"zavodnik\",V58))","v":""}]
[56,{"$f":"IF(ISERR(GETPIVOTDATA(\"body\",knt_tab!$A$3,\"zavodnik\",knt_tab!A60)),\"\",IF(GETPIVOTDATA(\"body\",knt_tab!$A$3,\"zavodnik\",knt_tab!A60)=0,\"\",knt_tab!A60))","v":"Kouřil Sebastián"},{"$f":"IF(B59=\"\",\"\",GETPIVOTDATA(\"body\",knt_tab!$A$3,\"zavodnik\",B59))","v":12},null,"",{"$f":"IF(ISERR(GETPIVOTDATA(\"body\",knt_tab!$A$3,\"zavodnik\",knt_tab!A121)),\"\",IF(GETPIVOTDATA(\"body\",knt_tab!$A$3,\"zavodnik\",knt_tab!A121)=0,\"\",knt_tab!A121))","v":""},{"$f":"IF(F59=\"\",\"\",GETPIVOTDATA(\"body\",knt_tab!$A$3,\"zavodnik\",F59))","v":""},null,1,{"$f":"IF(ISERR(GETPIVOTDATA(\"body\",knt_tab!$AB$3,\"zavodnik\",knt_tab!AB5)),\"\",IF(GETPIVOTDATA(\"body\",knt_tab!$AB$3,\"zavodnik\",knt_tab!AB5)=0,\"\",knt_tab!AB5))","v":"Václavková Tereza"},{"$f":"IF(J59=\"\",\"\",GETPIVOTDATA(\"body\",knt_tab!$AB$3,\"zavodnik\",J59))","v":26},null,"",{"$f":"IF(ISERR(GETPIVOTDATA(\"body\",knt_tab!$P$3,\"zavodnik\",knt_tab!P11)),\"\",IF(GETPIVOTDATA(\"body\",knt_tab!$P$3,\"zavodnik\",knt_tab!P11)=0,\"\",knt_tab!P11))","v":""},{"$f":"IF(N59=\"\",\"\",GETPIVOTDATA(\"body\",knt_tab!$P$3,\"zavodnik\",N59))","v":""},null,13,{"$f":"IF(ISERR(GETPIVOTDATA(\"body\",knt_tab!$G$3,\"zavodnik\",knt_tab!G17)),\"\",IF(GETPIVOTDATA(\"body\",knt_tab!$G$3,\"zavodnik\",knt_tab!G17)=0,\"\",knt_tab!G17))","v":"Soukup Hugo"},{"$f":"IF(R59=\"\",\"\",GETPIVOTDATA(\"body\",knt_tab!$G$3,\"zavodnik\",R59))","v":8},null,"",{"$f":"IF(ISERR(GETPIVOTDATA(\"body\",knt_tab!$D$3,\"zavodnik\",knt_tab!D34)),\"\",IF(GETPIVOTDATA(\"body\",knt_tab!$D$3,\"zavodnik\",knt_tab!D34)=0,\"\",knt_tab!D34))","v":""},{"$f":"IF(V59=\"\",\"\",GETPIVOTDATA(\"body\",knt_tab!$D$3,\"zavodnik\",V59))","v":""}]
[56,{"$f":"IF(ISERR(GETPIVOTDATA(\"body\",knt_tab!$A$3,\"zavodnik\",knt_tab!A61)),\"\",IF(GETPIVOTDATA(\"body\",knt_tab!$A$3,\"zavodnik\",knt_tab!A61)=0,\"\",knt_tab!A61))","v":"Vlček Martin"},{"$f":"IF(B60=\"\",\"\",GETPIVOTDATA(\"body\",knt_tab!$A$3,\"zavodnik\",B60))","v":12},null,"",{"$f":"IF(ISERR(GETPIVOTDATA(\"body\",knt_tab!$A$3,\"zavodnik\",knt_tab!A122)),\"\",IF(GETPIVOTDATA(\"body\",knt_tab!$A$3,\"zavodnik\",knt_tab!A122)=0,\"\",knt_tab!A122))","v":""},{"$f":"IF(F60=\"\",\"\",GETPIVOTDATA(\"body\",knt_tab!$A$3,\"zavodnik\",F60))","v":""},null,{"$f":"IF(J60=\"\",\"\",IF(K60=K59,I59,ROW(I60)-ROW($I$58)))","v":2},{"$f":"IF(ISERR(GETPIVOTDATA(\"body\",knt_tab!$AB$3,\"zavodnik\",knt_tab!AB6)),\"\",IF(GETPIVOTDATA(\"body\",knt_tab!$AB$3,\"zavodnik\",knt_tab!AB6)=0,\"\",knt_tab!AB6))","v":"Čerchlová Markéta"},{"$f":"IF(J60=\"\",\"\",GETPIVOTDATA(\"body\",knt_tab!$AB$3,\"zavodnik\",J60))","v":23},null,"",{"$f":"IF(ISERR(GETPIVOTDATA(\"body\",knt_tab!$P$3,\"zavodnik\",knt_tab!P12)),\"\",IF(GETPIVOTDATA(\"body\",knt_tab!$P$3,\"zavodnik\",knt_tab!P12)=0,\"\",knt_tab!P12))","v":""},{"$f":"IF(N60=\"\",\"\",GETPIVOTDATA(\"body\",knt_tab!$P$3,\"zavodnik\",N60))","v":""},null,13,{"$f":"IF(ISERR(GETPIVOTDATA(\"body\",knt_tab!$G$3,\"zavodnik\",knt_tab!G18)),\"\",IF(GETPIVOTDATA(\"body\",knt_tab!$G$3,\"zavodnik\",knt_tab!G18)=0,\"\",knt_tab!G18))","v":"Procházka Daniel"},{"$f":"IF(R60=\"\",\"\",GETPIVOTDATA(\"body\",knt_tab!$G$3,\"zavodnik\",R60))","v":8},null,"",{"$f":"IF(ISERR(GETPIVOTDATA(\"body\",knt_tab!$D$3,\"zavodnik\",knt_tab!D35)),\"\",IF(GETPIVOTDATA(\"body\",knt_tab!$D$3,\"zavodnik\",knt_tab!D35)=0,\"\",knt_tab!D35))","v":""},{"$f":"IF(V60=\"\",\"\",GETPIVOTDATA(\"body\",knt_tab!$D$3,\"zavodnik\",V60))","v":""}]
[56,{"$f":"IF(ISERR(GETPIVOTDATA(\"body\",knt_tab!$A$3,\"zavodnik\",knt_tab!A62)),\"\",IF(GETPIVOTDATA(\"body\",knt_tab!$A$3,\"zavodnik\",knt_tab!A62)=0,\"\",knt_tab!A62))","v":"Chovanec Martin"},{"$f":"IF(B61=\"\",\"\",GETPIVOTDATA(\"body\",knt_tab!$A$3,\"zavodnik\",B61))","v":12},null,"",{"$f":"IF(ISERR(GETPIVOTDATA(\"body\",knt_tab!$A$3,\"zavodnik\",knt_tab!A123)),\"\",IF(GETPIVOTDATA(\"body\",knt_tab!$A$3,\"zavodnik\",knt_tab!A123)=0,\"\",knt_tab!A123))","v":""},{"$f":"IF(F61=\"\",\"\",GETPIVOTDATA(\"body\",knt_tab!$A$3,\"zavodnik\",F61))","v":""},null,{"$f":"IF(J61=\"\",\"\",IF(K61=K60,I60,ROW(I61)-ROW($I$58)))","v":""},{"$f":"IF(ISERR(GETPIVOTDATA(\"body\",knt_tab!$AB$3,\"zavodnik\",knt_tab!AB7)),\"\",IF(GETPIVOTDATA(\"body\",knt_tab!$AB$3,\"zavodnik\",knt_tab!AB7)=0,\"\",knt_tab!AB7))","v":""},{"$f":"IF(J61=\"\",\"\",GETPIVOTDATA(\"body\",knt_tab!$AB$3,\"zavodnik\",J61))","v":""},null,"",{"$f":"IF(ISERR(GETPIVOTDATA(\"body\",knt_tab!$P$3,\"zavodnik\",knt_tab!P13)),\"\",IF(GETPIVOTDATA(\"body\",knt_tab!$P$3,\"zavodnik\",knt_tab!P13)=0,\"\",knt_tab!P13))","v":""},{"$f":"IF(N61=\"\",\"\",GETPIVOTDATA(\"body\",knt_tab!$P$3,\"zavodnik\",N61))","v":""},null,15,{"$f":"IF(ISERR(GETPIVOTDATA(\"body\",knt_tab!$G$3,\"zavodnik\",knt_tab!G19)),\"\",IF(GETPIVOTDATA(\"body\",knt_tab!$G$3,\"zavodnik\",knt_tab!G19)=0,\"\",knt_tab!G19))","v":"Bravanský Marek"},{"$f":"IF(R61=\"\",\"\",GETPIVOTDATA(\"body\",knt_tab!$G$3,\"zavodnik\",R61))","v":7},null,"",{"$f":"IF(ISERR(GETPIVOTDATA(\"body\",knt_tab!$D$3,\"zavodnik\",knt_tab!D36)),\"\",IF(GETPIVOTDATA(\"body\",knt_tab!$D$3,\"zavodnik\",knt_tab!D36)=0,\"\",knt_tab!D36))","v":""},{"$f":"IF(V61=\"\",\"\",GETPIVOTDATA(\"body\",knt_tab!$D$3,\"zavodnik\",V61))","v":""}]
[59,{"$f":"IF(ISERR(GETPIVOTDATA(\"body\",knt_tab!$A$3,\"zavodnik\",knt_tab!A63)),\"\",IF(GETPIVOTDATA(\"body\",knt_tab!$A$3,\"zavodnik\",knt_tab!A63)=0,\"\",knt_tab!A63))","v":"Valošek Jakub"},{"$f":"IF(B62=\"\",\"\",GETPIVOTDATA(\"body\",knt_tab!$A$3,\"zavodnik\",B62))","v":11},null,"",{"$f":"IF(ISERR(GETPIVOTDATA(\"body\",knt_tab!$A$3,\"zavodnik\",knt_tab!A124)),\"\",IF(GETPIVOTDATA(\"body\",knt_tab!$A$3,\"zavodnik\",knt_tab!A124)=0,\"\",knt_tab!A124))","v":""},{"$f":"IF(F62=\"\",\"\",GETPIVOTDATA(\"body\",knt_tab!$A$3,\"zavodnik\",F62))","v":""},null,{"$f":"IF(J62=\"\",\"\",IF(K62=K61,I61,ROW(I62)-ROW($I$58)))","v":""},{"$f":"IF(ISERR(GETPIVOTDATA(\"body\",knt_tab!$AB$3,\"zavodnik\",knt_tab!AB8)),\"\",IF(GETPIVOTDATA(\"body\",knt_tab!$AB$3,\"zavodnik\",knt_tab!AB8)=0,\"\",knt_tab!AB8))","v":""},{"$f":"IF(J62=\"\",\"\",GETPIVOTDATA(\"body\",knt_tab!$AB$3,\"zavodnik\",J62))","v":""},null,"",{"$f":"IF(ISERR(GETPIVOTDATA(\"body\",knt_tab!$P$3,\"zavodnik\",knt_tab!P14)),\"\",IF(GETPIVOTDATA(\"body\",knt_tab!$P$3,\"zavodnik\",knt_tab!P14)=0,\"\",knt_tab!P14))","v":""},{"$f":"IF(N62=\"\",\"\",GETPIVOTDATA(\"body\",knt_tab!$P$3,\"zavodnik\",N62))","v":""},null,16,{"$f":"IF(ISERR(GETPIVOTDATA(\"body\",knt_tab!$G$3,\"zavodnik\",knt_tab!G20)),\"\",IF(GETPIVOTDATA(\"body\",knt_tab!$G$3,\"zavodnik\",knt_tab!G20)=0,\"\",knt_tab!G20))","v":"Kouřil Sebastián"},{"$f":"IF(R62=\"\",\"\",GETPIVOTDATA(\"body\",knt_tab!$G$3,\"zavodnik\",R62))","v":6},null,"",{"$f":"IF(ISERR(GETPIVOTDATA(\"body\",knt_tab!$D$3,\"zavodnik\",knt_tab!D37)),\"\",IF(GETPIVOTDATA(\"body\",knt_tab!$D$3,\"zavodnik\",knt_tab!D37)=0,\"\",knt_tab!D37))","v":""},{"$f":"IF(V62=\"\",\"\",GETPIVOTDATA(\"body\",knt_tab!$D$3,\"zavodnik\",V62))","v":""}]
[59,{"$f":"IF(ISERR(GETPIVOTDATA(\"body\",knt_tab!$A$3,\"zavodnik\",knt_tab!A64)),\"\",IF(GETPIVOTDATA(\"body\",knt_tab!$A$3,\"zavodnik\",knt_tab!A64)=0,\"\",knt_tab!A64))","v":"Šimek Daniel"},{"$f":"IF(B63=\"\",\"\",GETPIVOTDATA(\"body\",knt_tab!$A$3,\"zavodnik\",B63))","v":11},null,{"$f":"IF(F63=\"\",\"\",IF(G63=G62,E62,ROW(E63)-ROW($E$3)+61))","v":""},{"$f":"IF(ISERR(GETPIVOTDATA(\"body\",knt_tab!$A$3,\"zavodnik\",knt_tab!A125)),\"\",IF(GETPIVOTDATA(\"body\",knt_tab!$A$3,\"zavodnik\",knt_tab!A125)=0,\"\",knt_tab!A125))","v":""},{"$f":"IF(F63=\"\",\"\",GETPIVOTDATA(\"body\",knt_tab!$A$3,\"zavodnik\",F63))","v":""},null,"",{"$f":"IF(ISERR(GETPIVOTDATA(\"body\",knt_tab!$AB$3,\"zavodnik\",knt_tab!AB9)),\"\",IF(GETPIVOTDATA(\"body\",knt_tab!$AB$3,\"zavodnik\",knt_tab!AB9)=0,\"\",knt_tab!AB9))","v":""},{"$f":"IF(J63=\"\",\"\",GETPIVOTDATA(\"body\",knt_tab!$AB$3,\"zavodnik\",J63))","v":""},null,"",{"$f":"IF(ISERR(GETPIVOTDATA(\"body\",knt_tab!$P$3,\"zavodnik\",knt_tab!P15)),\"\",IF(GETPIVOTDATA(\"body\",knt_tab!$P$3,\"zavodnik\",knt_tab!P15)=0,\"\",knt_tab!P15))","v":""},{"$f":"IF(N63=\"\",\"\",GETPIVOTDATA(\"body\",knt_tab!$P$3,\"zavodnik\",N63))","v":""},null,17,{"$f":"IF(ISERR(GETPIVOTDATA(\"body\",knt_tab!$G$3,\"zavodnik\",knt_tab!G21)),\"\",IF(GETPIVOTDATA(\"body\",knt_tab!$G$3,\"zavodnik\",knt_tab!G21)=0,\"\",knt_tab!G21))","v":"Garbulinský Ladislav"},{"$f":"IF(R63=\"\",\"\",GETPIVOTDATA(\"body\",knt_tab!$G$3,\"zavodnik\",R63))","v":5},null,"",{"$f":"IF(ISERR(GETPIVOTDATA(\"body\",knt_tab!$D$3,\"zavodnik\",knt_tab!D38)),\"\",IF(GETPIVOTDATA(\"body\",knt_tab!$D$3,\"zavodnik\",knt_tab!D38)=0,\"\",knt_tab!D38))","v":""},{"$f":"IF(V63=\"\",\"\",GETPIVOTDATA(\"body\",knt_tab!$D$3,\"zavodnik\",V63))","v":""}]